{"text_format":"1","workbook":"xlsx","n_sheets":8,"sheets":["IMPRESION","LISTA","TEMPORAL","Configuracion","CIE","DEPARTAMENTO","PROVINCIA","DISTRITO"],"not_rendered":{"charts":0,"images":22,"macros":1,"external_links":0,"defined_names":11,"comments":0,"pivot_tables":0},"unopened":[],"bounds":{"document_bytes":16777216,"sheet_cells":100000,"rows_first":2000,"rows_last":500,"rows_between":2000,"halvings":0,"cell_chars":16384,"cell_head_chars":4096},"cells_cut":0,"cells_raw":0,"read":"whole","date_system":"1900"}

{"sheet":"IMPRESION","index":0,"n_rows":140,"n_cols":11,"rows_kept":140,"cut":false,"hidden":false,"merged":[[23,1,23,9],[33,4,33,5],[33,7,33,10],[27,4,27,10],[33,2,33,3],[28,7,28,9],[19,2,19,3],[19,4,19,6],[16,4,16,9],[19,7,19,9],[22,5,22,10],[69,2,69,4],[70,2,70,9],[45,3,45,7],[46,3,46,7],[36,7,36,9],[40,2,40,10],[50,2,54,10],[47,3,47,7],[49,2,49,9],[55,2,55,9],[65,3,65,4],[64,3,64,4],[56,2,56,4],[57,2,57,4],[68,2,68,4],[0,1,0,10],[71,2,77,10],[58,2,58,4],[59,2,59,4],[62,3,62,4],[63,3,63,4],[13,2,13,10],[24,2,24,10],[18,2,18,10],[27,2,27,3],[2,1,10,10],[44,3,44,7],[66,2,66,4],[67,2,67,4],[1,1,1,10],[34,4,34,10],[80,3,80,10],[101,5,107,5],[91,5,97,5],[91,2,97,2],[91,9,97,9],[81,2,87,2],[81,5,87,5],[81,9,87,9],[100,3,100,10],[90,3,90,10],[12,1,12,9],[17,4,17,9],[14,1,22,1],[29,5,29,10],[37,5,37,9],[20,4,20,10],[17,2,17,3],[34,2,34,3],[35,2,35,3],[35,4,35,10],[15,7,15,9],[20,2,20,3],[21,7,21,9],[15,4,15,5],[26,4,26,5],[26,7,26,9],[137,2,137,4],[121,7,121,8],[122,7,123,8],[79,1,79,10],[89,1,89,10],[99,1,99,10],[109,1,109,10],[118,2,118,9],[111,2,117,2],[111,9,117,9],[88,2,88,9],[110,3,110,10],[98,2,98,9],[108,2,108,9],[101,2,107,2],[101,9,107,9]]}
[null,"JUSTIFICACIÓN MÉDICA "]
[null,"PARA PACIENTE USUARIOS DE DERIVADOS DEL CANNABIS PARA USO MEDICINAL Y TERAPÉUTICO  ",null,"bron"]
[null,"Formato   orientado al  registro   de  información  que   respalda   la justificación   médica  en   pacientes  usuarios  de   derivados   del  cannabis,   inscritos    en  el  RENPUC y   perteneciente  a  una  determinada  asociación,  en   el   marco  de  la obtención   de   la  licencia  para  la producción  artesanal de derivados de cannabis con cultivo asociativo de la planta del género cannabis, con fines medicinales y terapéuticos.\nLa   justificación  médica  para   pacientes   usuarios   de  derivados   del    cannabis   para  uso  medicinal  y terapéutico debe   responder  al    código  de   ética y  deontología   del   Colegio Médico  del Perú,  ser   numerada  y  archivada  por   el   médico  tratante que  la genera  y debe  estar  disponible  para  las  acciones  de control posterior que corresponda. En caso se modifique   o  suspenda   el tratamiento   para   el  paciente,  el    médico   tratante   deberá   comunicar  este   hecho a la  Autoridad Nacional o Regional de Medicamentos, Insumos y Drogas. La información  presentada  en la presente justificación  médica  tiene  carácter de  declaración jurada , es  confidencial y  está  protegida  de  acuerdo  a la Ley Nº 29733 , Ley de Protección de Datos Personales."]
[]
[]
[]
[]
[]
[]
[]
[]
[null,"    I Datos del paciente usuario de derivados del cannabis con fines medicinal y terapéutico y/o datos del familiar del paciente."]
[]
[null,"1.1.","      PACIENTE"]
[null,null,"Nombre 1 :",null,"Nombre 2 :",null,"Apellido 1: ",null,"Apellido 2: "]
[null,null,"Edad:   ",null,"Tipo de Documento de Identidad:",null,"DNI"]
[null,null,"Registro RENPUC: N° ",null,{"$f":"IF(D17=\"\",\"INGRESAR NUMERO DE RENPUC\",\"\")","v":"INGRESAR NUMERO DE RENPUC"}]
[null,null,"Nombre de la Asociación a la que pertenece: "]
[null,null,""]
[null,null,"N° de Partida registral de la Asociación a la que pertenece: "]
[null,null,"Domicilio del paciente:"]
[null,null,"Departamento:","","Provincia:","","Distrito:",""]
[null,null,"Celular:","","Correo electrónico:"]
[]
[null,"1.2.  ","       TUTOR / FAMILIAR"]
[null,null,"Nombre 1 :",null,"Nombre 2 :",null,"Apellido 1: ",null,"Apellido 2: "]
[null,null,"Edad:   ",null,"Tipo de Documento de Identidad:",null,"DNI"]
[null,null,"Domicilio del tutor/familiar:"]
[null,null,"Departamento:","","Provincia:","","Distrito:",""]
[null,null,"Celular:",null,"Correo electrónico:"]
[]
[null,"II.    ","  Datos del médico cirujano tratante del paciente"]
[null,null,"Nombre 1 del  Médico tratante:",null,"Nombre 2 del  Médico tratante:",null,"Apellido 1 del  Médico tratante: ",null,"Apellido 2 del  Médico tratante: "]
[null,null,"N° de Colegiatura Profesional: ",null,null,null,"Especialidad:"]
[null,null,"Establecimiento de Salud:"]
[null,null,"Dirección del Establecimiento de Salud:"]
[null,null,"Departamento:","","Provincia:","","Distrito:",""]
[null,null,"Celular:",null,"Correo electrónico:"]
[]
[null,"III.     ","JUSTIFICACIÓN MÉDICA"]
[null,null,"Justificación del médico tratante en relación a la utilización de derivados del cannabis para uso medicinal y terapéutico por su paciente, realizada en base al conocimiento de los signos y síntomas que presenta, el examen médico realizado, la evaluación de los posibles riesgos e interacciones medicamentosas y teniendo en cuenta el beneficio/riesgo de su decisión terapéutica. "]
[null,null,"Esta   justificación médica debe formar parte de la Historia Clínica del paciente. "]
[]
[null,null,"3.1.","Diagnóstico(s) del paciente:"]
[null,null,"3.1.1.","",null,null,null,null,"CIE-10",{"$f":"_xlfn.IFNA(VLOOKUP(D45,CIE!$B$1:$C$113,2,FALSE),\"\")","v":""},"W16.1"]
[null,null,"3.1.2.","",null,null,null,null,"CIE-10",{"$f":"_xlfn.IFNA(VLOOKUP(D46,CIE!$B$1:$C$113,2,FALSE),\"\")","v":""},"W16.1"]
[null,null,"3.1.3.","",null,null,null,null,"CIE-10",{"$f":"_xlfn.IFNA(VLOOKUP(D47,CIE!$B$1:$C$113,2,FALSE),\"\")","v":""},"W16.1"]
[null,null,"3.1.4.","",null,null,null,null,"CIE-10",{"$f":"_xlfn.IFNA(VLOOKUP(D48,CIE!$B$1:$C$113,2,FALSE),\"\")","v":""},"W16.1"]
[]
[null,"3.2.       ","  Tratamiento farmacológico que recibe el paciente:"]
[]
[]
[]
[]
[]
[null,"3.3.        "," Antecedentes clínicos del paciente  :"]
[null,"3.3.1.","Presenta arritmia  :"]
[null,"3.3.2.","Presenta angina de pecho / angor : "]
[null,"3.3.3.","Presenta hipertensión no controlada : "]
[null,"3.3.4.","Presenta problemas de salud mental : "]
[]
[null,null,"Especificar: "]
[null,null,null,"Psicosis  :"]
[null,null,null,"Esquizofrenia  :"]
[null,null,null,"trastorno bipolar  :"]
[null,null,null,"Otro:"]
[null,"3.3.5."," Presenta alergia a algún componente de cannabis  : "]
[null,"3.3.6.","  Gestante  : ",null,null,"Si "]
[null,"3.3.7.","   Lactante : ",null,null,"Si "]
[null,"3.3.8.","   Otros:"]
[null,"3.4.        ","Justificación del médico tratante para el uso de derivados del cannabis con fines medicinal y terapéutico por su paciente. "]
[]
[]
[]
[]
[]
[]
[]
[null,"3.5.","Descripción de los derivados del cannabis a ser utilizados por el paciente:"]
[null,"Receta 1"]
[null,null,"Descripcion :"]
[null,null,null,"Concentración  :","Seleccionar",null,"Vía de Adm : ","Seleccionar"]
[null,null,null,"THC :"]
[null,null,null,"CBD :",null,null,"Dosis :",null,"Seleccionar"]
[null,null,null,"CBG :",null,null,"Frecuencia diaria :",null,"Veces"]
[null,null,null,"CBN :",null,null,"Duración de Tratamiento :",null,"Dias"]
[null,null,null,"Otros :"]
[null,null,null,{"$f":"IF(E82=\"Seleccionar\",\"Volumen\",IF(E82=\"mg/mL\",\"Volumen (ml)\",IF(E82=\"%\",\"Volumen (ml)\",IF(E82=\"mg/g\",\"Volumen (g)\",))))","v":"Volumen"},null,null,"Volumen Total Calculado",{"$f":"IF(I84=\"mL\",H84*H85*H86,IF(I84=\"Gotas\",H84*0.05555556*H85*H86,IF(I84=\"g\",H84*H85*H86,)))","v":0},{"$f":"IF(I84=\"Gotas\",\"mL\",IF(I84=\"mL\",\"mL\",IF(I84=\"g\",\"g\",\"\")))","v":""}]
[]
[null,"Receta 2"]
[null,null,"Descripcion :"]
[null,null,null,"Concentración  :","Seleccionar",null,"Vía de Adm : ","Seleccionar"]
[null,null,null,"THC :"]
[null,null,null,"CBD :",null,null,"Dosis :",null,"Seleccionar"]
[null,null,null,"CBG :",null,null,"Frecuencia diaria :",null,"Veces"]
[null,null,null,"CBN :",null,null,"Duración de Tratamiento :",null,"Dias"]
[null,null,null,"Otros :"]
[null,null,null,{"$f":"IF(E92=\"Seleccionar\",\"Volumen\",IF(E92=\"mg/mL\",\"Volumen (ml)\",IF(E92=\"%\",\"Volumen (ml)\",IF(E92=\"mg/g\",\"Volumen (g)\",))))","v":"Volumen"},null,null,"Volumen Total Calculado",{"$f":"IF(I94=\"mL\",H94*H95*H96,IF(I94=\"Gotas\",H94*0.05555556*H95*H96,IF(I94=\"g\",H94*H95*H96,)))","v":0},{"$f":"IF(I94=\"Gotas\",\"mL\",IF(I94=\"mL\",\"mL\",IF(I94=\"g\",\"g\",\"\")))","v":""}]
[]
[null,"Receta 3"]
[null,null,"Descripcion :"]
[null,null,null,"Concentración  :","Seleccionar",null,"Vía de Adm : ","Seleccionar"]
[null,null,null,"THC :"]
[null,null,null,"CBD :",null,null,"Dosis :",null,"Seleccionar"]
[null,null,null,"CBG :",null,null,"Frecuencia diaria :",null,"Veces"]
[null,null,null,"CBN :",null,null,"Duración de Tratamiento :",null,"Dias"]
[null,null,null,"Otros :"]
[null,null,null,{"$f":"IF(E102=\"Seleccionar\",\"Volumen\",IF(E102=\"mg/mL\",\"Volumen (ml)\",IF(E102=\"%\",\"Volumen (ml)\",IF(E102=\"mg/g\",\"Volumen (g)\",))))","v":"Volumen"},null,null,"Volumen Total Calculado",{"$f":"IF(I104=\"mL\",H104*H105*H106,IF(I104=\"Gotas\",H104*0.05555556*H105*H106,IF(I104=\"g\",H104*H105*H106,)))","v":0},{"$f":"IF(I104=\"Gotas\",\"mL\",IF(I104=\"mL\",\"mL\",IF(I104=\"g\",\"g\",\"\")))","v":""}]
[]
[null,"Receta 4"]
[null,null,"Descripcion :"]
[null,null,null,"Concentración  :","Seleccionar",null,"Vía de Adm : ","Seleccionar"]
[null,null,null,"THC :"]
[null,null,null,"CBD :",null,null,"Dosis :",null,"Seleccionar"]
[null,null,null,"CBG :",null,null,"Frecuencia diaria :",null,"Veces"]
[null,null,null,"CBN :",null,null,"Duración de Tratamiento :",null,"Dias"]
[null,null,null,"Otros :"]
[null,null,null,{"$f":"IF(E112=\"Seleccionar\",\"Volumen\",IF(E112=\"mg/mL\",\"Volumen (ml)\",IF(E112=\"%\",\"Volumen (ml)\",IF(E112=\"mg/g\",\"Volumen (g)\",))))","v":"Volumen"},null,null,"Volumen Total Calculado",{"$f":"IF(I114=\"mL\",H114*H115*H116,IF(I114=\"Gotas\",H114*0.05555556*H115*H116,IF(I114=\"g\",H114*H115*H116,)))","v":0},{"$f":"IF(I114=\"Gotas\",\"mL\",IF(I114=\"mL\",\"mL\",IF(I114=\"g\",\"g\",\"\")))","v":""}]
[]
[null,null,"* Concentración de cannabinoide: THC, CBG, CBN, CBD, CBD/THC u otro "]
[]
[null,null,null,null,null,null,null," Fecha de Emisión(dd/mm/aaaa)"]
[null,null,null,null,null,null,null,"/          /"]
[]
[]
[]
[]
[]
[]
[]
[]
[]
[]
[]
[]
[]
[]
[null,null,"---------------------------------------------------------------"]
[null,null,null," Firma y sello del médico"]
[null,null,null,"N° CMP …............................."]

{"sheet":"LISTA","index":1,"n_rows":1,"n_cols":68,"rows_kept":1,"cut":false,"hidden":false,"merged":[]}
["PACNOMBRE1","PACNOMBRE2","PACAPEPAT","PACAPEMAT","ACPEDAD","TIDCODIGOPAC","PACNUMDOC","PACCODDJV","PACDIRECCION","PACDEPARTAMENTO","PACPROVINCIA","PACDISTRITO","PACTELEFONO","PACRESPNOMBRE1","PACRESPNOMBRE2","PACRESPAPEPAT","PACRESPAPEMAT","PACRESPNUMDOC","PACRESPDIRECCION","PACDEPARTAMENTO","PACPROVINCIA","PACDISTRITO","PACRESPTELEFONO","MEDNOMBRE1","MEDNOMBRE2","MEDAPEPAT","MEDAPEMAT","MEDNUMCMP","MEDESPECIALIDAD","MEDESTABPUB","MEDDIRESTABPUB","MEDDEPARTAMENTO","MEDPROVINCIA","MEDDISTRITO","MEDTELMOVIL","MEDCORREO","ACPIDCIE10_1","ACPIDCIE10_2","ACPIDCIE10_3","ACPIDCIE10_4","ACPTRAFARMACOLOGICO","ACPANTCLI01","ACPANTCLI02","ACPANTCLI03","ACPANTCLI04","ACPANTCLI05","ACPANTCLI06","ACPANTCLI07","ACPANTCLI08","ACPANTCLI09","ACPANTCLI10","ACPANTCLI11","ACPANTCLI12","JMTDESCRIPCION","DCPDESCRIPCION","DCPCONCANTIPOUMED","DCPCONCANNTHC","DCPCONCANNCBG","DCPCONCANNCBN","DCPCONCANNCBD","DCPCONCANNOTRO","DCPVOLUMEN","DCPVIAADM","DCPDOSISTIPO","DCPDOSISCANT","DCPFREDIA","DCPDURTRA","PACCODDJV"]

{"sheet":"TEMPORAL","index":2,"n_rows":5,"n_cols":68,"rows_kept":5,"cut":false,"hidden":false,"merged":[]}
["PACNOMBRE1","PACNOMBRE2","PACAPEPAT","PACAPEMAT","ACPEDAD","TIDCODIGOPAC","PACNUMDOC","PACCODDJV","PACDIRECCION","PACDEPARTAMENTO","PACPROVINCIA","PACDISTRITO","PACTELEFONO","PACRESPNOMBRE1","PACRESPNOMBRE2","PACRESPAPEPAT","PACRESPAPEMAT","PACRESPNUMDOC","PACRESPDIRECCION","PACDEPARTAMENTO","PACPROVINCIA","PACDISTRITO","PACRESPTELEFONO","MEDNOMBRE1","MEDNOMBRE2","MEDAPEPAT","MEDAPEMAT","MEDNUMCMP","MEDESPECIALIDAD","MEDESTABPUB","MEDDIRESTABPUB","MEDDEPARTAMENTO","MEDPROVINCIA","MEDDISTRITO","MEDTELMOVIL","MEDCORREO","ACPIDCIE10_1","ACPIDCIE10_2","ACPIDCIE10_3","ACPIDCIE10_4","ACPTRAFARMACOLOGICO","ACPANTCLI01","ACPANTCLI02","ACPANTCLI03","ACPANTCLI04","ACPANTCLI05","ACPANTCLI06","ACPANTCLI07","ACPANTCLI08","ACPANTCLI09","ACPANTCLI10","ACPANTCLI11","ACPANTCLI12","JMTDESCRIPCION","DCPDESCRIPCION","DCPCONCANTIPOUMED","DCPCONCANNTHC","DCPCONCANNCBD","DCPCONCANNCBG","DCPCONCANNCBN","DCPCONCANNOTRO","DCPVOLUMEN","DCPVIAADM","DCPDOSISTIPO","DCPDOSISCANT","DCPFREDIA","DCPDURTRA","PACCODDJV"]
[{"$f":"IMPRESION!D15","v":0},{"$f":"IMPRESION!F15","v":0},{"$f":"IMPRESION!H15","v":0},{"$f":"IMPRESION!J15","v":0},{"$f":"IMPRESION!D16","v":0},{"$f":"IMPRESION!G16","v":"DNI"},{"$f":"IMPRESION!H16","v":0},{"$f":"IMPRESION!D17","v":0},{"$f":"IMPRESION!E21","v":0},{"$f":"IMPRESION!D22","v":""},{"$f":"IMPRESION!F22","v":""},{"$f":"IMPRESION!H22","v":""},{"$f":"IMPRESION!D23","v":""},{"$f":"IMPRESION!D26","v":0},{"$f":"IMPRESION!F26","v":0},{"$f":"IMPRESION!H26","v":0},{"$f":"IMPRESION!J26","v":0},{"$f":"IMPRESION!H27","v":0},{"$f":"IMPRESION!E28","v":0},{"$f":"IMPRESION!D29","v":""},{"$f":"IMPRESION!F29","v":""},{"$f":"IMPRESION!H29","v":""},{"$f":"IMPRESION!D30","v":0},{"$f":"IMPRESION!D33","v":0},{"$f":"IMPRESION!F33","v":0},{"$f":"IMPRESION!H33","v":0},{"$f":"IMPRESION!J33","v":0},{"$f":"IMPRESION!E34","v":0},{"$f":"IMPRESION!H34","v":0},{"$f":"IMPRESION!E35","v":0},{"$f":"IMPRESION!E36","v":0},0,0,0,{"$f":"IMPRESION!D38","v":0},{"$f":"IMPRESION!F38","v":0},{"$f":"IMPRESION!J45","v":""},{"$f":"IMPRESION!J46","v":""},{"$f":"IMPRESION!J47","v":""},{"$f":"IMPRESION!J48","v":""},{"$f":"IMPRESION!C51","v":0},-1,-1,-1,-1,-1,-1,-1,{"$f":"IMPRESION!F66","v":0},-1,-1,-1,{"$f":"IMPRESION!F70","v":0},{"$f":"IMPRESION!C72","v":0},{"$f":"IMPRESION!D81","v":0},{"$f":"IMPRESION!E82","v":"Seleccionar"},{"$f":"IMPRESION!E83","v":0},{"$f":"IMPRESION!E84","v":0},{"$f":"IMPRESION!E85","v":0},{"$f":"IMPRESION!E86","v":0},{"$f":"IMPRESION!E87","v":0},{"$f":"IMPRESION!E88","v":0},{"$f":"IMPRESION!H82","v":"Seleccionar"},{"$f":"IMPRESION!I84","v":"Seleccionar"},{"$f":"IMPRESION!H84","v":0},{"$f":"IMPRESION!H85","v":0},{"$f":"IMPRESION!H86","v":0},{"$f":"IMPRESION!D17","v":0}]
[null,null,null,null,null,null,null,null,null,null,null,null,null,null,null,null,null,null,null,null,null,null,null,null,null,null,null,null,null,null,null,null,null,null,null,null,null,null,null,null,null,null,null,null,null,null,null,null,null,null,null,null,null,null,{"$f":"IMPRESION!D91","v":0},{"$f":"IMPRESION!E92","v":"Seleccionar"},{"$f":"IMPRESION!E93","v":0},{"$f":"IMPRESION!E94","v":0},{"$f":"IMPRESION!E95","v":0},{"$f":"IMPRESION!E96","v":0},{"$f":"IMPRESION!E97","v":0},{"$f":"IMPRESION!E98","v":0},{"$f":"IMPRESION!H92","v":"Seleccionar"},{"$f":"IMPRESION!I94","v":"Seleccionar"},{"$f":"IMPRESION!H94","v":0},{"$f":"IMPRESION!H95","v":0},{"$f":"IMPRESION!H96","v":0},{"$f":"IMPRESION!D17","v":0}]
[null,null,null,null,null,null,null,null,null,null,null,null,null,null,null,null,null,null,null,null,null,null,null,null,null,null,null,null,null,null,null,null,null,null,null,null,null,null,null,null,null,null,null,null,null,null,null,null,null,null,null,null,null,null,{"$f":"IMPRESION!D101","v":0},{"$f":"IMPRESION!E102","v":"Seleccionar"},{"$f":"IMPRESION!E103","v":0},{"$f":"IMPRESION!E104","v":0},{"$f":"IMPRESION!E105","v":0},{"$f":"IMPRESION!E106","v":0},{"$f":"IMPRESION!E107","v":0},{"$f":"IMPRESION!E108","v":0},{"$f":"IMPRESION!H102","v":"Seleccionar"},{"$f":"IMPRESION!I104","v":"Seleccionar"},{"$f":"IMPRESION!H104","v":0},{"$f":"IMPRESION!H105","v":0},{"$f":"IMPRESION!H106","v":0},{"$f":"IMPRESION!D17","v":0}]
[null,null,null,null,null,null,null,null,null,null,null,null,null,null,null,null,null,null,null,null,null,null,null,null,null,null,null,null,null,null,null,null,null,null,null,null,null,null,null,null,null,null,null,null,null,null,null,null,null,null,null,null,null,null,{"$f":"IMPRESION!D111","v":0},{"$f":"IMPRESION!E112","v":"Seleccionar"},{"$f":"IMPRESION!E113","v":0},{"$f":"IMPRESION!E114","v":0},{"$f":"IMPRESION!E115","v":0},{"$f":"IMPRESION!E116","v":0},{"$f":"IMPRESION!E117","v":0},{"$f":"IMPRESION!E118","v":0},{"$f":"IMPRESION!H112","v":"Seleccionar"},{"$f":"IMPRESION!I114","v":"Seleccionar"},{"$f":"IMPRESION!H114","v":0},{"$f":"IMPRESION!H115","v":0},{"$f":"IMPRESION!H116","v":0},{"$f":"IMPRESION!D17","v":0}]

{"sheet":"Configuracion","index":3,"n_rows":1890,"n_cols":18,"rows_kept":1890,"cut":false,"hidden":true,"merged":[]}
[]
[]
[null,"DPTDESCRIP","PRVDESCRIP","DISDESCRIP",null,4,2,4]
[null,null,"AMAZONAS","CHACHAPOYAS",null,null,null,null,null,null,null,"THC, CBG, CBN, CBD u otro "]
[null,"AMAZONAS","CHACHAPOYAS","CHACHAPOYAS"]
[null,"AMAZONAS","CHACHAPOYAS","ASUNCION"]
[null,"AMAZONAS","CHACHAPOYAS","BALSAS"]
[null,"AMAZONAS","CHACHAPOYAS","CHETO",null,null,null,null,null,null,"Unidad","unidad de medida volumen","via administracion","concentracion","Pregunta","Dosis","Tiempo","Tipo de documento"]
[null,"AMAZONAS","CHACHAPOYAS","CHILIQUIN",null,null,null,null,null,null,"Seleccionar","ml","Seleccionar","Seleccionar","Seleccionar","Seleccionar","Seleccionar","Seleccionar"]
[null,"AMAZONAS","CHACHAPOYAS","CHUQUIBAMBA",null,null,null,null,null,null,"mg/mL",null,"Vía oral","mg/mL(THC)","Si ","Gotas","Dia(s)","DNI"]
[null,"AMAZONAS","CHACHAPOYAS","GRANADA",null,null,null,null,null,null,"mg/g",null,"Vía Tópica","mg/mL(CBD)","No","mL",null,"C.E"]
[null,"AMAZONAS","CHACHAPOYAS","HUANCAS",null,null,null,null,null,null,"%",null,"Vía sublingual","mg/mL(CBG)",null,"g",null,"PASAPORTE"]
[null,"AMAZONAS","CHACHAPOYAS","LA JALCA",null,null,null,null,null,null,null,null,"Vía inhalatoria","mg/mL(CBN)"]
[null,"AMAZONAS","CHACHAPOYAS","LEIMEBAMBA",null,null,null,null,null,null,null,null,null,"THC(%)"]
[null,"AMAZONAS","CHACHAPOYAS","LEVANTO",null,null,null,null,null,null,null,null,null,"CBD(%)"]
[null,"AMAZONAS","CHACHAPOYAS","MAGDALENA",null,null,null,null,null,null,null,null,null,"CBG(%)"]
[null,"AMAZONAS","CHACHAPOYAS","MARISCAL CASTILLA",null,null,null,null,null,null,null,"Calculo de volumen ",null,"CBN(%)"]
[null,"AMAZONAS","CHACHAPOYAS","MOLINOPAMPA",null,null,null,null,null,null,null,null,null,"Otro",null,null,"Documento de Identidad: DNI / C.E. / Pasaporte N°:"]
[null,"AMAZONAS","CHACHAPOYAS","MONTEVIDEO"]
[null,"AMAZONAS","CHACHAPOYAS","OLLEROS"]
[null,"AMAZONAS","CHACHAPOYAS","QUINJALCA"]
[null,"AMAZONAS","CHACHAPOYAS","SAN FRANCISCO DE DAGUAS"]
[null,"AMAZONAS","CHACHAPOYAS","SAN ISIDRO DE MAINO"]
[null,"AMAZONAS","CHACHAPOYAS","SOLOCO"]
[null,"AMAZONAS","CHACHAPOYAS","SONCHE"]
[]
[null,"AMAZONAS","BAGUA","LA PECA"]
[null,"AMAZONAS","BAGUA","ARAMANGO"]
[null,"AMAZONAS","BAGUA","COPALLIN"]
[null,"AMAZONAS","BAGUA","EL PARCO"]
[null,"AMAZONAS","BAGUA","IMAZA"]
[null,"AMAZONAS","BAGUA","BAGUA"]
[]
[null,"AMAZONAS","BONGARA","JUMBILLA"]
[null,"AMAZONAS","BONGARA","CHISQUILLA"]
[null,"AMAZONAS","BONGARA","CHURUJA"]
[null,"AMAZONAS","BONGARA","COROSHA"]
[null,"AMAZONAS","BONGARA","CUISPES"]
[null,"AMAZONAS","BONGARA","FLORIDA"]
[null,"AMAZONAS","BONGARA","JAZAN"]
[null,"AMAZONAS","BONGARA","RECTA"]
[null,"AMAZONAS","BONGARA","SAN CARLOS"]
[null,"AMAZONAS","BONGARA","SHIPASBAMBA"]
[null,"AMAZONAS","BONGARA","VALERA"]
[null,"AMAZONAS","BONGARA","YAMBRASBAMBA"]
[]
[null,"AMAZONAS","CONDORCANQUI","NIEVA"]
[null,"AMAZONAS","CONDORCANQUI","EL CENEPA"]
[null,"AMAZONAS","CONDORCANQUI","RIO SANTIAGO"]
[]
[null,"AMAZONAS","LUYA","LAMUD"]
[null,"AMAZONAS","LUYA","CAMPORREDONDO"]
[null,"AMAZONAS","LUYA","COCABAMBA"]
[null,"AMAZONAS","LUYA","COLCAMAR"]
[null,"AMAZONAS","LUYA","CONILA"]
[null,"AMAZONAS","LUYA","INGUILPATA"]
[null,"AMAZONAS","LUYA","LONGUITA"]
[null,"AMAZONAS","LUYA","LONYA CHICO"]
[null,"AMAZONAS","LUYA","LUYA"]
[null,"AMAZONAS","LUYA","LUYA VIEJO"]
[null,"AMAZONAS","LUYA","MARIA"]
[null,"AMAZONAS","LUYA","OCALLI"]
[null,"AMAZONAS","LUYA","OCUMAL"]
[null,"AMAZONAS","LUYA","PISUQUIA"]
[null,"AMAZONAS","LUYA","PROVIDENCIA"]
[null,"AMAZONAS","LUYA","SAN CRISTOBAL"]
[null,"AMAZONAS","LUYA","SAN FRANCISCO DEL YESO"]
[null,"AMAZONAS","LUYA","SAN JERONIMO"]
[null,"AMAZONAS","LUYA","SAN JUAN DE LOPECANCHA"]
[null,"AMAZONAS","LUYA","SANTA CATALINA"]
[null,"AMAZONAS","LUYA","SANTO TOMAS"]
[null,"AMAZONAS","LUYA","TINGO"]
[null,"AMAZONAS","LUYA","TRITA"]
[]
[null,"AMAZONAS","RODRIGUEZ DE MENDOZA","SAN NICOLAS"]
[null,"AMAZONAS","RODRIGUEZ DE MENDOZA","CHIRIMOTO"]
[null,"AMAZONAS","RODRIGUEZ DE MENDOZA","COCHAMAL"]
[null,"AMAZONAS","RODRIGUEZ DE MENDOZA","HUAMBO"]
[null,"AMAZONAS","RODRIGUEZ DE MENDOZA","LIMABAMBA"]
[null,"AMAZONAS","RODRIGUEZ DE MENDOZA","LONGAR"]
[null,"AMAZONAS","RODRIGUEZ DE MENDOZA","MARISCAL BENAVIDES"]
[null,"AMAZONAS","RODRIGUEZ DE MENDOZA","MILPUC"]
[null,"AMAZONAS","RODRIGUEZ DE MENDOZA","OMIA"]
[null,"AMAZONAS","RODRIGUEZ DE MENDOZA","SANTA ROSA"]
[null,"AMAZONAS","RODRIGUEZ DE MENDOZA","TOTORA"]
[null,"AMAZONAS","RODRIGUEZ DE MENDOZA","VISTA ALEGRE"]
[]
[null,"AMAZONAS","UTCUBAMBA","BAGUA GRANDE"]
[null,"AMAZONAS","UTCUBAMBA","CAJARURO"]
[null,"AMAZONAS","UTCUBAMBA","CUMBA"]
[null,"AMAZONAS","UTCUBAMBA","EL MILAGRO"]
[null,"AMAZONAS","UTCUBAMBA","JAMALCA"]
[null,"AMAZONAS","UTCUBAMBA","LONYA GRANDE"]
[null,"AMAZONAS","UTCUBAMBA","YAMON"]
[]
[null,"ANCASH","HUARAZ","HUARAZ"]
[null,"ANCASH","HUARAZ","COCHABAMBA"]
[null,"ANCASH","HUARAZ","COLCABAMBA"]
[null,"ANCASH","HUARAZ","HUANCHAY"]
[null,"ANCASH","HUARAZ","INDEPENDENCIA"]
[null,"ANCASH","HUARAZ","JANGAS"]
[null,"ANCASH","HUARAZ","LA LIBERTAD"]
[null,"ANCASH","HUARAZ","OLLEROS"]
[null,"ANCASH","HUARAZ","PAMPAS"]
[null,"ANCASH","HUARAZ","PARIACOTO"]
[null,"ANCASH","HUARAZ","PIRA"]
[null,"ANCASH","HUARAZ","TARICA"]
[]
[null,"ANCASH","AIJA","AIJA"]
[null,"ANCASH","AIJA","CORIS"]
[null,"ANCASH","AIJA","HUACLLAN"]
[null,"ANCASH","AIJA","LA MERCED"]
[null,"ANCASH","AIJA","SUCCHA"]
[]
[null,"ANCASH","ANTONIO RAYMONDI","LLAMELLIN"]
[null,"ANCASH","ANTONIO RAYMONDI","ACZO"]
[null,"ANCASH","ANTONIO RAYMONDI","CHACCHO"]
[null,"ANCASH","ANTONIO RAYMONDI","CHINGAS"]
[null,"ANCASH","ANTONIO RAYMONDI","MIRGAS"]
[null,"ANCASH","ANTONIO RAYMONDI","SAN JUAN DE RONTOY"]
[]
[null,"ANCASH","ASUNCION","CHACAS"]
[null,"ANCASH","ASUNCION","ACOCHACA"]
[]
[null,"ANCASH","BOLOGNESI","CHIQUIAN"]
[null,"ANCASH","BOLOGNESI","ABELARDO PARDO LEZAMETA"]
[null,"ANCASH","BOLOGNESI","ANTONIO RAYMONDI"]
[null,"ANCASH","BOLOGNESI","AQUIA"]
[null,"ANCASH","BOLOGNESI","CAJACAY"]
[null,"ANCASH","BOLOGNESI","CANIS"]
[null,"ANCASH","BOLOGNESI","COLQUIOC"]
[null,"ANCASH","BOLOGNESI","HUALLANCA"]
[null,"ANCASH","BOLOGNESI","HUASTA"]
[null,"ANCASH","BOLOGNESI","HUAYLLACAYAN"]
[null,"ANCASH","BOLOGNESI","LA PRIMAVERA"]
[null,"ANCASH","BOLOGNESI","MANGAS"]
[null,"ANCASH","BOLOGNESI","PACLLON"]
[null,"ANCASH","BOLOGNESI","SAN MIGUEL DE CORPANQUI"]
[null,"ANCASH","BOLOGNESI","TICLLOS"]
[]
[null,"ANCASH","CARHUAZ","CARHUAZ"]
[null,"ANCASH","CARHUAZ","ACOPAMPA"]
[null,"ANCASH","CARHUAZ","AMASHCA"]
[null,"ANCASH","CARHUAZ","ANTA"]
[null,"ANCASH","CARHUAZ","ATAQUERO"]
[null,"ANCASH","CARHUAZ","MARCARA"]
[null,"ANCASH","CARHUAZ","PARIAHUANCA"]
[null,"ANCASH","CARHUAZ","SAN MIGUEL DE ACO"]
[null,"ANCASH","CARHUAZ","SHILLA"]
[null,"ANCASH","CARHUAZ","TINCO"]
[null,"ANCASH","CARHUAZ","YUNGAR"]
[]
[null,"ANCASH","CARLOS FERMIN FITZCARRALD","SAN LUIS"]
[null,"ANCASH","CARLOS FERMIN FITZCARRALD","SAN NICOLAS"]
[null,"ANCASH","CARLOS FERMIN FITZCARRALD","YAUYA"]
[]
[null,"ANCASH","CASMA","CASMA"]
[null,"ANCASH","CASMA","BUENA VISTA ALTA"]
[null,"ANCASH","CASMA","COMANDANTE NOEL"]
[null,"ANCASH","CASMA","YAUTAN"]
[]
[null,"ANCASH","CORONGO","CORONGO"]
[null,"ANCASH","CORONGO","ACO"]
[null,"ANCASH","CORONGO","BAMBAS"]
[null,"ANCASH","CORONGO","CUSCA"]
[null,"ANCASH","CORONGO","LA PAMPA"]
[null,"ANCASH","CORONGO","YANAC"]
[null,"ANCASH","CORONGO","YUPAN"]
[]
[null,"ANCASH","HUARI","HUARI"]
[null,"ANCASH","HUARI","ANRA"]
[null,"ANCASH","HUARI","CAJAY"]
[null,"ANCASH","HUARI","CHAVIN DE HUANTAR"]
[null,"ANCASH","HUARI","HUACACHI"]
[null,"ANCASH","HUARI","HUACCHIS"]
[null,"ANCASH","HUARI","HUACHIS"]
[null,"ANCASH","HUARI","HUANTAR"]
[null,"ANCASH","HUARI","MASIN"]
[null,"ANCASH","HUARI","PAUCAS"]
[null,"ANCASH","HUARI","PONTO"]
[null,"ANCASH","HUARI","RAHUAPAMPA"]
[null,"ANCASH","HUARI","RAPAYAN"]
[null,"ANCASH","HUARI","SAN MARCOS"]
[null,"ANCASH","HUARI","SAN PEDRO DE CHANA"]
[null,"ANCASH","HUARI","UCO"]
[]
[null,"ANCASH","HUARMEY","HUARMEY"]
[null,"ANCASH","HUARMEY","COCHAPETI"]
[null,"ANCASH","HUARMEY","CULEBRAS"]
[null,"ANCASH","HUARMEY","HUAYAN"]
[null,"ANCASH","HUARMEY","MALVAS"]
[]
[null,"ANCASH","HUAYLAS","CARAZ"]
[null,"ANCASH","HUAYLAS","HUALLANCA"]
[null,"ANCASH","HUAYLAS","HUATA"]
[null,"ANCASH","HUAYLAS","HUAYLAS"]
[null,"ANCASH","HUAYLAS","MATO"]
[null,"ANCASH","HUAYLAS","PAMPAROMAS"]
[null,"ANCASH","HUAYLAS","PUEBLO LIBRE"]
[null,"ANCASH","HUAYLAS","SANTA CRUZ"]
[null,"ANCASH","HUAYLAS","SANTO TORIBIO"]
[null,"ANCASH","HUAYLAS","YURACMARCA"]
[]
[null,"ANCASH","MARISCAL LUZURIAGA","PISCOBAMBA"]
[null,"ANCASH","MARISCAL LUZURIAGA","CASCA"]
[null,"ANCASH","MARISCAL LUZURIAGA","ELEAZAR GUZMAN BARRON"]
[null,"ANCASH","MARISCAL LUZURIAGA","FIDEL OLIVAS ESCUDERO"]
[null,"ANCASH","MARISCAL LUZURIAGA","LLAMA"]
[null,"ANCASH","MARISCAL LUZURIAGA","LLUMPA"]
[null,"ANCASH","MARISCAL LUZURIAGA","LUCMA"]
[null,"ANCASH","MARISCAL LUZURIAGA","MUSGA"]
[]
[null,"ANCASH","OCROS","OCROS"]
[null,"ANCASH","OCROS","ACAS"]
[null,"ANCASH","OCROS","CAJAMARQUILLA"]
[null,"ANCASH","OCROS","CARHUAPAMPA"]
[null,"ANCASH","OCROS","COCHAS"]
[null,"ANCASH","OCROS","CONGAS"]
[null,"ANCASH","OCROS","LLIPA"]
[null,"ANCASH","OCROS","SAN CRISTOBAL DE RAJAN"]
[null,"ANCASH","OCROS","SAN PEDRO"]
[null,"ANCASH","OCROS","SANTIAGO DE CHILCAS"]
[]
[null,"ANCASH","PALLASCA","CABANA"]
[null,"ANCASH","PALLASCA","BOLOGNESI"]
[null,"ANCASH","PALLASCA","CONCHUCOS"]
[null,"ANCASH","PALLASCA","HUACASCHUQUE"]
[null,"ANCASH","PALLASCA","HUANDOVAL"]
[null,"ANCASH","PALLASCA","LACABAMBA"]
[null,"ANCASH","PALLASCA","LLAPO"]
[null,"ANCASH","PALLASCA","PALLASCA"]
[null,"ANCASH","PALLASCA","PAMPAS"]
[null,"ANCASH","PALLASCA","SANTA ROSA"]
[null,"ANCASH","PALLASCA","TAUCA"]
[]
[null,"ANCASH","POMABAMBA","POMABAMBA"]
[null,"ANCASH","POMABAMBA","HUAYLLAN"]
[null,"ANCASH","POMABAMBA","PAROBAMBA"]
[null,"ANCASH","POMABAMBA","QUINUABAMBA"]
[]
[null,"ANCASH","RECUAY","RECUAY"]
[null,"ANCASH","RECUAY","CATAC"]
[null,"ANCASH","RECUAY","COTAPARACO"]
[null,"ANCASH","RECUAY","HUAYLLAPAMPA"]
[null,"ANCASH","RECUAY","LLACLLIN"]
[null,"ANCASH","RECUAY","MARCA"]
[null,"ANCASH","RECUAY","PAMPAS CHICO"]
[null,"ANCASH","RECUAY","PARARIN"]
[null,"ANCASH","RECUAY","TAPACOCHA"]
[null,"ANCASH","RECUAY","TICAPAMPA"]
[null,"ANCASH","SANTA","CHIMBOTE"]
[null,"ANCASH","SANTA","CACERES DEL PERU"]
[null,"ANCASH","SANTA","COISHCO"]
[null,"ANCASH","SANTA","MACATE"]
[null,"ANCASH","SANTA","MORO"]
[null,"ANCASH","SANTA","NEPEÑA"]
[null,"ANCASH","SANTA","SAMANCO"]
[null,"ANCASH","SANTA","SANTA"]
[null,"ANCASH","SANTA","NUEVO CHIMBOTE"]
[null,"ANCASH","SIHUAS","SIHUAS"]
[null,"ANCASH","SIHUAS","ACOBAMBA"]
[null,"ANCASH","SIHUAS","ALFONSO UGARTE"]
[null,"ANCASH","SIHUAS","CASHAPAMPA"]
[null,"ANCASH","SIHUAS","CHINGALPO"]
[null,"ANCASH","SIHUAS","HUAYLLABAMBA"]
[null,"ANCASH","SIHUAS","QUICHES"]
[null,"ANCASH","SIHUAS","RAGASH"]
[null,"ANCASH","SIHUAS","SAN JUAN"]
[null,"ANCASH","SIHUAS","SICSIBAMBA"]
[null,"ANCASH","YUNGAY","YUNGAY"]
[null,"ANCASH","YUNGAY","CASCAPARA"]
[null,"ANCASH","YUNGAY","MANCOS"]
[null,"ANCASH","YUNGAY","MATACOTO"]
[null,"ANCASH","YUNGAY","QUILLO"]
[null,"ANCASH","YUNGAY","RANRAHIRCA"]
[null,"ANCASH","YUNGAY","SHUPLUY"]
[null,"ANCASH","YUNGAY","YANAMA"]
[null,"APURIMAC","ABANCAY","ABANCAY"]
[null,"APURIMAC","ABANCAY","CHACOCHE"]
[null,"APURIMAC","ABANCAY","CIRCA"]
[null,"APURIMAC","ABANCAY","CURAHUASI"]
[null,"APURIMAC","ABANCAY","HUANIPACA"]
[null,"APURIMAC","ABANCAY","LAMBRAMA"]
[null,"APURIMAC","ABANCAY","PICHIRHUA"]
[null,"APURIMAC","ABANCAY","SAN PEDRO DE CACHORA"]
[null,"APURIMAC","ABANCAY","TAMBURCO"]
[null,"APURIMAC","ANDAHUAYLAS","ANDAHUAYLAS"]
[null,"APURIMAC","ANDAHUAYLAS","ANDARAPA"]
[null,"APURIMAC","ANDAHUAYLAS","CHIARA"]
[null,"APURIMAC","ANDAHUAYLAS","HUANCARAMA"]
[null,"APURIMAC","ANDAHUAYLAS","HUANCARAY"]
[null,"APURIMAC","ANDAHUAYLAS","HUAYANA"]
[null,"APURIMAC","ANDAHUAYLAS","KISHUARA"]
[null,"APURIMAC","ANDAHUAYLAS","PACOBAMBA"]
[null,"APURIMAC","ANDAHUAYLAS","PACUCHA"]
[null,"APURIMAC","ANDAHUAYLAS","PAMPACHIRI"]
[null,"APURIMAC","ANDAHUAYLAS","POMACOCHA"]
[null,"APURIMAC","ANDAHUAYLAS","SAN ANTONIO DE CACHI"]
[null,"APURIMAC","ANDAHUAYLAS","SAN JERONIMO"]
[null,"APURIMAC","ANDAHUAYLAS","SAN MIGUEL DE CHACCRAMPA"]
[null,"APURIMAC","ANDAHUAYLAS","SANTA MARIA DE CHICMO"]
[null,"APURIMAC","ANDAHUAYLAS","TALAVERA"]
[null,"APURIMAC","ANDAHUAYLAS","TUMAY HUARACA"]
[null,"APURIMAC","ANDAHUAYLAS","TURPO"]
[null,"APURIMAC","ANDAHUAYLAS","KAQUIABAMBA"]
[null,"APURIMAC","ANDAHUAYLAS","JOSE MARIA ARGUEDAS"]
[null,"APURIMAC","ANTABAMBA","ANTABAMBA"]
[null,"APURIMAC","ANTABAMBA","EL ORO"]
[null,"APURIMAC","ANTABAMBA","HUAQUIRCA"]
[null,"APURIMAC","ANTABAMBA","JUAN ESPINOZA MEDRANO"]
[null,"APURIMAC","ANTABAMBA","OROPESA"]
[null,"APURIMAC","ANTABAMBA","PACHACONAS"]
[null,"APURIMAC","ANTABAMBA","SABAINO"]
[null,"APURIMAC","AYMARAES","CHALHUANCA"]
[null,"APURIMAC","AYMARAES","CAPAYA"]
[null,"APURIMAC","AYMARAES","CARAYBAMBA"]
[null,"APURIMAC","AYMARAES","CHAPIMARCA"]
[null,"APURIMAC","AYMARAES","COLCABAMBA"]
[null,"APURIMAC","AYMARAES","COTARUSE"]
[null,"APURIMAC","AYMARAES","HUAYLLO"]
[null,"APURIMAC","AYMARAES","JUSTO APU SAHUARAURA"]
[null,"APURIMAC","AYMARAES","LUCRE"]
[null,"APURIMAC","AYMARAES","POCOHUANCA"]
[null,"APURIMAC","AYMARAES","SAN JUAN DE CHACÑA"]
[null,"APURIMAC","AYMARAES","SAÑAYCA"]
[null,"APURIMAC","AYMARAES","SORAYA"]
[null,"APURIMAC","AYMARAES","TAPAIRIHUA"]
[null,"APURIMAC","AYMARAES","TINTAY"]
[null,"APURIMAC","AYMARAES","TORAYA"]
[null,"APURIMAC","AYMARAES","YANACA"]
[null,"APURIMAC","COTABAMBAS","TAMBOBAMBA"]
[null,"APURIMAC","COTABAMBAS","COTABAMBAS"]
[null,"APURIMAC","COTABAMBAS","COYLLURQUI"]
[null,"APURIMAC","COTABAMBAS","HAQUIRA"]
[null,"APURIMAC","COTABAMBAS","MARA"]
[null,"APURIMAC","COTABAMBAS","CHALLHUAHUACHO"]
[null,"APURIMAC","CHINCHEROS","CHINCHEROS"]
[null,"APURIMAC","CHINCHEROS","ANCO_HUALLO"]
[null,"APURIMAC","CHINCHEROS","COCHARCAS"]
[null,"APURIMAC","CHINCHEROS","HUACCANA"]
[null,"APURIMAC","CHINCHEROS","OCOBAMBA"]
[null,"APURIMAC","CHINCHEROS","ONGOY"]
[null,"APURIMAC","CHINCHEROS","URANMARCA"]
[null,"APURIMAC","CHINCHEROS","RANRACANCHA"]
[null,"APURIMAC","GRAU","CHUQUIBAMBILLA"]
[null,"APURIMAC","GRAU","CURPAHUASI"]
[null,"APURIMAC","GRAU","GAMARRA"]
[null,"APURIMAC","GRAU","HUAYLLATI"]
[null,"APURIMAC","GRAU","MAMARA"]
[null,"APURIMAC","GRAU","MICAELA BASTIDAS"]
[null,"APURIMAC","GRAU","PATAYPAMPA"]
[null,"APURIMAC","GRAU","PROGRESO"]
[null,"APURIMAC","GRAU","SAN ANTONIO"]
[null,"APURIMAC","GRAU","SANTA ROSA"]
[null,"APURIMAC","GRAU","TURPAY"]
[null,"APURIMAC","GRAU","VILCABAMBA"]
[null,"APURIMAC","GRAU","VIRUNDO"]
[null,"APURIMAC","GRAU","CURASCO"]
[null,"AREQUIPA","AREQUIPA","AREQUIPA"]
[null,"AREQUIPA","AREQUIPA","ALTO SELVA ALEGRE"]
[null,"AREQUIPA","AREQUIPA","CAYMA"]
[null,"AREQUIPA","AREQUIPA","CERRO COLORADO"]
[null,"AREQUIPA","AREQUIPA","CHARACATO"]
[null,"AREQUIPA","AREQUIPA","CHIGUATA"]
[null,"AREQUIPA","AREQUIPA","JACOBO HUNTER"]
[null,"AREQUIPA","AREQUIPA","LA JOYA"]
[null,"AREQUIPA","AREQUIPA","MARIANO MELGAR"]
[null,"AREQUIPA","AREQUIPA","MIRAFLORES"]
[null,"AREQUIPA","AREQUIPA","MOLLEBAYA"]
[null,"AREQUIPA","AREQUIPA","PAUCARPATA"]
[null,"AREQUIPA","AREQUIPA","POCSI"]
[null,"AREQUIPA","AREQUIPA","POLOBAYA"]
[null,"AREQUIPA","AREQUIPA","QUEQUEÑA"]
[null,"AREQUIPA","AREQUIPA","SABANDIA"]
[null,"AREQUIPA","AREQUIPA","SACHACA"]
[null,"AREQUIPA","AREQUIPA","SAN JUAN DE SIGUAS"]
[null,"AREQUIPA","AREQUIPA","SAN JUAN DE TARUCANI"]
[null,"AREQUIPA","AREQUIPA","SANTA ISABEL DE SIGUAS"]
[null,"AREQUIPA","AREQUIPA","SANTA RITA DE SIGUAS"]
[null,"AREQUIPA","AREQUIPA","SOCABAYA"]
[null,"AREQUIPA","AREQUIPA","TIABAYA"]
[null,"AREQUIPA","AREQUIPA","UCHUMAYO"]
[null,"AREQUIPA","AREQUIPA","VITOR"]
[null,"AREQUIPA","AREQUIPA","YANAHUARA"]
[null,"AREQUIPA","AREQUIPA","YARABAMBA"]
[null,"AREQUIPA","AREQUIPA","YURA"]
[null,"AREQUIPA","AREQUIPA","JOSE LUIS BUSTAMANTE Y RIVERO"]
[null,"AREQUIPA","CAMANA","CAMANA"]
[null,"AREQUIPA","CAMANA","JOSE MARIA QUIMPER"]
[null,"AREQUIPA","CAMANA","MARIANO NICOLAS VALCARCEL"]
[null,"AREQUIPA","CAMANA","MARISCAL CACERES"]
[null,"AREQUIPA","CAMANA","NICOLAS DE PIEROLA"]
[null,"AREQUIPA","CAMANA","OCOÑA"]
[null,"AREQUIPA","CAMANA","QUILCA"]
[null,"AREQUIPA","CAMANA","SAMUEL PASTOR"]
[null,"AREQUIPA","CARAVELI","CARAVELI"]
[null,"AREQUIPA","CARAVELI","ACARI"]
[null,"AREQUIPA","CARAVELI","ATICO"]
[null,"AREQUIPA","CARAVELI","ATIQUIPA"]
[null,"AREQUIPA","CARAVELI","BELLA UNION"]
[null,"AREQUIPA","CARAVELI","CAHUACHO"]
[null,"AREQUIPA","CARAVELI","CHALA"]
[null,"AREQUIPA","CARAVELI","CHAPARRA"]
[null,"AREQUIPA","CARAVELI","HUANUHUANU"]
[null,"AREQUIPA","CARAVELI","JAQUI"]
[null,"AREQUIPA","CARAVELI","LOMAS"]
[null,"AREQUIPA","CARAVELI","QUICACHA"]
[null,"AREQUIPA","CARAVELI","YAUCA"]
[null,"AREQUIPA","CASTILLA","APLAO"]
[null,"AREQUIPA","CASTILLA","ANDAGUA"]
[null,"AREQUIPA","CASTILLA","AYO"]
[null,"AREQUIPA","CASTILLA","CHACHAS"]
[null,"AREQUIPA","CASTILLA","CHILCAYMARCA"]
[null,"AREQUIPA","CASTILLA","CHOCO"]
[null,"AREQUIPA","CASTILLA","HUANCARQUI"]
[null,"AREQUIPA","CASTILLA","MACHAGUAY"]
[null,"AREQUIPA","CASTILLA","ORCOPAMPA"]
[null,"AREQUIPA","CASTILLA","PAMPACOLCA"]
[null,"AREQUIPA","CASTILLA","TIPAN"]
[null,"AREQUIPA","CASTILLA","UÑON"]
[null,"AREQUIPA","CASTILLA","URACA"]
[null,"AREQUIPA","CASTILLA","VIRACO"]
[null,"AREQUIPA","CAYLLOMA","CHIVAY"]
[null,"AREQUIPA","CAYLLOMA","ACHOMA"]
[null,"AREQUIPA","CAYLLOMA","CABANACONDE"]
[null,"AREQUIPA","CAYLLOMA","CALLALLI"]
[null,"AREQUIPA","CAYLLOMA","CAYLLOMA"]
[null,"AREQUIPA","CAYLLOMA","COPORAQUE"]
[null,"AREQUIPA","CAYLLOMA","HUAMBO"]
[null,"AREQUIPA","CAYLLOMA","HUANCA"]
[null,"AREQUIPA","CAYLLOMA","ICHUPAMPA"]
[null,"AREQUIPA","CAYLLOMA","LARI"]
[null,"AREQUIPA","CAYLLOMA","LLUTA"]
[null,"AREQUIPA","CAYLLOMA","MACA"]
[null,"AREQUIPA","CAYLLOMA","MADRIGAL"]
[null,"AREQUIPA","CAYLLOMA","SAN ANTONIO DE CHUCA"]
[null,"AREQUIPA","CAYLLOMA","SIBAYO"]
[null,"AREQUIPA","CAYLLOMA","TAPAY"]
[null,"AREQUIPA","CAYLLOMA","TISCO"]
[null,"AREQUIPA","CAYLLOMA","TUTI"]
[null,"AREQUIPA","CAYLLOMA","YANQUE"]
[null,"AREQUIPA","CAYLLOMA","MAJES"]
[null,"AREQUIPA","CONDESUYOS","CHUQUIBAMBA"]
[null,"AREQUIPA","CONDESUYOS","ANDARAY"]
[null,"AREQUIPA","CONDESUYOS","CAYARANI"]
[null,"AREQUIPA","CONDESUYOS","CHICHAS"]
[null,"AREQUIPA","CONDESUYOS","IRAY"]
[null,"AREQUIPA","CONDESUYOS","RIO GRANDE"]
[null,"AREQUIPA","CONDESUYOS","SALAMANCA"]
[null,"AREQUIPA","CONDESUYOS","YANAQUIHUA"]
[null,"AREQUIPA","ISLAY","MOLLENDO"]
[null,"AREQUIPA","ISLAY","COCACHACRA"]
[null,"AREQUIPA","ISLAY","DEAN VALDIVIA"]
[null,"AREQUIPA","ISLAY","ISLAY"]
[null,"AREQUIPA","ISLAY","MEJIA"]
[null,"AREQUIPA","ISLAY","PUNTA DE BOMBON"]
[null,"AREQUIPA","LA UNION","COTAHUASI"]
[null,"AREQUIPA","LA UNION","ALCA"]
[null,"AREQUIPA","LA UNION","CHARCANA"]
[null,"AREQUIPA","LA UNION","HUAYNACOTAS"]
[null,"AREQUIPA","LA UNION","PAMPAMARCA"]
[null,"AREQUIPA","LA UNION","PUYCA"]
[null,"AREQUIPA","LA UNION","QUECHUALLA"]
[null,"AREQUIPA","LA UNION","SAYLA"]
[null,"AREQUIPA","LA UNION","TAURIA"]
[null,"AREQUIPA","LA UNION","TOMEPAMPA"]
[null,"AREQUIPA","LA UNION","TORO"]
[null,"AYACUCHO","HUAMANGA","AYACUCHO"]
[null,"AYACUCHO","HUAMANGA","ACOCRO"]
[null,"AYACUCHO","HUAMANGA","ACOS VINCHOS"]
[null,"AYACUCHO","HUAMANGA","CARMEN ALTO"]
[null,"AYACUCHO","HUAMANGA","CHIARA"]
[null,"AYACUCHO","HUAMANGA","OCROS"]
[null,"AYACUCHO","HUAMANGA","PACAYCASA"]
[null,"AYACUCHO","HUAMANGA","QUINUA"]
[null,"AYACUCHO","HUAMANGA","SAN JOSE DE TICLLAS"]
[null,"AYACUCHO","HUAMANGA","SAN JUAN BAUTISTA"]
[null,"AYACUCHO","HUAMANGA","SANTIAGO DE PISCHA"]
[null,"AYACUCHO","HUAMANGA","SOCOS"]
[null,"AYACUCHO","HUAMANGA","TAMBILLO"]
[null,"AYACUCHO","HUAMANGA","VINCHOS"]
[null,"AYACUCHO","HUAMANGA","JESUS NAZARENO"]
[null,"AYACUCHO","HUAMANGA","ANDRES A. CACERES D."]
[null,"AYACUCHO","CANGALLO","CANGALLO"]
[null,"AYACUCHO","CANGALLO","CHUSCHI"]
[null,"AYACUCHO","CANGALLO","LOS MOROCHUCOS"]
[null,"AYACUCHO","CANGALLO","MARIA PARADO DE BELLIDO"]
[null,"AYACUCHO","CANGALLO","PARAS"]
[null,"AYACUCHO","CANGALLO","TOTOS"]
[null,"AYACUCHO","HUANCA SANCOS","SANCOS"]
[null,"AYACUCHO","HUANCA SANCOS","CARAPO"]
[null,"AYACUCHO","HUANCA SANCOS","SACSAMARCA"]
[null,"AYACUCHO","HUANCA SANCOS","SANTIAGO DE LUCANAMARCA"]
[null,"AYACUCHO","HUANTA","HUANTA"]
[null,"AYACUCHO","HUANTA","AYAHUANCO"]
[null,"AYACUCHO","HUANTA","HUAMANGUILLA"]
[null,"AYACUCHO","HUANTA","IGUAIN"]
[null,"AYACUCHO","HUANTA","LURICOCHA"]
[null,"AYACUCHO","HUANTA","SANTILLANA"]
[null,"AYACUCHO","HUANTA","SIVIA"]
[null,"AYACUCHO","HUANTA","LLOCHEGUA"]
[null,"AYACUCHO","HUANTA","CANAYRE"]
[null,"AYACUCHO","HUANTA","UCHURACCAY"]
[null,"AYACUCHO","HUANTA","PUCACOLPA"]
[null,"AYACUCHO","HUANTA","CHACA"]
[null,"AYACUCHO","LA MAR","SAN MIGUEL"]
[null,"AYACUCHO","LA MAR","ANCO"]
[null,"AYACUCHO","LA MAR","AYNA"]
[null,"AYACUCHO","LA MAR","CHILCAS"]
[null,"AYACUCHO","LA MAR","CHUNGUI"]
[null,"AYACUCHO","LA MAR","LUIS CARRANZA"]
[null,"AYACUCHO","LA MAR","SANTA ROSA"]
[null,"AYACUCHO","LA MAR","TAMBO"]
[null,"AYACUCHO","LA MAR","SAMUGARI"]
[null,"AYACUCHO","LA MAR","ANCHIHUAY"]
[null,"AYACUCHO","LA MAR","ORONCCOY"]
[null,"AYACUCHO","LUCANAS","PUQUIO"]
[null,"AYACUCHO","LUCANAS","AUCARA"]
[null,"AYACUCHO","LUCANAS","CABANA"]
[null,"AYACUCHO","LUCANAS","CARMEN SALCEDO"]
[null,"AYACUCHO","LUCANAS","CHAVIÑA"]
[null,"AYACUCHO","LUCANAS","CHIPAO"]
[null,"AYACUCHO","LUCANAS","HUAC-HUAS"]
[null,"AYACUCHO","LUCANAS","LARAMATE"]
[null,"AYACUCHO","LUCANAS","LEONCIO PRADO"]
[null,"AYACUCHO","LUCANAS","LLAUTA"]
[null,"AYACUCHO","LUCANAS","LUCANAS"]
[null,"AYACUCHO","LUCANAS","OCAÑA"]
[null,"AYACUCHO","LUCANAS","OTOCA"]
[null,"AYACUCHO","LUCANAS","SAISA"]
[null,"AYACUCHO","LUCANAS","SAN CRISTOBAL"]
[null,"AYACUCHO","LUCANAS","SAN JUAN"]
[null,"AYACUCHO","LUCANAS","SAN PEDRO"]
[null,"AYACUCHO","LUCANAS","SAN PEDRO DE PALCO"]
[null,"AYACUCHO","LUCANAS","SANCOS"]
[null,"AYACUCHO","LUCANAS","SANTA ANA DE HUAYCAHUACHO"]
[null,"AYACUCHO","LUCANAS","SANTA LUCIA"]
[null,"AYACUCHO","PARINACOCHAS","CORACORA"]
[null,"AYACUCHO","PARINACOCHAS","CHUMPI"]
[null,"AYACUCHO","PARINACOCHAS","CORONEL CASTAÑEDA"]
[null,"AYACUCHO","PARINACOCHAS","PACAPAUSA"]
[null,"AYACUCHO","PARINACOCHAS","PULLO"]
[null,"AYACUCHO","PARINACOCHAS","PUYUSCA"]
[null,"AYACUCHO","PARINACOCHAS","SAN FRANCISCO DE RAVACAYCO"]
[null,"AYACUCHO","PARINACOCHAS","UPAHUACHO"]
[null,"AYACUCHO","PAUCAR DEL SARA SARA","PAUSA"]
[null,"AYACUCHO","PAUCAR DEL SARA SARA","COLTA"]
[null,"AYACUCHO","PAUCAR DEL SARA SARA","CORCULLA"]
[null,"AYACUCHO","PAUCAR DEL SARA SARA","LAMPA"]
[null,"AYACUCHO","PAUCAR DEL SARA SARA","MARCABAMBA"]
[null,"AYACUCHO","PAUCAR DEL SARA SARA","OYOLO"]
[null,"AYACUCHO","PAUCAR DEL SARA SARA","PARARCA"]
[null,"AYACUCHO","PAUCAR DEL SARA SARA","SAN JAVIER DE ALPABAMBA"]
[null,"AYACUCHO","PAUCAR DEL SARA SARA","SAN JOSE DE USHUA"]
[null,"AYACUCHO","PAUCAR DEL SARA SARA","SARA SARA"]
[null,"AYACUCHO","SUCRE","QUEROBAMBA"]
[null,"AYACUCHO","SUCRE","BELEN"]
[null,"AYACUCHO","SUCRE","CHALCOS"]
[null,"AYACUCHO","SUCRE","CHILCAYOC"]
[null,"AYACUCHO","SUCRE","HUACAÑA"]
[null,"AYACUCHO","SUCRE","MORCOLLA"]
[null,"AYACUCHO","SUCRE","PAICO"]
[null,"AYACUCHO","SUCRE","SAN PEDRO DE LARCAY"]
[null,"AYACUCHO","SUCRE","SAN SALVADOR DE QUIJE"]
[null,"AYACUCHO","SUCRE","SANTIAGO DE PAUCARAY"]
[null,"AYACUCHO","SUCRE","SORAS"]
[null,"AYACUCHO","VICTOR FAJARDO","HUANCAPI"]
[null,"AYACUCHO","VICTOR FAJARDO","ALCAMENCA"]
[null,"AYACUCHO","VICTOR FAJARDO","APONGO"]
[null,"AYACUCHO","VICTOR FAJARDO","ASQUIPATA"]
[null,"AYACUCHO","VICTOR FAJARDO","CANARIA"]
[null,"AYACUCHO","VICTOR FAJARDO","CAYARA"]
[null,"AYACUCHO","VICTOR FAJARDO","COLCA"]
[null,"AYACUCHO","VICTOR FAJARDO","HUAMANQUIQUIA"]
[null,"AYACUCHO","VICTOR FAJARDO","HUANCARAYLLA"]
[null,"AYACUCHO","VICTOR FAJARDO","HUAYA"]
[null,"AYACUCHO","VICTOR FAJARDO","SARHUA"]
[null,"AYACUCHO","VICTOR FAJARDO","VILCANCHOS"]
[null,"AYACUCHO","VILCAS HUAMAN","VILCAS HUAMAN"]
[null,"AYACUCHO","VILCAS HUAMAN","ACCOMARCA"]
[null,"AYACUCHO","VILCAS HUAMAN","CARHUANCA"]
[null,"AYACUCHO","VILCAS HUAMAN","CONCEPCION"]
[null,"AYACUCHO","VILCAS HUAMAN","HUAMBALPA"]
[null,"AYACUCHO","VILCAS HUAMAN","INDEPENDENCIA"]
[null,"AYACUCHO","VILCAS HUAMAN","SAURAMA"]
[null,"AYACUCHO","VILCAS HUAMAN","VISCHONGO"]
[null,"CAJAMARCA","CAJAMARCA","CAJAMARCA"]
[null,"CAJAMARCA","CAJAMARCA","ASUNCION"]
[null,"CAJAMARCA","CAJAMARCA","CHETILLA"]
[null,"CAJAMARCA","CAJAMARCA","COSPAN"]
[null,"CAJAMARCA","CAJAMARCA","ENCAÑADA"]
[null,"CAJAMARCA","CAJAMARCA","JESUS"]
[null,"CAJAMARCA","CAJAMARCA","LLACANORA"]
[null,"CAJAMARCA","CAJAMARCA","LOS BAÑOS DEL INCA"]
[null,"CAJAMARCA","CAJAMARCA","MAGDALENA"]
[null,"CAJAMARCA","CAJAMARCA","MATARA"]
[null,"CAJAMARCA","CAJAMARCA","NAMORA"]
[null,"CAJAMARCA","CAJAMARCA","SAN JUAN"]
[null,"CAJAMARCA","CAJABAMBA","CAJABAMBA"]
[null,"CAJAMARCA","CAJABAMBA","CACHACHI"]
[null,"CAJAMARCA","CAJABAMBA","CONDEBAMBA"]
[null,"CAJAMARCA","CAJABAMBA","SITACOCHA"]
[null,"CAJAMARCA","CELENDIN","CELENDIN"]
[null,"CAJAMARCA","CELENDIN","CHUMUCH"]
[null,"CAJAMARCA","CELENDIN","CORTEGANA"]
[null,"CAJAMARCA","CELENDIN","HUASMIN"]
[null,"CAJAMARCA","CELENDIN","JORGE CHAVEZ"]
[null,"CAJAMARCA","CELENDIN","JOSE GALVEZ"]
[null,"CAJAMARCA","CELENDIN","MIGUEL IGLESIAS"]
[null,"CAJAMARCA","CELENDIN","OXAMARCA"]
[null,"CAJAMARCA","CELENDIN","SOROCHUCO"]
[null,"CAJAMARCA","CELENDIN","SUCRE"]
[null,"CAJAMARCA","CELENDIN","UTCO"]
[null,"CAJAMARCA","CELENDIN","LA LIBERTAD DE PALLAN"]
[null,"CAJAMARCA","CHOTA","CHOTA"]
[null,"CAJAMARCA","CHOTA","ANGUIA"]
[null,"CAJAMARCA","CHOTA","CHADIN"]
[null,"CAJAMARCA","CHOTA","CHIGUIRIP"]
[null,"CAJAMARCA","CHOTA","CHIMBAN"]
[null,"CAJAMARCA","CHOTA","CHOROPAMPA"]
[null,"CAJAMARCA","CHOTA","COCHABAMBA"]
[null,"CAJAMARCA","CHOTA","CONCHAN"]
[null,"CAJAMARCA","CHOTA","HUAMBOS"]
[null,"CAJAMARCA","CHOTA","LAJAS"]
[null,"CAJAMARCA","CHOTA","LLAMA"]
[null,"CAJAMARCA","CHOTA","MIRACOSTA"]
[null,"CAJAMARCA","CHOTA","PACCHA"]
[null,"CAJAMARCA","CHOTA","PION"]
[null,"CAJAMARCA","CHOTA","QUEROCOTO"]
[null,"CAJAMARCA","CHOTA","SAN JUAN DE LICUPIS"]
[null,"CAJAMARCA","CHOTA","TACABAMBA"]
[null,"CAJAMARCA","CHOTA","TOCMOCHE"]
[null,"CAJAMARCA","CHOTA","CHALAMARCA"]
[null,"CAJAMARCA","CONTUMAZA","CONTUMAZA"]
[null,"CAJAMARCA","CONTUMAZA","CHILETE"]
[null,"CAJAMARCA","CONTUMAZA","CUPISNIQUE"]
[null,"CAJAMARCA","CONTUMAZA","GUZMANGO"]
[null,"CAJAMARCA","CONTUMAZA","SAN BENITO"]
[null,"CAJAMARCA","CONTUMAZA","SANTA CRUZ DE TOLED"]
[null,"CAJAMARCA","CONTUMAZA","TANTARICA"]
[null,"CAJAMARCA","CONTUMAZA","YONAN"]
[null,"CAJAMARCA","CUTERVO","CUTERVO"]
[null,"CAJAMARCA","CUTERVO","CALLAYUC"]
[null,"CAJAMARCA","CUTERVO","CHOROS"]
[null,"CAJAMARCA","CUTERVO","CUJILLO"]
[null,"CAJAMARCA","CUTERVO","LA RAMADA"]
[null,"CAJAMARCA","CUTERVO","PIMPINGOS"]
[null,"CAJAMARCA","CUTERVO","QUEROCOTILLO"]
[null,"CAJAMARCA","CUTERVO","SAN ANDRES DE CUTERVO"]
[null,"CAJAMARCA","CUTERVO","SAN JUAN DE CUTERVO"]
[null,"CAJAMARCA","CUTERVO","SAN LUIS DE LUCMA"]
[null,"CAJAMARCA","CUTERVO","SANTA CRUZ"]
[null,"CAJAMARCA","CUTERVO","SANTO DOMINGO DE LA CAPILLA"]
[null,"CAJAMARCA","CUTERVO","SANTO TOMAS"]
[null,"CAJAMARCA","CUTERVO","SOCOTA"]
[null,"CAJAMARCA","CUTERVO","TORIBIO CASANOVA"]
[null,"CAJAMARCA","HUALGAYOC","BAMBAMARCA"]
[null,"CAJAMARCA","HUALGAYOC","CHUGUR"]
[null,"CAJAMARCA","HUALGAYOC","HUALGAYOC"]
[null,"CAJAMARCA","JAEN","JAEN"]
[null,"CAJAMARCA","JAEN","BELLAVISTA"]
[null,"CAJAMARCA","JAEN","CHONTALI"]
[null,"CAJAMARCA","JAEN","COLASAY"]
[null,"CAJAMARCA","JAEN","HUABAL"]
[null,"CAJAMARCA","JAEN","LAS PIRIAS"]
[null,"CAJAMARCA","JAEN","POMAHUACA"]
[null,"CAJAMARCA","JAEN","PUCARA"]
[null,"CAJAMARCA","JAEN","SALLIQUE"]
[null,"CAJAMARCA","JAEN","SAN FELIPE"]
[null,"CAJAMARCA","JAEN","SAN JOSE DEL ALTO"]
[null,"CAJAMARCA","JAEN","SANTA ROSA"]
[null,"CAJAMARCA","SAN IGNACIO","SAN IGNACIO"]
[null,"CAJAMARCA","SAN IGNACIO","CHIRINOS"]
[null,"CAJAMARCA","SAN IGNACIO","HUARANGO"]
[null,"CAJAMARCA","SAN IGNACIO","LA COIPA"]
[null,"CAJAMARCA","SAN IGNACIO","NAMBALLE"]
[null,"CAJAMARCA","SAN IGNACIO","SAN JOSE DE LOURDES"]
[null,"CAJAMARCA","SAN IGNACIO","TABACONAS"]
[null,"CAJAMARCA","SAN MARCOS","PEDRO GALVEZ"]
[null,"CAJAMARCA","SAN MARCOS","CHANCAY"]
[null,"CAJAMARCA","SAN MARCOS","EDUARDO VILLANUEVA"]
[null,"CAJAMARCA","SAN MARCOS","GREGORIO PITA"]
[null,"CAJAMARCA","SAN MARCOS","ICHOCAN"]
[null,"CAJAMARCA","SAN MARCOS","JOSE MANUEL QUIROZ"]
[null,"CAJAMARCA","SAN MARCOS","JOSE SABOGAL"]
[null,"CAJAMARCA","SAN MIGUEL","SAN MIGUEL"]
[null,"CAJAMARCA","SAN MIGUEL","BOLIVAR"]
[null,"CAJAMARCA","SAN MIGUEL","CALQUIS"]
[null,"CAJAMARCA","SAN MIGUEL","CATILLUC"]
[null,"CAJAMARCA","SAN MIGUEL","EL PRADO"]
[null,"CAJAMARCA","SAN MIGUEL","LA FLORIDA"]
[null,"CAJAMARCA","SAN MIGUEL","LLAPA"]
[null,"CAJAMARCA","SAN MIGUEL","NANCHOC"]
[null,"CAJAMARCA","SAN MIGUEL","NIEPOS"]
[null,"CAJAMARCA","SAN MIGUEL","SAN GREGORIO"]
[null,"CAJAMARCA","SAN MIGUEL","SAN SILVESTRE DE COCHAN"]
[null,"CAJAMARCA","SAN MIGUEL","TONGOD"]
[null,"CAJAMARCA","SAN MIGUEL","UNION AGUA BLANCA"]
[null,"CAJAMARCA","SAN PABLO","SAN PABLO"]
[null,"CAJAMARCA","SAN PABLO","SAN BERNARDINO"]
[null,"CAJAMARCA","SAN PABLO","SAN LUIS"]
[null,"CAJAMARCA","SAN PABLO","TUMBADEN"]
[null,"CAJAMARCA","SANTA CRUZ","SANTA CRUZ"]
[null,"CAJAMARCA","SANTA CRUZ","ANDABAMBA"]
[null,"CAJAMARCA","SANTA CRUZ","CATACHE"]
[null,"CAJAMARCA","SANTA CRUZ","CHANCAYBAÑOS"]
[null,"CAJAMARCA","SANTA CRUZ","LA ESPERANZA"]
[null,"CAJAMARCA","SANTA CRUZ","NINABAMBA"]
[null,"CAJAMARCA","SANTA CRUZ","PULAN"]
[null,"CAJAMARCA","SANTA CRUZ","SAUCEPAMPA"]
[null,"CAJAMARCA","SANTA CRUZ","SEXI"]
[null,"CAJAMARCA","SANTA CRUZ","UTICYACU"]
[null,"CAJAMARCA","SANTA CRUZ","YAUYUCAN"]
[null,"CALLAO","CALLAO","CALLAO"]
[null,"CALLAO","CALLAO","BELLAVISTA"]
[null,"CALLAO","CALLAO","CARMEN DE LA LEGUA REYNOSO"]
[null,"CALLAO","CALLAO","LA PERLA"]
[null,"CALLAO","CALLAO","LA PUNTA"]
[null,"CALLAO","CALLAO","VENTANILLA"]
[null,"CALLAO","CALLAO","MI PERU"]
[null,"CUSCO","CUSCO","CUSCO"]
[null,"CUSCO","CUSCO","CCORCA"]
[null,"CUSCO","CUSCO","POROY"]
[null,"CUSCO","CUSCO","SAN JERONIMO"]
[null,"CUSCO","CUSCO","SAN SEBASTIAN"]
[null,"CUSCO","CUSCO","SANTIAGO"]
[null,"CUSCO","CUSCO","SAYLLA"]
[null,"CUSCO","CUSCO","WANCHAQ"]
[null,"CUSCO","ACOMAYO","ACOMAYO"]
[null,"CUSCO","ACOMAYO","ACOPIA"]
[null,"CUSCO","ACOMAYO","ACOS"]
[null,"CUSCO","ACOMAYO","MOSOC LLACTA"]
[null,"CUSCO","ACOMAYO","POMACANCHI"]
[null,"CUSCO","ACOMAYO","RONDOCAN"]
[null,"CUSCO","ACOMAYO","SANGARARA"]
[null,"CUSCO","ANTA","ANTA"]
[null,"CUSCO","ANTA","ANCAHUASI"]
[null,"CUSCO","ANTA","CACHIMAYO"]
[null,"CUSCO","ANTA","CHINCHAYPUJIO"]
[null,"CUSCO","ANTA","HUAROCONDO"]
[null,"CUSCO","ANTA","LIMATAMBO"]
[null,"CUSCO","ANTA","MOLLEPATA"]
[null,"CUSCO","ANTA","PUCYURA"]
[null,"CUSCO","ANTA","ZURITE"]
[null,"CUSCO","CALCA","CALCA"]
[null,"CUSCO","CALCA","COYA"]
[null,"CUSCO","CALCA","LAMAY"]
[null,"CUSCO","CALCA","LARES"]
[null,"CUSCO","CALCA","PISAC"]
[null,"CUSCO","CALCA","SAN SALVADOR"]
[null,"CUSCO","CALCA","TARAY"]
[null,"CUSCO","CALCA","YANATILE"]
[null,"CUSCO","CANAS","YANAOCA"]
[null,"CUSCO","CANAS","CHECCA"]
[null,"CUSCO","CANAS","KUNTURKANKI"]
[null,"CUSCO","CANAS","LANGUI"]
[null,"CUSCO","CANAS","LAYO"]
[null,"CUSCO","CANAS","PAMPAMARCA"]
[null,"CUSCO","CANAS","QUEHUE"]
[null,"CUSCO","CANAS","TUPAC AMARU"]
[null,"CUSCO","CANCHIS","SICUANI"]
[null,"CUSCO","CANCHIS","CHECACUPE"]
[null,"CUSCO","CANCHIS","COMBAPATA"]
[null,"CUSCO","CANCHIS","MARANGANI"]
[null,"CUSCO","CANCHIS","PITUMARCA"]
[null,"CUSCO","CANCHIS","SAN PABLO"]
[null,"CUSCO","CANCHIS","SAN PEDRO"]
[null,"CUSCO","CANCHIS","TINTA"]
[null,"CUSCO","CHUMBIVILCAS","SANTO TOMAS"]
[null,"CUSCO","CHUMBIVILCAS","CAPACMARCA"]
[null,"CUSCO","CHUMBIVILCAS","CHAMACA"]
[null,"CUSCO","CHUMBIVILCAS","COLQUEMARCA"]
[null,"CUSCO","CHUMBIVILCAS","LIVITACA"]
[null,"CUSCO","CHUMBIVILCAS","LLUSCO"]
[null,"CUSCO","CHUMBIVILCAS","QUIÑOTA"]
[null,"CUSCO","CHUMBIVILCAS","VELILLE"]
[null,"CUSCO","ESPINAR","ESPINAR"]
[null,"CUSCO","ESPINAR","CONDOROMA"]
[null,"CUSCO","ESPINAR","COPORAQUE"]
[null,"CUSCO","ESPINAR","OCORURO"]
[null,"CUSCO","ESPINAR","PALLPATA"]
[null,"CUSCO","ESPINAR","PICHIGUA"]
[null,"CUSCO","ESPINAR","SUYCKUTAMBO"]
[null,"CUSCO","ESPINAR","ALTO PICHIGUA"]
[null,"CUSCO","LA CONVENCION","SANTA ANA"]
[null,"CUSCO","LA CONVENCION","ECHARATE"]
[null,"CUSCO","LA CONVENCION","HUAYOPATA"]
[null,"CUSCO","LA CONVENCION","MARANURA"]
[null,"CUSCO","LA CONVENCION","OCOBAMBA"]
[null,"CUSCO","LA CONVENCION","QUELLOUNO"]
[null,"CUSCO","LA CONVENCION","QUIMBIRI"]
[null,"CUSCO","LA CONVENCION","SANTA TERESA"]
[null,"CUSCO","LA CONVENCION","VILCABAMBA"]
[null,"CUSCO","LA CONVENCION","PICHARI"]
[null,"CUSCO","PARURO","PARURO"]
[null,"CUSCO","PARURO","ACCHA"]
[null,"CUSCO","PARURO","CCAPI"]
[null,"CUSCO","PARURO","COLCHA"]
[null,"CUSCO","PARURO","HUANOQUITE"]
[null,"CUSCO","PARURO","OMACHA"]
[null,"CUSCO","PARURO","PACCARITAMBO"]
[null,"CUSCO","PARURO","PILLPINTO"]
[null,"CUSCO","PARURO","YAURISQUE"]
[null,"CUSCO","PAUCARTAMBO","PAUCARTAMBO"]
[null,"CUSCO","PAUCARTAMBO","CAICAY"]
[null,"CUSCO","PAUCARTAMBO","CHALLABAMBA"]
[null,"CUSCO","PAUCARTAMBO","COLQUEPATA"]
[null,"CUSCO","PAUCARTAMBO","HUANCARANI"]
[null,"CUSCO","PAUCARTAMBO","KOSÑIPATA"]
[null,"CUSCO","QUISPICANCHI","URCOS"]
[null,"CUSCO","QUISPICANCHI","ANDAHUAYLILLAS"]
[null,"CUSCO","QUISPICANCHI","CAMANTI"]
[null,"CUSCO","QUISPICANCHI","CCARHUAYO"]
[null,"CUSCO","QUISPICANCHI","CCATCA"]
[null,"CUSCO","QUISPICANCHI","CUSIPATA"]
[null,"CUSCO","QUISPICANCHI","HUARO"]
[null,"CUSCO","QUISPICANCHI","LUCRE"]
[null,"CUSCO","QUISPICANCHI","MARCAPATA"]
[null,"CUSCO","QUISPICANCHI","OCONGATE"]
[null,"CUSCO","QUISPICANCHI","OROPESA"]
[null,"CUSCO","QUISPICANCHI","QUIQUIJANA"]
[null,"CUSCO","URUBAMBA","URUBAMBA"]
[null,"CUSCO","URUBAMBA","CHINCHERO"]
[null,"CUSCO","URUBAMBA","HUAYLLABAMBA"]
[null,"CUSCO","URUBAMBA","MACHUPICCHU"]
[null,"CUSCO","URUBAMBA","MARAS"]
[null,"CUSCO","URUBAMBA","OLLANTAYTAMBO"]
[null,"CUSCO","URUBAMBA","YUCAY"]
[null,"HUANCAVELICA","HUANCAVELICA","HUANCAVELICA"]
[null,"HUANCAVELICA","HUANCAVELICA","ACOBAMBILLA"]
[null,"HUANCAVELICA","HUANCAVELICA","ACORIA"]
[null,"HUANCAVELICA","HUANCAVELICA","CONAYCA"]
[null,"HUANCAVELICA","HUANCAVELICA","CUENCA"]
[null,"HUANCAVELICA","HUANCAVELICA","HUACHOCOLPA"]
[null,"HUANCAVELICA","HUANCAVELICA","HUAYLLAHUARA"]
[null,"HUANCAVELICA","HUANCAVELICA","IZCUCHACA"]
[null,"HUANCAVELICA","HUANCAVELICA","LARIA"]
[null,"HUANCAVELICA","HUANCAVELICA","MANTA"]
[null,"HUANCAVELICA","HUANCAVELICA","MARISCAL CACERES"]
[null,"HUANCAVELICA","HUANCAVELICA","MOYA"]
[null,"HUANCAVELICA","HUANCAVELICA","NUEVO OCCORO"]
[null,"HUANCAVELICA","HUANCAVELICA","PALCA"]
[null,"HUANCAVELICA","HUANCAVELICA","PILCHACA"]
[null,"HUANCAVELICA","HUANCAVELICA","VILCA"]
[null,"HUANCAVELICA","HUANCAVELICA","YAULI"]
[null,"HUANCAVELICA","HUANCAVELICA","ASCENSION"]
[null,"HUANCAVELICA","HUANCAVELICA","HUANDO"]
[null,"HUANCAVELICA","ACOBAMBA","ACOBAMBA"]
[null,"HUANCAVELICA","ACOBAMBA","ANDABAMBA"]
[null,"HUANCAVELICA","ACOBAMBA","ANTA"]
[null,"HUANCAVELICA","ACOBAMBA","CAJA"]
[null,"HUANCAVELICA","ACOBAMBA","MARCAS"]
[null,"HUANCAVELICA","ACOBAMBA","PAUCARA"]
[null,"HUANCAVELICA","ACOBAMBA","POMACOCHA"]
[null,"HUANCAVELICA","ACOBAMBA","ROSARIO"]
[null,"HUANCAVELICA","ANGARAES","LIRCAY"]
[null,"HUANCAVELICA","ANGARAES","ANCHONGA"]
[null,"HUANCAVELICA","ANGARAES","CALLANMARCA"]
[null,"HUANCAVELICA","ANGARAES","CCOCHACCASA"]
[null,"HUANCAVELICA","ANGARAES","CHINCHO"]
[null,"HUANCAVELICA","ANGARAES","CONGALLA"]
[null,"HUANCAVELICA","ANGARAES","HUANCA-HUANCA"]
[null,"HUANCAVELICA","ANGARAES","HUAYLLAY GRANDE"]
[null,"HUANCAVELICA","ANGARAES","JULCAMARCA"]
[null,"HUANCAVELICA","ANGARAES","SAN ANTONIO DE ANTAPARCO"]
[null,"HUANCAVELICA","ANGARAES","SANTO TOMAS DE PATA"]
[null,"HUANCAVELICA","ANGARAES","SECCLLA"]
[null,"HUANCAVELICA","CASTROVIRREYNA","CASTROVIRREYNA"]
[null,"HUANCAVELICA","CASTROVIRREYNA","ARMA"]
[null,"HUANCAVELICA","CASTROVIRREYNA","AURAHUA"]
[null,"HUANCAVELICA","CASTROVIRREYNA","CAPILLAS"]
[null,"HUANCAVELICA","CASTROVIRREYNA","CHUPAMARCA"]
[null,"HUANCAVELICA","CASTROVIRREYNA","COCAS"]
[null,"HUANCAVELICA","CASTROVIRREYNA","HUACHOS"]
[null,"HUANCAVELICA","CASTROVIRREYNA","HUAMATAMBO"]
[null,"HUANCAVELICA","CASTROVIRREYNA","MOLLEPAMPA"]
[null,"HUANCAVELICA","CASTROVIRREYNA","SAN JUAN"]
[null,"HUANCAVELICA","CASTROVIRREYNA","SANTA ANA"]
[null,"HUANCAVELICA","CASTROVIRREYNA","TANTARA"]
[null,"HUANCAVELICA","CASTROVIRREYNA","TICRAPO"]
[null,"HUANCAVELICA","CHURCAMPA","CHURCAMPA"]
[null,"HUANCAVELICA","CHURCAMPA","ANCO"]
[null,"HUANCAVELICA","CHURCAMPA","CHINCHIHUASI"]
[null,"HUANCAVELICA","CHURCAMPA","EL CARMEN"]
[null,"HUANCAVELICA","CHURCAMPA","LA MERCED"]
[null,"HUANCAVELICA","CHURCAMPA","LOCROJA"]
[null,"HUANCAVELICA","CHURCAMPA","PAUCARBAMBA"]
[null,"HUANCAVELICA","CHURCAMPA","SAN MIGUEL DE MAYOCC"]
[null,"HUANCAVELICA","CHURCAMPA","SAN PEDRO DE CORIS"]
[null,"HUANCAVELICA","CHURCAMPA","PACHAMARCA"]
[null,"HUANCAVELICA","HUAYTARA","HUAYTARA"]
[null,"HUANCAVELICA","HUAYTARA","AYAVI"]
[null,"HUANCAVELICA","HUAYTARA","CORDOVA"]
[null,"HUANCAVELICA","HUAYTARA","HUAYACUNDO ARMA"]
[null,"HUANCAVELICA","HUAYTARA","LARAMARCA"]
[null,"HUANCAVELICA","HUAYTARA","OCOYO"]
[null,"HUANCAVELICA","HUAYTARA","PILPICHACA"]
[null,"HUANCAVELICA","HUAYTARA","QUERCO"]
[null,"HUANCAVELICA","HUAYTARA","QUITO-ARMA"]
[null,"HUANCAVELICA","HUAYTARA","SAN ANTONIO DE CUSICANCHA"]
[null,"HUANCAVELICA","HUAYTARA","SAN FRANCISCO DE SANGAYAICO"]
[null,"HUANCAVELICA","HUAYTARA","SAN ISIDRO"]
[null,"HUANCAVELICA","HUAYTARA","SANTIAGO DE CHOCORVOS"]
[null,"HUANCAVELICA","HUAYTARA","SANTIAGO DE QUIRAHUARA"]
[null,"HUANCAVELICA","HUAYTARA","SANTO DOMINGO DE CAPILLAS"]
[null,"HUANCAVELICA","HUAYTARA","TAMBO"]
[null,"HUANCAVELICA","TAYACAJA","PAMPAS"]
[null,"HUANCAVELICA","TAYACAJA","ACOSTAMBO"]
[null,"HUANCAVELICA","TAYACAJA","ACRAQUIA"]
[null,"HUANCAVELICA","TAYACAJA","AHUAYCHA"]
[null,"HUANCAVELICA","TAYACAJA","COLCABAMBA"]
[null,"HUANCAVELICA","TAYACAJA","DANIEL HERNANDEZ"]
[null,"HUANCAVELICA","TAYACAJA","HUACHOCOLPA"]
[null,"HUANCAVELICA","TAYACAJA","HUARIBAMBA"]
[null,"HUANCAVELICA","TAYACAJA","ÑAHUIMPUQUIO"]
[null,"HUANCAVELICA","TAYACAJA","PAZOS"]
[null,"HUANCAVELICA","TAYACAJA","QUISHUAR"]
[null,"HUANCAVELICA","TAYACAJA","SALCABAMBA"]
[null,"HUANCAVELICA","TAYACAJA","SALCAHUASI"]
[null,"HUANCAVELICA","TAYACAJA","SAN MARCOS DE ROCCHAC"]
[null,"HUANCAVELICA","TAYACAJA","SURCUBAMBA"]
[null,"HUANCAVELICA","TAYACAJA","TINTAY PUNCU"]
[null,"HUANUCO","HUANUCO","HUANUCO"]
[null,"HUANUCO","HUANUCO","AMARILIS"]
[null,"HUANUCO","HUANUCO","CHINCHAO"]
[null,"HUANUCO","HUANUCO","CHURUBAMBA"]
[null,"HUANUCO","HUANUCO","MARGOS"]
[null,"HUANUCO","HUANUCO","QUISQUI"]
[null,"HUANUCO","HUANUCO","SAN FRANCISCO DE CAYRAN"]
[null,"HUANUCO","HUANUCO","SAN PEDRO DE CHAULAN"]
[null,"HUANUCO","HUANUCO","SANTA MARIA DEL VALLE"]
[null,"HUANUCO","HUANUCO","YARUMAYO"]
[null,"HUANUCO","HUANUCO","PILLCO MARCA"]
[null,"HUANUCO","HUANUCO","YACUS"]
[null,"HUANUCO","HUANUCO","SAN PABLO DE PILLAO"]
[null,"HUANUCO","AMBO","AMBO"]
[null,"HUANUCO","AMBO","CAYNA"]
[null,"HUANUCO","AMBO","COLPAS"]
[null,"HUANUCO","AMBO","CONCHAMARCA"]
[null,"HUANUCO","AMBO","HUACAR"]
[null,"HUANUCO","AMBO","SAN FRANCISCO"]
[null,"HUANUCO","AMBO","SAN RAFAEL"]
[null,"HUANUCO","AMBO","TOMAY KICHWA"]
[null,"HUANUCO","DOS DE MAYO","LA UNION"]
[null,"HUANUCO","DOS DE MAYO","CHUQUIS"]
[null,"HUANUCO","DOS DE MAYO","MARIAS"]
[null,"HUANUCO","DOS DE MAYO","PACHAS"]
[null,"HUANUCO","DOS DE MAYO","QUIVILLA"]
[null,"HUANUCO","DOS DE MAYO","RIPAN"]
[null,"HUANUCO","DOS DE MAYO","SHUNQUI"]
[null,"HUANUCO","DOS DE MAYO","SILLAPATA"]
[null,"HUANUCO","DOS DE MAYO","YANAS"]
[null,"HUANUCO","HUACAYBAMBA","HUACAYBAMBA"]
[null,"HUANUCO","HUACAYBAMBA","CANCHABAMBA"]
[null,"HUANUCO","HUACAYBAMBA","COCHABAMBA"]
[null,"HUANUCO","HUACAYBAMBA","PINRA"]
[null,"HUANUCO","HUAMALIES","LLATA"]
[null,"HUANUCO","HUAMALIES","ARANCAY"]
[null,"HUANUCO","HUAMALIES","CHAVIN DE PARIARCA"]
[null,"HUANUCO","HUAMALIES","JACAS GRANDE"]
[null,"HUANUCO","HUAMALIES","JIRCAN"]
[null,"HUANUCO","HUAMALIES","MIRAFLORES"]
[null,"HUANUCO","HUAMALIES","MONZON"]
[null,"HUANUCO","HUAMALIES","PUNCHAO"]
[null,"HUANUCO","HUAMALIES","PUÑOS"]
[null,"HUANUCO","HUAMALIES","SINGA"]
[null,"HUANUCO","HUAMALIES","TANTAMAYO"]
[null,"HUANUCO","LEONCIO PRADO","RUPA-RUPA"]
[null,"HUANUCO","LEONCIO PRADO","DANIEL ALOMIAS ROBLES"]
[null,"HUANUCO","LEONCIO PRADO","HERMILIO VALDIZAN"]
[null,"HUANUCO","LEONCIO PRADO","JOSE CRESPO Y CASTILLO"]
[null,"HUANUCO","LEONCIO PRADO","LUYANDO"]
[null,"HUANUCO","LEONCIO PRADO","MARIANO DAMASO BERAUN"]
[null,"HUANUCO","LEONCIO PRADO","PUCAYACU"]
[null,"HUANUCO","LEONCIO PRADO","CASTILLO GRANDE"]
[null,"HUANUCO","LEONCIO PRADO","PUEBLO NUEVO"]
[null,"HUANUCO","LEONCIO PRADO","SANTO DOMINGO DE ANDA"]
[null,"HUANUCO","MARAÑON","HUACRACHUCO"]
[null,"HUANUCO","MARAÑON","CHOLON"]
[null,"HUANUCO","MARAÑON","SAN BUENAVENTURA"]
[null,"HUANUCO","MARAÑON","LA MORADA"]
[null,"HUANUCO","MARAÑON","SANTA ROSA DE ALTO YANAJANCA"]
[null,"HUANUCO","PACHITEA","PANAO"]
[null,"HUANUCO","PACHITEA","CHAGLLA"]
[null,"HUANUCO","PACHITEA","MOLINO"]
[null,"HUANUCO","PACHITEA","UMARI"]
[null,"HUANUCO","PUERTO INCA","PUERTO INCA"]
[null,"HUANUCO","PUERTO INCA","CODO DEL POZUZO"]
[null,"HUANUCO","PUERTO INCA","HONORIA"]
[null,"HUANUCO","PUERTO INCA","TOURNAVISTA"]
[null,"HUANUCO","PUERTO INCA","YUYAPICHIS"]
[null,"HUANUCO","LAURICOCHA","JESUS"]
[null,"HUANUCO","LAURICOCHA","BAÑOS"]
[null,"HUANUCO","LAURICOCHA","JIVIA"]
[null,"HUANUCO","LAURICOCHA","QUEROPALCA"]
[null,"HUANUCO","LAURICOCHA","RONDOS"]
[null,"HUANUCO","LAURICOCHA","SAN FRANCISCO DE ASIS"]
[null,"HUANUCO","LAURICOCHA","SAN MIGUEL DE CAURI"]
[null,"HUANUCO","YAROWILCA","CHAVINILLO"]
[null,"HUANUCO","YAROWILCA","CAHUAC"]
[null,"HUANUCO","YAROWILCA","CHACABAMBA"]
[null,"HUANUCO","YAROWILCA","APARICIO POMARES"]
[null,"HUANUCO","YAROWILCA","JACAS CHICO"]
[null,"HUANUCO","YAROWILCA","OBAS"]
[null,"HUANUCO","YAROWILCA","PAMPAMARCA"]
[null,"HUANUCO","YAROWILCA","CHORAS"]
[null,"ICA","ICA","ICA"]
[null,"ICA","ICA","LA TINGUIÑA"]
[null,"ICA","ICA","LOS AQUIJES"]
[null,"ICA","ICA","OCUCAJE"]
[null,"ICA","ICA","PACHACUTEC"]
[null,"ICA","ICA","PARCONA"]
[null,"ICA","ICA","PUEBLO NUEVO"]
[null,"ICA","ICA","SALAS"]
[null,"ICA","ICA","SAN JOSE DE LOS MOLINOS"]
[null,"ICA","ICA","SAN JUAN BAUTISTA"]
[null,"ICA","ICA","SANTIAGO"]
[null,"ICA","ICA","SUBTANJALLA"]
[null,"ICA","ICA","TATE"]
[null,"ICA","ICA","YAUCA DEL ROSARIO"]
[null,"ICA","CHINCHA","CHINCHA ALTA"]
[null,"ICA","CHINCHA","ALTO LARAN"]
[null,"ICA","CHINCHA","CHAVIN"]
[null,"ICA","CHINCHA","CHINCHA BAJA"]
[null,"ICA","CHINCHA","EL CARMEN"]
[null,"ICA","CHINCHA","GROCIO PRADO"]
[null,"ICA","CHINCHA","PUEBLO NUEVO"]
[null,"ICA","CHINCHA","SAN JUAN DE YANAC"]
[null,"ICA","CHINCHA","SAN PEDRO DE HUACARPANA"]
[null,"ICA","CHINCHA","SUNAMPE"]
[null,"ICA","CHINCHA","TAMBO DE MORA"]
[null,"ICA","NAZCA","NAZCA"]
[null,"ICA","NAZCA","CHANGUILLO"]
[null,"ICA","NAZCA","EL INGENIO"]
[null,"ICA","NAZCA","MARCONA"]
[null,"ICA","NAZCA","VISTA ALEGRE"]
[null,"ICA","PALPA","PALPA"]
[null,"ICA","PALPA","LLIPATA"]
[null,"ICA","PALPA","RIO GRANDE"]
[null,"ICA","PALPA","SANTA CRUZ"]
[null,"ICA","PALPA","TIBILLO"]
[null,"ICA","PISCO","PISCO"]
[null,"ICA","PISCO","HUANCANO"]
[null,"ICA","PISCO","HUMAY"]
[null,"ICA","PISCO","INDEPENDENCIA"]
[null,"ICA","PISCO","PARACAS"]
[null,"ICA","PISCO","SAN ANDRES"]
[null,"ICA","PISCO","SAN CLEMENTE"]
[null,"ICA","PISCO","TUPAC AMARU INCA"]
[null,"JUNIN","HUANCAYO","HUANCAYO"]
[null,"JUNIN","HUANCAYO","CARHUACALLANGA"]
[null,"JUNIN","HUANCAYO","CHACAPAMPA"]
[null,"JUNIN","HUANCAYO","CHICCHE"]
[null,"JUNIN","HUANCAYO","CHILCA"]
[null,"JUNIN","HUANCAYO","CHONGOS ALTO"]
[null,"JUNIN","HUANCAYO","CHUPURO"]
[null,"JUNIN","HUANCAYO","COLCA"]
[null,"JUNIN","HUANCAYO","CULLHUAS"]
[null,"JUNIN","HUANCAYO","EL TAMBO"]
[null,"JUNIN","HUANCAYO","HUACRAPUQUIO"]
[null,"JUNIN","HUANCAYO","HUALHUAS"]
[null,"JUNIN","HUANCAYO","HUANCAN"]
[null,"JUNIN","HUANCAYO","HUASICANCHA"]
[null,"JUNIN","HUANCAYO","HUAYUCACHI"]
[null,"JUNIN","HUANCAYO","INGENIO"]
[null,"JUNIN","HUANCAYO","PARIAHUANCA"]
[null,"JUNIN","HUANCAYO","PILCOMAYO"]
[null,"JUNIN","HUANCAYO","PUCARA"]
[null,"JUNIN","HUANCAYO","QUICHUAY"]
[null,"JUNIN","HUANCAYO","QUILCAS"]
[null,"JUNIN","HUANCAYO","SAN AGUSTIN"]
[null,"JUNIN","HUANCAYO","SAN JERONIMO DE TUNAN"]
[null,"JUNIN","HUANCAYO","SAÑO"]
[null,"JUNIN","HUANCAYO","SAPALLANGA"]
[null,"JUNIN","HUANCAYO","SICAYA"]
[null,"JUNIN","HUANCAYO","SANTO DOMINGO DE ACOBAMBA"]
[null,"JUNIN","HUANCAYO","VIQUES"]
[null,"JUNIN","CONCEPCION","CONCEPCION"]
[null,"JUNIN","CONCEPCION","ACO"]
[null,"JUNIN","CONCEPCION","ANDAMARCA"]
[null,"JUNIN","CONCEPCION","CHAMBARA"]
[null,"JUNIN","CONCEPCION","COCHAS"]
[null,"JUNIN","CONCEPCION","COMAS"]
[null,"JUNIN","CONCEPCION","HEROINAS TOLEDO"]
[null,"JUNIN","CONCEPCION","MANZANARES"]
[null,"JUNIN","CONCEPCION","MARISCAL CASTILLA"]
[null,"JUNIN","CONCEPCION","MATAHUASI"]
[null,"JUNIN","CONCEPCION","MITO"]
[null,"JUNIN","CONCEPCION","NUEVE DE JULIO"]
[null,"JUNIN","CONCEPCION","ORCOTUNA"]
[null,"JUNIN","CONCEPCION","SAN JOSE DE QUERO"]
[null,"JUNIN","CONCEPCION","SANTA ROSA DE OCOPA"]
[null,"JUNIN","CHANCHAMAYO","CHANCHAMAYO"]
[null,"JUNIN","CHANCHAMAYO","PERENE"]
[null,"JUNIN","CHANCHAMAYO","PICHANAQUI"]
[null,"JUNIN","CHANCHAMAYO","SAN LUIS DE SHUARO"]
[null,"JUNIN","CHANCHAMAYO","SAN RAMON"]
[null,"JUNIN","CHANCHAMAYO","VITOC"]
[null,"JUNIN","JAUJA","JAUJA"]
[null,"JUNIN","JAUJA","ACOLLA"]
[null,"JUNIN","JAUJA","APATA"]
[null,"JUNIN","JAUJA","ATAURA"]
[null,"JUNIN","JAUJA","CANCHAYLLO"]
[null,"JUNIN","JAUJA","CURICACA"]
[null,"JUNIN","JAUJA","EL MANTARO"]
[null,"JUNIN","JAUJA","HUAMALI"]
[null,"JUNIN","JAUJA","HUARIPAMPA"]
[null,"JUNIN","JAUJA","HUERTAS"]
[null,"JUNIN","JAUJA","JANJAILLO"]
[null,"JUNIN","JAUJA","JULCAN"]
[null,"JUNIN","JAUJA","LEONOR ORDOÑEZ"]
[null,"JUNIN","JAUJA","LLOCLLAPAMPA"]
[null,"JUNIN","JAUJA","MARCO"]
[null,"JUNIN","JAUJA","MASMA"]
[null,"JUNIN","JAUJA","MASMA CHICCHE"]
[null,"JUNIN","JAUJA","MOLINOS"]
[null,"JUNIN","JAUJA","MONOBAMBA"]
[null,"JUNIN","JAUJA","MUQUI"]
[null,"JUNIN","JAUJA","MUQUIYAUYO"]
[null,"JUNIN","JAUJA","PACA"]
[null,"JUNIN","JAUJA","PACCHA"]
[null,"JUNIN","JAUJA","PANCAN"]
[null,"JUNIN","JAUJA","PARCO"]
[null,"JUNIN","JAUJA","POMACANCHA"]
[null,"JUNIN","JAUJA","RICRAN"]
[null,"JUNIN","JAUJA","SAN LORENZO"]
[null,"JUNIN","JAUJA","SAN PEDRO DE CHUNAN"]
[null,"JUNIN","JAUJA","SAUSA"]
[null,"JUNIN","JAUJA","SINCOS"]
[null,"JUNIN","JAUJA","TUNAN MARCA"]
[null,"JUNIN","JAUJA","YAULI"]
[null,"JUNIN","JAUJA","YAUYOS"]
[null,"JUNIN","JUNIN","JUNIN"]
[null,"JUNIN","JUNIN","CARHUAMAYO"]
[null,"JUNIN","JUNIN","ONDORES"]
[null,"JUNIN","JUNIN","ULCUMAYO"]
[null,"JUNIN","SATIPO","SATIPO"]
[null,"JUNIN","SATIPO","COVIRIALI"]
[null,"JUNIN","SATIPO","LLAYLLA"]
[null,"JUNIN","SATIPO","MAZAMARI"]
[null,"JUNIN","SATIPO","PAMPA HERMOSA"]
[null,"JUNIN","SATIPO","PANGOA"]
[null,"JUNIN","SATIPO","RIO NEGRO"]
[null,"JUNIN","SATIPO","RIO TAMBO"]
[null,"JUNIN","TARMA","TARMA"]
[null,"JUNIN","TARMA","ACOBAMBA"]
[null,"JUNIN","TARMA","HUARICOLCA"]
[null,"JUNIN","TARMA","HUASAHUASI"]
[null,"JUNIN","TARMA","LA UNION"]
[null,"JUNIN","TARMA","PALCA"]
[null,"JUNIN","TARMA","PALCAMAYO"]
[null,"JUNIN","TARMA","SAN PEDRO DE CAJAS"]
[null,"JUNIN","TARMA","TAPO"]
[null,"JUNIN","YAULI","LA OROYA"]
[null,"JUNIN","YAULI","CHACAPALPA"]
[null,"JUNIN","YAULI","HUAY-HUAY"]
[null,"JUNIN","YAULI","MARCAPOMACOCHA"]
[null,"JUNIN","YAULI","MOROCOCHA"]
[null,"JUNIN","YAULI","PACCHA"]
[null,"JUNIN","YAULI","SANTA BARBARA DE CARHUACAYAN"]
[null,"JUNIN","YAULI","SANTA ROSA DE SACCO"]
[null,"JUNIN","YAULI","SUITUCANCHA"]
[null,"JUNIN","YAULI","YAULI"]
[null,"JUNIN","CHUPACA","CHUPACA"]
[null,"JUNIN","CHUPACA","AHUAC"]
[null,"JUNIN","CHUPACA","CHONGOS BAJO"]
[null,"JUNIN","CHUPACA","HUACHAC"]
[null,"JUNIN","CHUPACA","HUAMANCACA CHICO"]
[null,"JUNIN","CHUPACA","SAN JUAN DE YSCOS"]
[null,"JUNIN","CHUPACA","SAN JUAN DE JARPA"]
[null,"JUNIN","CHUPACA","TRES DE DICIEMBRE"]
[null,"JUNIN","CHUPACA","YANACANCHA"]
[null,"LA LIBERTAD","TRUJILLO","TRUJILLO"]
[null,"LA LIBERTAD","TRUJILLO","EL PORVENIR"]
[null,"LA LIBERTAD","TRUJILLO","FLORENCIA DE MORA"]
[null,"LA LIBERTAD","TRUJILLO","HUANCHACO"]
[null,"LA LIBERTAD","TRUJILLO","LA ESPERANZA"]
[null,"LA LIBERTAD","TRUJILLO","LAREDO"]
[null,"LA LIBERTAD","TRUJILLO","MOCHE"]
[null,"LA LIBERTAD","TRUJILLO","POROTO"]
[null,"LA LIBERTAD","TRUJILLO","SALAVERRY"]
[null,"LA LIBERTAD","TRUJILLO","SIMBAL"]
[null,"LA LIBERTAD","TRUJILLO","VICTOR LARCO HERRERA"]
[null,"LA LIBERTAD","ASCOPE","ASCOPE"]
[null,"LA LIBERTAD","ASCOPE","CHICAMA"]
[null,"LA LIBERTAD","ASCOPE","CHOCOPE"]
[null,"LA LIBERTAD","ASCOPE","MAGDALENA DE CAO"]
[null,"LA LIBERTAD","ASCOPE","PAIJAN"]
[null,"LA LIBERTAD","ASCOPE","RAZURI"]
[null,"LA LIBERTAD","ASCOPE","SANTIAGO DE CAO"]
[null,"LA LIBERTAD","ASCOPE","CASA GRANDE"]
[null,"LA LIBERTAD","BOLIVAR","BOLIVAR"]
[null,"LA LIBERTAD","BOLIVAR","BAMBAMARCA"]
[null,"LA LIBERTAD","BOLIVAR","CONDORMARCA"]
[null,"LA LIBERTAD","BOLIVAR","LONGOTEA"]
[null,"LA LIBERTAD","BOLIVAR","UCHUMARCA"]
[null,"LA LIBERTAD","BOLIVAR","UCUNCHA"]
[null,"LA LIBERTAD","CHEPEN","CHEPEN"]
[null,"LA LIBERTAD","CHEPEN","PACANGA"]
[null,"LA LIBERTAD","CHEPEN","PUEBLO NUEVO"]
[null,"LA LIBERTAD","JULCAN","JULCAN"]
[null,"LA LIBERTAD","JULCAN","CALAMARCA"]
[null,"LA LIBERTAD","JULCAN","CARABAMBA"]
[null,"LA LIBERTAD","JULCAN","HUASO"]
[null,"LA LIBERTAD","OTUZCO","OTUZCO"]
[null,"LA LIBERTAD","OTUZCO","AGALLPAMPA"]
[null,"LA LIBERTAD","OTUZCO","CHARAT"]
[null,"LA LIBERTAD","OTUZCO","HUARANCHAL"]
[null,"LA LIBERTAD","OTUZCO","LA CUESTA"]
[null,"LA LIBERTAD","OTUZCO","MACHE"]
[null,"LA LIBERTAD","OTUZCO","PARANDAY"]
[null,"LA LIBERTAD","OTUZCO","SALPO"]
[null,"LA LIBERTAD","OTUZCO","SINSICAP"]
[null,"LA LIBERTAD","OTUZCO","USQUIL"]
[null,"LA LIBERTAD","PACASMAYO","SAN PEDRO DE LLOC"]
[null,"LA LIBERTAD","PACASMAYO","GUADALUPE"]
[null,"LA LIBERTAD","PACASMAYO","JEQUETEPEQUE"]
[null,"LA LIBERTAD","PACASMAYO","PACASMAYO"]
[null,"LA LIBERTAD","PACASMAYO","SAN JOSE"]
[null,"LA LIBERTAD","PATAZ","TAYABAMBA"]
[null,"LA LIBERTAD","PATAZ","BULDIBUYO"]
[null,"LA LIBERTAD","PATAZ","CHILLIA"]
[null,"LA LIBERTAD","PATAZ","HUANCASPATA"]
[null,"LA LIBERTAD","PATAZ","HUAYLILLAS"]
[null,"LA LIBERTAD","PATAZ","HUAYO"]
[null,"LA LIBERTAD","PATAZ","ONGON"]
[null,"LA LIBERTAD","PATAZ","PARCOY"]
[null,"LA LIBERTAD","PATAZ","PATAZ"]
[null,"LA LIBERTAD","PATAZ","PIAS"]
[null,"LA LIBERTAD","PATAZ","SANTIAGO DE CHALLAS"]
[null,"LA LIBERTAD","PATAZ","TAURIJA"]
[null,"LA LIBERTAD","PATAZ","URPAY"]
[null,"LA LIBERTAD","SANCHEZ CARRION","HUAMACHUCO"]
[null,"LA LIBERTAD","SANCHEZ CARRION","CHUGAY"]
[null,"LA LIBERTAD","SANCHEZ CARRION","COCHORCO"]
[null,"LA LIBERTAD","SANCHEZ CARRION","CURGOS"]
[null,"LA LIBERTAD","SANCHEZ CARRION","MARCABAL"]
[null,"LA LIBERTAD","SANCHEZ CARRION","SANAGORAN"]
[null,"LA LIBERTAD","SANCHEZ CARRION","SARIN"]
[null,"LA LIBERTAD","SANCHEZ CARRION","SARTIMBAMBA"]
[null,"LA LIBERTAD","SANT. DE CHUCO","SANTIAGO DE CHUCO"]
[null,"LA LIBERTAD","SANT. DE CHUCO","ANGASMARCA"]
[null,"LA LIBERTAD","SANT. DE CHUCO","CACHICADAN"]
[null,"LA LIBERTAD","SANT. DE CHUCO","MOLLEBAMBA"]
[null,"LA LIBERTAD","SANT. DE CHUCO","MOLLEPATA"]
[null,"LA LIBERTAD","SANT. DE CHUCO","QUIRUVILCA"]
[null,"LA LIBERTAD","SANT. DE CHUCO","SANTA CRUZ DE CHUCA"]
[null,"LA LIBERTAD","SANT. DE CHUCO","SITABAMBA"]
[null,"LA LIBERTAD","GRAN CHIMU","CASCAS"]
[null,"LA LIBERTAD","GRAN CHIMU","LUCMA"]
[null,"LA LIBERTAD","GRAN CHIMU","COMPIN"]
[null,"LA LIBERTAD","GRAN CHIMU","SAYAPULLO"]
[null,"LA LIBERTAD","VIRU","VIRU"]
[null,"LA LIBERTAD","VIRU","CHAO"]
[null,"LA LIBERTAD","VIRU","GUADALUPITO"]
[null,"LAMBAYEQUE","CHICLAYO","CHICLAYO"]
[null,"LAMBAYEQUE","CHICLAYO","CHONGOYAPE"]
[null,"LAMBAYEQUE","CHICLAYO","ETEN"]
[null,"LAMBAYEQUE","CHICLAYO","ETEN PUERTO"]
[null,"LAMBAYEQUE","CHICLAYO","JOSE LEONARDO ORTIZ"]
[null,"LAMBAYEQUE","CHICLAYO","LA VICTORIA"]
[null,"LAMBAYEQUE","CHICLAYO","LAGUNAS"]
[null,"LAMBAYEQUE","CHICLAYO","MONSEFU"]
[null,"LAMBAYEQUE","CHICLAYO","NUEVA ARICA"]
[null,"LAMBAYEQUE","CHICLAYO","OYOTUN"]
[null,"LAMBAYEQUE","CHICLAYO","PICSI"]
[null,"LAMBAYEQUE","CHICLAYO","PIMENTEL"]
[null,"LAMBAYEQUE","CHICLAYO","REQUE"]
[null,"LAMBAYEQUE","CHICLAYO","SANTA ROSA"]
[null,"LAMBAYEQUE","CHICLAYO","SAÑA"]
[null,"LAMBAYEQUE","CHICLAYO","CAYALTI"]
[null,"LAMBAYEQUE","CHICLAYO","PATAPO"]
[null,"LAMBAYEQUE","CHICLAYO","POMALCA"]
[null,"LAMBAYEQUE","CHICLAYO","PUCALA"]
[null,"LAMBAYEQUE","CHICLAYO","TUMAN"]
[null,"LAMBAYEQUE","FERREÑAFE","FERREÑAFE"]
[null,"LAMBAYEQUE","FERREÑAFE","CAÑARIS"]
[null,"LAMBAYEQUE","FERREÑAFE","INCAHUASI"]
[null,"LAMBAYEQUE","FERREÑAFE","MANUEL ANTONIO MESONES MURO"]
[null,"LAMBAYEQUE","FERREÑAFE","PITIPO"]
[null,"LAMBAYEQUE","FERREÑAFE","PUEBLO NUEVO"]
[null,"LAMBAYEQUE","LAMBAYEQUE","LAMBAYEQUE"]
[null,"LAMBAYEQUE","LAMBAYEQUE","CHOCHOPE"]
[null,"LAMBAYEQUE","LAMBAYEQUE","ILLIMO"]
[null,"LAMBAYEQUE","LAMBAYEQUE","JAYANCA"]
[null,"LAMBAYEQUE","LAMBAYEQUE","MOCHUMI"]
[null,"LAMBAYEQUE","LAMBAYEQUE","MORROPE"]
[null,"LAMBAYEQUE","LAMBAYEQUE","MOTUPE"]
[null,"LAMBAYEQUE","LAMBAYEQUE","OLMOS"]
[null,"LAMBAYEQUE","LAMBAYEQUE","PACORA"]
[null,"LAMBAYEQUE","LAMBAYEQUE","SALAS"]
[null,"LAMBAYEQUE","LAMBAYEQUE","SAN JOSE"]
[null,"LAMBAYEQUE","LAMBAYEQUE","TUCUME"]
[null,"LIMA","LIMA","LIMA"]
[null,"LIMA","LIMA","ANCON"]
[null,"LIMA","LIMA","ATE"]
[null,"LIMA","LIMA","BARRANCO"]
[null,"LIMA","LIMA","BREÑA"]
[null,"LIMA","LIMA","CARABAYLLO"]
[null,"LIMA","LIMA","CHACLACAYO"]
[null,"LIMA","LIMA","CHORRILLOS"]
[null,"LIMA","LIMA","CIENEGUILLA"]
[null,"LIMA","LIMA","COMAS"]
[null,"LIMA","LIMA","EL AGUSTINO"]
[null,"LIMA","LIMA","INDEPENDENCIA"]
[null,"LIMA","LIMA","JESUS MARIA"]
[null,"LIMA","LIMA","LA MOLINA"]
[null,"LIMA","LIMA","LA VICTORIA"]
[null,"LIMA","LIMA","LINCE"]
[null,"LIMA","LIMA","LOS OLIVOS"]
[null,"LIMA","LIMA","LURIGANCHO"]
[null,"LIMA","LIMA","LURIN"]
[null,"LIMA","LIMA","MAGDALENA DEL MAR"]
[null,"LIMA","LIMA","PUEBLO LIBRE"]
[null,"LIMA","LIMA","MIRAFLORES"]
[null,"LIMA","LIMA","PACHACAMAC"]
[null,"LIMA","LIMA","PUCUSANA"]
[null,"LIMA","LIMA","PUENTE PIEDRA"]
[null,"LIMA","LIMA","PUNTA HERMOSA"]
[null,"LIMA","LIMA","PUNTA NEGRA"]
[null,"LIMA","LIMA","RIMAC"]
[null,"LIMA","LIMA","SAN BARTOLO"]
[null,"LIMA","LIMA","SAN BORJA"]
[null,"LIMA","LIMA","SAN ISIDRO"]
[null,"LIMA","LIMA","SAN JUAN DE LURIGANCHO"]
[null,"LIMA","LIMA","SAN JUAN DE MIRAFLORES"]
[null,"LIMA","LIMA","SAN LUIS"]
[null,"LIMA","LIMA","SAN MARTIN DE PORRES"]
[null,"LIMA","LIMA","SAN MIGUEL"]
[null,"LIMA","LIMA","SANTA ANITA"]
[null,"LIMA","LIMA","SANTA MARIA DEL MAR"]
[null,"LIMA","LIMA","SANTA ROSA"]
[null,"LIMA","LIMA","SANTIAGO DE SURCO"]
[null,"LIMA","LIMA","SURQUILLO"]
[null,"LIMA","LIMA","VILLA EL SALVADOR"]
[null,"LIMA","LIMA","VILLA MARIA DEL TRIUNFO"]
[null,"LIMA","BARRANCA","BARRANCA"]
[null,"LIMA","BARRANCA","PARAMONGA"]
[null,"LIMA","BARRANCA","PATIVILCA"]
[null,"LIMA","BARRANCA","SUPE"]
[null,"LIMA","BARRANCA","SUPE PUERTO"]
[null,"LIMA","CAJATAMBO","CAJATAMBO"]
[null,"LIMA","CAJATAMBO","COPA"]
[null,"LIMA","CAJATAMBO","GORGOR"]
[null,"LIMA","CAJATAMBO","HUANCAPON"]
[null,"LIMA","CAJATAMBO","MANAS"]
[null,"LIMA","CANTA","CANTA"]
[null,"LIMA","CANTA","ARAHUAY"]
[null,"LIMA","CANTA","HUAMANTANGA"]
[null,"LIMA","CANTA","HUAROS"]
[null,"LIMA","CANTA","LACHAQUI"]
[null,"LIMA","CANTA","SAN BUENAVENTURA"]
[null,"LIMA","CANTA","SANTA ROSA DE QUIVES"]
[null,"LIMA","CAÑETE","SAN VICENTE DE CAÑETE"]
[null,"LIMA","CAÑETE","ASIA"]
[null,"LIMA","CAÑETE","CALANGO"]
[null,"LIMA","CAÑETE","CERRO AZUL"]
[null,"LIMA","CAÑETE","CHILCA"]
[null,"LIMA","CAÑETE","COAYLLO"]
[null,"LIMA","CAÑETE","IMPERIAL"]
[null,"LIMA","CAÑETE","LUNAHUANA"]
[null,"LIMA","CAÑETE","MALA"]
[null,"LIMA","CAÑETE","NUEVO IMPERIAL"]
[null,"LIMA","CAÑETE","PACARAN"]
[null,"LIMA","CAÑETE","QUILMANA"]
[null,"LIMA","CAÑETE","SAN ANTONIO"]
[null,"LIMA","CAÑETE","SAN LUIS"]
[null,"LIMA","CAÑETE","SANTA CRUZ DE FLORES"]
[null,"LIMA","CAÑETE","ZUÑIGA"]
[null,"LIMA","HUARAL","HUARAL"]
[null,"LIMA","HUARAL","ATAVILLOS ALTO"]
[null,"LIMA","HUARAL","ATAVILLOS BAJO"]
[null,"LIMA","HUARAL","AUCALLAMA"]
[null,"LIMA","HUARAL","CHANCAY"]
[null,"LIMA","HUARAL","IHUARI"]
[null,"LIMA","HUARAL","LAMPIAN"]
[null,"LIMA","HUARAL","PACARAOS"]
[null,"LIMA","HUARAL","SAN MIGUEL DE ACOS"]
[null,"LIMA","HUARAL","SANTA CRUZ DE ANDAMARCA"]
[null,"LIMA","HUARAL","SUMBILCA"]
[null,"LIMA","HUARAL","VEINTISIETE DE NOVIEMBRE"]
[null,"LIMA","HUAROCHIRI","MATUCANA"]
[null,"LIMA","HUAROCHIRI","ANTIOQUIA"]
[null,"LIMA","HUAROCHIRI","CALLAHUANCA"]
[null,"LIMA","HUAROCHIRI","CARAMPOMA"]
[null,"LIMA","HUAROCHIRI","CHICLA"]
[null,"LIMA","HUAROCHIRI","CUENCA"]
[null,"LIMA","HUAROCHIRI","HUACHUPAMPA"]
[null,"LIMA","HUAROCHIRI","HUANZA"]
[null,"LIMA","HUAROCHIRI","HUAROCHIRI"]
[null,"LIMA","HUAROCHIRI","LAHUAYTAMBO"]
[null,"LIMA","HUAROCHIRI","LANGA"]
[null,"LIMA","HUAROCHIRI","LARAOS"]
[null,"LIMA","HUAROCHIRI","MARIATANA"]
[null,"LIMA","HUAROCHIRI","RICARDO PALMA"]
[null,"LIMA","HUAROCHIRI","SAN ANDRES DE TUPICOCHA"]
[null,"LIMA","HUAROCHIRI","SAN ANTONIO"]
[null,"LIMA","HUAROCHIRI","SAN BARTOLOME"]
[null,"LIMA","HUAROCHIRI","SAN DAMIAN"]
[null,"LIMA","HUAROCHIRI","SAN JUAN DE IRIS"]
[null,"LIMA","HUAROCHIRI","SAN JUAN DE TANTARANCHE"]
[null,"LIMA","HUAROCHIRI","SAN LORENZO DE QUINTI"]
[null,"LIMA","HUAROCHIRI","SAN MATEO"]
[null,"LIMA","HUAROCHIRI","SAN MATEO DE OTAO"]
[null,"LIMA","HUAROCHIRI","SAN PEDRO DE CASTA"]
[null,"LIMA","HUAROCHIRI","SAN PEDRO DE HUANCAYRE"]
[null,"LIMA","HUAROCHIRI","SANGALLAYA"]
[null,"LIMA","HUAROCHIRI","SANTA CRUZ DE COCACHACRA"]
[null,"LIMA","HUAROCHIRI","SANTA EULALIA"]
[null,"LIMA","HUAROCHIRI","SANTIAGO DE ANCHUCAYA"]
[null,"LIMA","HUAROCHIRI","SANTIAGO DE TUNA"]
[null,"LIMA","HUAROCHIRI","SANTO DOMINGO DE LOS OLLEROS"]
[null,"LIMA","HUAROCHIRI","SURCO"]
[null,"LIMA","HUAURA","HUACHO"]
[null,"LIMA","HUAURA","AMBAR"]
[null,"LIMA","HUAURA","CALETA DE CARQUIN"]
[null,"LIMA","HUAURA","CHECRAS"]
[null,"LIMA","HUAURA","HUALMAY"]
[null,"LIMA","HUAURA","HUAURA"]
[null,"LIMA","HUAURA","LEONCIO PRADO"]
[null,"LIMA","HUAURA","PACCHO"]
[null,"LIMA","HUAURA","SANTA LEONOR"]
[null,"LIMA","HUAURA","SANTA MARIA"]
[null,"LIMA","HUAURA","SAYAN"]
[null,"LIMA","HUAURA","VEGUETA"]
[null,"LIMA","OYON","OYON"]
[null,"LIMA","OYON","ANDAJES"]
[null,"LIMA","OYON","CAUJUL"]
[null,"LIMA","OYON","COCHAMARCA"]
[null,"LIMA","OYON","NAVAN"]
[null,"LIMA","OYON","PACHANGARA"]
[null,"LIMA","YAUYOS","YAUYOS"]
[null,"LIMA","YAUYOS","ALIS"]
[null,"LIMA","YAUYOS","AYAUCA"]
[null,"LIMA","YAUYOS","AYAVIRI"]
[null,"LIMA","YAUYOS","AZANGARO"]
[null,"LIMA","YAUYOS","CACRA"]
[null,"LIMA","YAUYOS","CARANIA"]
[null,"LIMA","YAUYOS","CATAHUASI"]
[null,"LIMA","YAUYOS","CHOCOS"]
[null,"LIMA","YAUYOS","COCHAS"]
[null,"LIMA","YAUYOS","COLONIA"]
[null,"LIMA","YAUYOS","HONGOS"]
[null,"LIMA","YAUYOS","HUAMPARA"]
[null,"LIMA","YAUYOS","HUANCAYA"]
[null,"LIMA","YAUYOS","HUANGASCAR"]
[null,"LIMA","YAUYOS","HUANTAN"]
[null,"LIMA","YAUYOS","HUAÑEC"]
[null,"LIMA","YAUYOS","LARAOS"]
[null,"LIMA","YAUYOS","LINCHA"]
[null,"LIMA","YAUYOS","MADEAN"]
[null,"LIMA","YAUYOS","MIRAFLORES"]
[null,"LIMA","YAUYOS","OMAS"]
[null,"LIMA","YAUYOS","PUTINZA"]
[null,"LIMA","YAUYOS","QUINCHES"]
[null,"LIMA","YAUYOS","QUINOCAY"]
[null,"LIMA","YAUYOS","SAN JOAQUIN"]
[null,"LIMA","YAUYOS","SAN PEDRO DE PILAS"]
[null,"LIMA","YAUYOS","TANTA"]
[null,"LIMA","YAUYOS","TAURIPAMPA"]
[null,"LIMA","YAUYOS","TOMAS"]
[null,"LIMA","YAUYOS","TUPE"]
[null,"LIMA","YAUYOS","VIÑAC"]
[null,"LIMA","YAUYOS","VITIS"]
[null,"LORETO","MAYNAS","IQUITOS"]
[null,"LORETO","MAYNAS","ALTO NANAY"]
[null,"LORETO","MAYNAS","FERNANDO LORES"]
[null,"LORETO","MAYNAS","INDIANA"]
[null,"LORETO","MAYNAS","LAS AMAZONAS"]
[null,"LORETO","MAYNAS","MAZAN"]
[null,"LORETO","MAYNAS","NAPO"]
[null,"LORETO","MAYNAS","PUNCHANA"]
[null,"LORETO","MAYNAS","PUTUMAYO"]
[null,"LORETO","MAYNAS","TORRES CAUSANA"]
[null,"LORETO","MAYNAS","BELEN"]
[null,"LORETO","MAYNAS","SAN JUAN BAUTISTA"]
[null,"LORETO","MAYNAS","TENIENTE MANUEL CLAVERO"]
[null,"LORETO","ALTO AMAZONAS","YURIMAGUAS"]
[null,"LORETO","ALTO AMAZONAS","BALSAPUERTO"]
[null,"LORETO","ALTO AMAZONAS","JEBEROS"]
[null,"LORETO","ALTO AMAZONAS","LAGUNAS"]
[null,"LORETO","ALTO AMAZONAS","SANTA CRUZ"]
[null,"LORETO","ALTO AMAZONAS","TENIENTE CESAR LOPEZ ROJAS"]
[null,"LORETO","LORETO","NAUTA"]
[null,"LORETO","LORETO","PARINARI"]
[null,"LORETO","LORETO","TIGRE"]
[null,"LORETO","LORETO","TROMPETEROS"]
[null,"LORETO","LORETO","URARINAS"]
[null,"LORETO","MARISCAL RAMON CASTILLA","RAMON CASTILLA"]
[null,"LORETO","MARISCAL RAMON CASTILLA","PEBAS"]
[null,"LORETO","MARISCAL RAMON CASTILLA","YAVARI"]
[null,"LORETO","MARISCAL RAMON CASTILLA","SAN PABLO"]
[null,"LORETO","REQUENA","REQUENA"]
[null,"LORETO","REQUENA","ALTO TAPICHE"]
[null,"LORETO","REQUENA","CAPELO"]
[null,"LORETO","REQUENA","EMILIO SAN MARTIN"]
[null,"LORETO","REQUENA","MAQUIA"]
[null,"LORETO","REQUENA","PUINAHUA"]
[null,"LORETO","REQUENA","SAQUENA"]
[null,"LORETO","REQUENA","SOPLIN"]
[null,"LORETO","REQUENA","TAPICHE"]
[null,"LORETO","REQUENA","JENARO HERRERA"]
[null,"LORETO","REQUENA","YAQUERANA"]
[null,"LORETO","UCAYALI","CONTAMANA"]
[null,"LORETO","UCAYALI","INAHUAYA"]
[null,"LORETO","UCAYALI","PADRE MARQUEZ"]
[null,"LORETO","UCAYALI","PAMPA HERMOSA"]
[null,"LORETO","UCAYALI","SARAYACU"]
[null,"LORETO","UCAYALI","VARGAS GUERRA"]
[null,"LORETO","DATEM DEL MARAÑON","BARRANCA"]
[null,"LORETO","DATEM DEL MARAÑON","CAHUAPANAS"]
[null,"LORETO","DATEM DEL MARAÑON","MANSERICHE"]
[null,"LORETO","DATEM DEL MARAÑON","MORONA"]
[null,"LORETO","DATEM DEL MARAÑON","PASTAZA"]
[null,"LORETO","DATEM DEL MARAÑON","ANDOAS"]
[null,"LORETO","PUTUMAYO","PUTUMAYO"]
[null,"LORETO","PUTUMAYO","ROSA PANDURO"]
[null,"LORETO","PUTUMAYO","TENIENTE MANUEL "]
[null,"LORETO","PUTUMAYO","YAGUAS"]
[null,"MADRE DE DIOS","TAMBOPATA","TAMBOPATA"]
[null,"MADRE DE DIOS","TAMBOPATA","INAMBARI"]
[null,"MADRE DE DIOS","TAMBOPATA","LAS PIEDRAS"]
[null,"MADRE DE DIOS","TAMBOPATA","LABERINTO"]
[null,"MADRE DE DIOS","MANU","MANU"]
[null,"MADRE DE DIOS","MANU","FITZCARRALD"]
[null,"MADRE DE DIOS","MANU","MADRE DE DIOS"]
[null,"MADRE DE DIOS","MANU","HUEPETUHE"]
[null,"MADRE DE DIOS","TAHUAMANU","IÑAPARI"]
[null,"MADRE DE DIOS","TAHUAMANU","IBERIA"]
[null,"MADRE DE DIOS","TAHUAMANU","TAHUAMANU"]
[null,"MOQUEGUA","MARISCAL NIETO","MOQUEGUA"]
[null,"MOQUEGUA","MARISCAL NIETO","CARUMAS"]
[null,"MOQUEGUA","MARISCAL NIETO","CUCHUMBAYA"]
[null,"MOQUEGUA","MARISCAL NIETO","SAMEGUA"]
[null,"MOQUEGUA","MARISCAL NIETO","SAN CRISTOBAL"]
[null,"MOQUEGUA","MARISCAL NIETO","TORATA"]
[null,"MOQUEGUA","MARISCAL NIETO","SAN ANTONIO"]
[null,"MOQUEGUA","GENERAL SANCHEZ CERRO","OMATE"]
[null,"MOQUEGUA","GENERAL SANCHEZ CERRO","CHOJATA"]
[null,"MOQUEGUA","GENERAL SANCHEZ CERRO","COALAQUE"]
[null,"MOQUEGUA","GENERAL SANCHEZ CERRO","ICHUÑA"]
[null,"MOQUEGUA","GENERAL SANCHEZ CERRO","LA CAPILLA"]
[null,"MOQUEGUA","GENERAL SANCHEZ CERRO","LLOQUE"]
[null,"MOQUEGUA","GENERAL SANCHEZ CERRO","MATALAQUE"]
[null,"MOQUEGUA","GENERAL SANCHEZ CERRO","PUQUINA"]
[null,"MOQUEGUA","GENERAL SANCHEZ CERRO","QUINISTAQUILLAS"]
[null,"MOQUEGUA","GENERAL SANCHEZ CERRO","UBINAS"]
[null,"MOQUEGUA","GENERAL SANCHEZ CERRO","YUNGA"]
[null,"MOQUEGUA","ILO","ILO"]
[null,"MOQUEGUA","ILO","EL ALGARROBAL"]
[null,"MOQUEGUA","ILO","PACOCHA"]
[null,"PASCO","PASCO","CHAUPIMARCA"]
[null,"PASCO","PASCO","HUACHON"]
[null,"PASCO","PASCO","HUARIACA"]
[null,"PASCO","PASCO","HUAYLLAY"]
[null,"PASCO","PASCO","NINACACA"]
[null,"PASCO","PASCO","PALLANCHACRA"]
[null,"PASCO","PASCO","PAUCARTAMBO"]
[null,"PASCO","PASCO","SAN FRANCISCO DE ASIS DE YARUS"]
[null,"PASCO","PASCO","SIMON BOLIVAR"]
[null,"PASCO","PASCO","TICLACAYAN"]
[null,"PASCO","PASCO","TINYAHUARCO"]
[null,"PASCO","PASCO","VICCO"]
[null,"PASCO","PASCO","YANACANCHA"]
[null,"PASCO","DANIEL ALCIDES CARRION","YANAHUANCA"]
[null,"PASCO","DANIEL ALCIDES CARRION","CHACAYAN"]
[null,"PASCO","DANIEL ALCIDES CARRION","GOYLLARISQUIZGA"]
[null,"PASCO","DANIEL ALCIDES CARRION","PAUCAR"]
[null,"PASCO","DANIEL ALCIDES CARRION","SAN PEDRO DE PILLAO"]
[null,"PASCO","DANIEL ALCIDES CARRION","SANTA ANA DE TUSI"]
[null,"PASCO","DANIEL ALCIDES CARRION","TAPUC"]
[null,"PASCO","DANIEL ALCIDES CARRION","VILCABAMBA"]
[null,"PASCO","OXAPAMPA","OXAPAMPA"]
[null,"PASCO","OXAPAMPA","CHONTABAMBA"]
[null,"PASCO","OXAPAMPA","HUANCABAMBA"]
[null,"PASCO","OXAPAMPA","PALCAZU"]
[null,"PASCO","OXAPAMPA","POZUZO"]
[null,"PASCO","OXAPAMPA","PUERTO BERMUDEZ"]
[null,"PASCO","OXAPAMPA","VILLA RICA"]
[null,"PASCO","OXAPAMPA","CONSTITUCION"]
[null,"PIURA","PIURA","PIURA"]
[null,"PIURA","PIURA","CASTILLA"]
[null,"PIURA","PIURA","CATACAOS"]
[null,"PIURA","PIURA","CURA MORI"]
[null,"PIURA","PIURA","EL TALLAN"]
[null,"PIURA","PIURA","LA ARENA"]
[null,"PIURA","PIURA","LA UNION"]
[null,"PIURA","PIURA","LAS LOMAS"]
[null,"PIURA","PIURA","TAMBO GRANDE"]
[null,"PIURA","PIURA","VEINTISEIS DE OCTUBRE"]
[null,"PIURA","AYABACA","AYABACA"]
[null,"PIURA","AYABACA","FRIAS"]
[null,"PIURA","AYABACA","JILILI"]
[null,"PIURA","AYABACA","LAGUNAS"]
[null,"PIURA","AYABACA","MONTERO"]
[null,"PIURA","AYABACA","PACAIPAMPA"]
[null,"PIURA","AYABACA","PAIMAS"]
[null,"PIURA","AYABACA","SAPILLICA"]
[null,"PIURA","AYABACA","SICCHEZ"]
[null,"PIURA","AYABACA","SUYO"]
[null,"PIURA","HUANCABAMBA","HUANCABAMBA"]
[null,"PIURA","HUANCABAMBA","CANCHAQUE"]
[null,"PIURA","HUANCABAMBA","EL CARMEN DE LA FRONTERA"]
[null,"PIURA","HUANCABAMBA","HUARMACA"]
[null,"PIURA","HUANCABAMBA","LALAQUIZ"]
[null,"PIURA","HUANCABAMBA","SAN MIGUEL DE EL FAIQUE"]
[null,"PIURA","HUANCABAMBA","SONDOR"]
[null,"PIURA","HUANCABAMBA","SONDORILLO"]
[null,"PIURA","MORROPON","CHULUCANAS"]
[null,"PIURA","MORROPON","BUENOS AIRES"]
[null,"PIURA","MORROPON","CHALACO"]
[null,"PIURA","MORROPON","LA MATANZA"]
[null,"PIURA","MORROPON","MORROPON"]
[null,"PIURA","MORROPON","SALITRAL"]
[null,"PIURA","MORROPON","SAN JUAN DE BIGOTE"]
[null,"PIURA","MORROPON","SANTA CATALINA DE MOSSA"]
[null,"PIURA","MORROPON","SANTO DOMINGO"]
[null,"PIURA","MORROPON","YAMANGO"]
[null,"PIURA","PAITA","PAITA"]
[null,"PIURA","PAITA","AMOTAPE"]
[null,"PIURA","PAITA","ARENAL"]
[null,"PIURA","PAITA","COLAN"]
[null,"PIURA","PAITA","LA HUACA"]
[null,"PIURA","PAITA","TAMARINDO"]
[null,"PIURA","PAITA","VICHAYAL"]
[null,"PIURA","SULLANA","SULLANA"]
[null,"PIURA","SULLANA","BELLAVISTA"]
[null,"PIURA","SULLANA","IGNACIO ESCUDERO"]
[null,"PIURA","SULLANA","LANCONES"]
[null,"PIURA","SULLANA","MARCAVELICA"]
[null,"PIURA","SULLANA","MIGUEL CHECA"]
[null,"PIURA","SULLANA","QUERECOTILLO"]
[null,"PIURA","SULLANA","SALITRAL"]
[null,"PIURA","TALARA","PARIÑAS"]
[null,"PIURA","TALARA","EL ALTO"]
[null,"PIURA","TALARA","LA BREA"]
[null,"PIURA","TALARA","LOBITOS"]
[null,"PIURA","TALARA","LOS ORGANOS"]
[null,"PIURA","TALARA","MANCORA"]
[null,"PIURA","SECHURA","SECHURA"]
[null,"PIURA","SECHURA","BELLAVISTA DE LA UNION"]
[null,"PIURA","SECHURA","BERNAL"]
[null,"PIURA","SECHURA","CRISTO NOS VALGA"]
[null,"PIURA","SECHURA","VICE"]
[null,"PIURA","SECHURA","RINCONADA LLICUAR"]
[null,"PUNO","PUNO","PUNO"]
[null,"PUNO","PUNO","ACORA"]
[null,"PUNO","PUNO","AMANTANI"]
[null,"PUNO","PUNO","ATUNCOLLA"]
[null,"PUNO","PUNO","CAPACHICA"]
[null,"PUNO","PUNO","CHUCUITO"]
[null,"PUNO","PUNO","COATA"]
[null,"PUNO","PUNO","HUATA"]
[null,"PUNO","PUNO","MAÑAZO"]
[null,"PUNO","PUNO","PAUCARCOLLA"]
[null,"PUNO","PUNO","PICHACANI"]
[null,"PUNO","PUNO","PLATERIA"]
[null,"PUNO","PUNO","SAN ANTONIO"]
[null,"PUNO","PUNO","TIQUILLACA"]
[null,"PUNO","PUNO","VILQUE"]
[null,"PUNO","AZANGARO","AZANGARO"]
[null,"PUNO","AZANGARO","ACHAYA"]
[null,"PUNO","AZANGARO","ARAPA"]
[null,"PUNO","AZANGARO","ASILLO"]
[null,"PUNO","AZANGARO","CAMINACA"]
[null,"PUNO","AZANGARO","CHUPA"]
[null,"PUNO","AZANGARO","JOSE DOMINGO CHOQUEHUANCA"]
[null,"PUNO","AZANGARO","MUÑANI"]
[null,"PUNO","AZANGARO","POTONI"]
[null,"PUNO","AZANGARO","SAMAN"]
[null,"PUNO","AZANGARO","SAN ANTON"]
[null,"PUNO","AZANGARO","SAN JOSE"]
[null,"PUNO","AZANGARO","SAN JUAN DE SALINAS"]
[null,"PUNO","AZANGARO","SANTIAGO DE PUPUJA"]
[null,"PUNO","AZANGARO","TIRAPATA"]
[null,"PUNO","CARABAYA","MACUSANI"]
[null,"PUNO","CARABAYA","AJOYANI"]
[null,"PUNO","CARABAYA","AYAPATA"]
[null,"PUNO","CARABAYA","COASA"]
[null,"PUNO","CARABAYA","CORANI"]
[null,"PUNO","CARABAYA","CRUCERO"]
[null,"PUNO","CARABAYA","ITUATA"]
[null,"PUNO","CARABAYA","OLLACHEA"]
[null,"PUNO","CARABAYA","SAN GABAN"]
[null,"PUNO","CARABAYA","USICAYOS"]
[null,"PUNO","CHUCUITO","JULI"]
[null,"PUNO","CHUCUITO","DESAGUADERO"]
[null,"PUNO","CHUCUITO","HUACULLANI"]
[null,"PUNO","CHUCUITO","KELLUYO"]
[null,"PUNO","CHUCUITO","PISACOMA"]
[null,"PUNO","CHUCUITO","POMATA"]
[null,"PUNO","CHUCUITO","ZEPITA"]
[null,"PUNO","EL COLLAO","ILAVE"]
[null,"PUNO","EL COLLAO","CAPAZO"]
[null,"PUNO","EL COLLAO","PILCUYO"]
[null,"PUNO","EL COLLAO","SANTA ROSA"]
[null,"PUNO","EL COLLAO","CONDURIRI"]
[null,"PUNO","HUANCANE","HUANCANE"]
[null,"PUNO","HUANCANE","COJATA"]
[null,"PUNO","HUANCANE","HUATASANI"]
[null,"PUNO","HUANCANE","INCHUPALLA"]
[null,"PUNO","HUANCANE","PUSI"]
[null,"PUNO","HUANCANE","ROSASPATA"]
[null,"PUNO","HUANCANE","TARACO"]
[null,"PUNO","HUANCANE","VILQUE CHICO"]
[null,"PUNO","LAMPA","LAMPA"]
[null,"PUNO","LAMPA","CABANILLA"]
[null,"PUNO","LAMPA","CALAPUJA"]
[null,"PUNO","LAMPA","NICASIO"]
[null,"PUNO","LAMPA","OCUVIRI"]
[null,"PUNO","LAMPA","PALCA"]
[null,"PUNO","LAMPA","PARATIA"]
[null,"PUNO","LAMPA","PUCARA"]
[null,"PUNO","LAMPA","SANTA LUCIA"]
[null,"PUNO","LAMPA","VILAVILA"]
[null,"PUNO","MELGAR","AYAVIRI"]
[null,"PUNO","MELGAR","ANTAUTA"]
[null,"PUNO","MELGAR","CUPI"]
[null,"PUNO","MELGAR","LLALLI"]
[null,"PUNO","MELGAR","MACARI"]
[null,"PUNO","MELGAR","NUÑOA"]
[null,"PUNO","MELGAR","ORURILLO"]
[null,"PUNO","MELGAR","SANTA ROSA"]
[null,"PUNO","MELGAR","UMACHIRI"]
[null,"PUNO","MOHO","MOHO"]
[null,"PUNO","MOHO","CONIMA"]
[null,"PUNO","MOHO","HUAYRAPATA"]
[null,"PUNO","MOHO","TILALI"]
[null,"PUNO","SAN ANTONIO DE PUTINA","PUTINA"]
[null,"PUNO","SAN ANTONIO DE PUTINA","ANANEA"]
[null,"PUNO","SAN ANTONIO DE PUTINA","PEDRO VILCA APAZA"]
[null,"PUNO","SAN ANTONIO DE PUTINA","QUILCAPUNCU"]
[null,"PUNO","SAN ANTONIO DE PUTINA","SINA"]
[null,"PUNO","SAN ROMAN","JULIACA"]
[null,"PUNO","SAN ROMAN","CABANA"]
[null,"PUNO","SAN ROMAN","CABANILLAS"]
[null,"PUNO","SAN ROMAN","CARACOTO"]
[null,"PUNO","SAN ROMAN","SAN MIGUEL"]
[null,"PUNO","SANDIA","SANDIA"]
[null,"PUNO","SANDIA","CUYOCUYO"]
[null,"PUNO","SANDIA","LIMBANI"]
[null,"PUNO","SANDIA","PATAMBUCO"]
[null,"PUNO","SANDIA","PHARA"]
[null,"PUNO","SANDIA","QUIACA"]
[null,"PUNO","SANDIA","SAN JUAN DEL ORO"]
[null,"PUNO","SANDIA","YANAHUAYA"]
[null,"PUNO","SANDIA","ALTO INAMBARI"]
[null,"PUNO","SANDIA","SAN PEDRO DE PUTINA PUNCO"]
[null,"PUNO","YUNGUYO","YUNGUYO"]
[null,"PUNO","YUNGUYO","ANAPIA"]
[null,"PUNO","YUNGUYO","COPANI"]
[null,"PUNO","YUNGUYO","CUTURAPI"]
[null,"PUNO","YUNGUYO","OLLARAYA"]
[null,"PUNO","YUNGUYO","TINICACHI"]
[null,"PUNO","YUNGUYO","UNICACHI"]
[null,"SAN MARTIN","MOYOBAMBA","MOYOBAMBA"]
[null,"SAN MARTIN","MOYOBAMBA","CALZADA"]
[null,"SAN MARTIN","MOYOBAMBA","HABANA"]
[null,"SAN MARTIN","MOYOBAMBA","JEPELACIO"]
[null,"SAN MARTIN","MOYOBAMBA","SORITOR"]
[null,"SAN MARTIN","MOYOBAMBA","YANTALO"]
[null,"SAN MARTIN","BELLAVISTA","BELLAVISTA"]
[null,"SAN MARTIN","BELLAVISTA","ALTO BIAVO"]
[null,"SAN MARTIN","BELLAVISTA","BAJO BIAVO"]
[null,"SAN MARTIN","BELLAVISTA","HUALLAGA"]
[null,"SAN MARTIN","BELLAVISTA","SAN PABLO"]
[null,"SAN MARTIN","BELLAVISTA","SAN RAFAEL"]
[null,"SAN MARTIN","EL DORADO","SAN JOSE DE SISA"]
[null,"SAN MARTIN","EL DORADO","AGUA BLANCA"]
[null,"SAN MARTIN","EL DORADO","SAN MARTIN"]
[null,"SAN MARTIN","EL DORADO","SANTA ROSA"]
[null,"SAN MARTIN","EL DORADO","SHATOJA"]
[null,"SAN MARTIN","HUALLAGA","SAPOSOA"]
[null,"SAN MARTIN","HUALLAGA","ALTO SAPOSOA"]
[null,"SAN MARTIN","HUALLAGA","EL ESLABON"]
[null,"SAN MARTIN","HUALLAGA","PISCOYACU"]
[null,"SAN MARTIN","HUALLAGA","SACANCHE"]
[null,"SAN MARTIN","HUALLAGA","TINGO DE SAPOSOA"]
[null,"SAN MARTIN","LAMAS","LAMAS"]
[null,"SAN MARTIN","LAMAS","ALONSO DE ALVARADO"]
[null,"SAN MARTIN","LAMAS","BARRANQUITA"]
[null,"SAN MARTIN","LAMAS","CAYNARACHI"]
[null,"SAN MARTIN","LAMAS","CUÑUMBUQUI"]
[null,"SAN MARTIN","LAMAS","PINTO RECODO"]
[null,"SAN MARTIN","LAMAS","RUMISAPA"]
[null,"SAN MARTIN","LAMAS","SAN ROQUE DE CUMBAZA"]
[null,"SAN MARTIN","LAMAS","SHANAO"]
[null,"SAN MARTIN","LAMAS","TABALOSOS"]
[null,"SAN MARTIN","LAMAS","ZAPATERO"]
[null,"SAN MARTIN","MARISCAL CACERES","JUANJUI"]
[null,"SAN MARTIN","MARISCAL CACERES","CAMPANILLA"]
[null,"SAN MARTIN","MARISCAL CACERES","HUICUNGO"]
[null,"SAN MARTIN","MARISCAL CACERES","PACHIZA"]
[null,"SAN MARTIN","MARISCAL CACERES","PAJARILLO"]
[null,"SAN MARTIN","PICOTA","PICOTA"]
[null,"SAN MARTIN","PICOTA","BUENOS AIRES"]
[null,"SAN MARTIN","PICOTA","CASPISAPA"]
[null,"SAN MARTIN","PICOTA","PILLUANA"]
[null,"SAN MARTIN","PICOTA","PUCACACA"]
[null,"SAN MARTIN","PICOTA","SAN CRISTOBAL"]
[null,"SAN MARTIN","PICOTA","SAN HILARION"]
[null,"SAN MARTIN","PICOTA","SHAMBOYACU"]
[null,"SAN MARTIN","PICOTA","TINGO DE PONASA"]
[null,"SAN MARTIN","PICOTA","TRES UNIDOS"]
[null,"SAN MARTIN","RIOJA","RIOJA"]
[null,"SAN MARTIN","RIOJA","AWAJUN"]
[null,"SAN MARTIN","RIOJA","ELIAS SOPLIN VARGAS"]
[null,"SAN MARTIN","RIOJA","NUEVA CAJAMARCA"]
[null,"SAN MARTIN","RIOJA","PARDO MIGUEL"]
[null,"SAN MARTIN","RIOJA","POSIC"]
[null,"SAN MARTIN","RIOJA","SAN FERNANDO"]
[null,"SAN MARTIN","RIOJA","YORONGOS"]
[null,"SAN MARTIN","RIOJA","YURACYACU"]
[null,"SAN MARTIN","SAN MARTIN","TARAPOTO"]
[null,"SAN MARTIN","SAN MARTIN","ALBERTO LEVEAU"]
[null,"SAN MARTIN","SAN MARTIN","CACATACHI"]
[null,"SAN MARTIN","SAN MARTIN","CHAZUTA"]
[null,"SAN MARTIN","SAN MARTIN","CHIPURANA"]
[null,"SAN MARTIN","SAN MARTIN","EL PORVENIR"]
[null,"SAN MARTIN","SAN MARTIN","HUIMBAYOC"]
[null,"SAN MARTIN","SAN MARTIN","JUAN GUERRA"]
[null,"SAN MARTIN","SAN MARTIN","LA BANDA DE SHILCAYO"]
[null,"SAN MARTIN","SAN MARTIN","MORALES"]
[null,"SAN MARTIN","SAN MARTIN","PAPAPLAYA"]
[null,"SAN MARTIN","SAN MARTIN","SAN ANTONIO"]
[null,"SAN MARTIN","SAN MARTIN","SAUCE"]
[null,"SAN MARTIN","SAN MARTIN","SHAPAJA"]
[null,"SAN MARTIN","TOCACHE","TOCACHE"]
[null,"SAN MARTIN","TOCACHE","NUEVO PROGRESO"]
[null,"SAN MARTIN","TOCACHE","POLVORA"]
[null,"SAN MARTIN","TOCACHE","SHUNTE"]
[null,"SAN MARTIN","TOCACHE","UCHIZA"]
[null,"SAN MARTIN","TOCACHE","SANTA LUCIA"]
[null,"TACNA","TACNA","TACNA"]
[null,"TACNA","TACNA","ALTO DE LA ALIANZA"]
[null,"TACNA","TACNA","CALANA"]
[null,"TACNA","TACNA","CIUDAD NUEVA"]
[null,"TACNA","TACNA","INCLAN"]
[null,"TACNA","TACNA","PACHIA"]
[null,"TACNA","TACNA","PALCA"]
[null,"TACNA","TACNA","POCOLLAY"]
[null,"TACNA","TACNA","SAMA"]
[null,"TACNA","TACNA","CORONEL GREGORIO ALBARRACIN LA"]
[null,"TACNA","CANDARAVE","CANDARAVE"]
[null,"TACNA","CANDARAVE","CAIRANI"]
[null,"TACNA","CANDARAVE","CAMILACA"]
[null,"TACNA","CANDARAVE","CURIBAYA"]
[null,"TACNA","CANDARAVE","HUANUARA"]
[null,"TACNA","CANDARAVE","QUILAHUANI"]
[null,"TACNA","JORGE BASADRE","LOCUMBA"]
[null,"TACNA","JORGE BASADRE","ILABAYA"]
[null,"TACNA","JORGE BASADRE","ITE"]
[null,"TACNA","TARATA","TARATA"]
[null,"TACNA","TARATA","HEROES ALBARRACIN"]
[null,"TACNA","TARATA","ESTIQUE"]
[null,"TACNA","TARATA","ESTIQUE-PAMPA"]
[null,"TACNA","TARATA","SITAJARA"]
[null,"TACNA","TARATA","SUSAPAYA"]
[null,"TACNA","TARATA","TARUCACHI"]
[null,"TACNA","TARATA","TICACO"]
[null,"TUMBES","TUMBES","TUMBES"]
[null,"TUMBES","TUMBES","CORRALES"]
[null,"TUMBES","TUMBES","LA CRUZ"]
[null,"TUMBES","TUMBES","PAMPAS DE HOSPITAL"]
[null,"TUMBES","TUMBES","SAN JACINTO"]
[null,"TUMBES","TUMBES","SAN JUAN DE LA VIRGEN"]
[null,"TUMBES","CONTRALMIRANTE VILLAR","ZORRITOS"]
[null,"TUMBES","CONTRALMIRANTE VILLAR","CASITAS"]
[null,"TUMBES","CONTRALMIRANTE VILLAR","CANOAS DE PUNTA SAL"]
[null,"TUMBES","ZARUMILLA","ZARUMILLA"]
[null,"TUMBES","ZARUMILLA","AGUAS VERDES"]
[null,"TUMBES","ZARUMILLA","MATAPALO"]
[null,"TUMBES","ZARUMILLA","PAPAYAL"]
[null,"UCAYALI","CORONEL PORTILLO","CALLERIA"]
[null,"UCAYALI","CORONEL PORTILLO","CAMPOVERDE"]
[null,"UCAYALI","CORONEL PORTILLO","IPARIA"]
[null,"UCAYALI","CORONEL PORTILLO","MASISEA"]
[null,"UCAYALI","CORONEL PORTILLO","YARINACOCHA"]
[null,"UCAYALI","CORONEL PORTILLO","NUEVA REQUENA"]
[null,"UCAYALI","CORONEL PORTILLO","MANANTAY"]
[null,"UCAYALI","ATALAYA","RAYMONDI"]
[null,"UCAYALI","ATALAYA","SEPAHUA"]
[null,"UCAYALI","ATALAYA","TAHUANIA"]
[null,"UCAYALI","ATALAYA","YURUA"]
[null,"UCAYALI","PADRE ABAD","PADRE ABAD"]
[null,"UCAYALI","PADRE ABAD","IRAZOLA"]
[null,"UCAYALI","PADRE ABAD","CURIMANA"]
[null,"UCAYALI","PADRE ABAD","NESHUYA"]
[null,"UCAYALI","PADRE ABAD","ALEXANDER VON HUMBOLDT"]
[null,"UCAYALI","PURUS","PURUS"]

{"sheet":"CIE","index":4,"n_rows":113,"n_cols":3,"rows_kept":113,"cut":false,"hidden":true,"merged":[]}
["R630","ANOREXIA","R630"]
["F500","ANOREXIA NERVIOSA","F500"]
["F501","ANOREXIA NERVIOSA ATIPICA","F501"]
["M139","ARTRITIS, NO ESPECIFICADA","M139"]
["M189","ARTROSIS DE LA PRIMERA ARTICULACION CARPOMETACARPIANA, SIN OTRA ESPECIFICACION","M189"]
["M182","ARTROSIS POSTRAUMATICA DE LA PRIMERA ARTICULACION CARPOMETACARPIANA, BILATERAL","M182"]
["M191","ARTROSIS POSTRAUMATICA DE OTRAS ARTICULACIONES","M191"]
["M180","ARTROSIS PRIMARIA DE LA PRIMERA ARTICULACION CARPOMETACARPIANA, BILATERAL","M180"]
["M190","ARTROSIS PRIMARIA DE OTRAS ARTICULACIONES","M190"]
["M192","ARTROSIS SECUNDARIA DE OTRAS ARTICULACIONES","M192"]
["M199","ARTROSIS, NO ESPECIFICADA","M199"]
["G406","ATAQUES DE GRAN MAL, NO ESPECIFICADOS (CON O SIN PEQUEÑO MAL)","G406"]
["Z542","CONVALECENCIA CONSECUTIVA A QUIMIOTERAPIA","Z542"]
["E124","DIABETES MELLITUS ASOCIADA CON DESNUTRICION CON COMPLICACIONES NEUROLOGICAS","E124"]
["E104","DIABETES MELLITUS INSULINODEPENDIENTE CON COMPLICACIONES NEUROLOGICAS","E104"]
["E114","DIABETES MELLITUS NO INSULINODEPENDIENTE CON COMPLICACIONES NEUROLOGICAS","E114"]
["E144","DIABETES MELLITUS, NO ESPECIFICADA CON COMPLICACIONES NEUROLOGICAS","E144"]
["R520","DOLOR AGUDO","R520"]
["R521","DOLOR CRONICO INTRATABLE","R521"]
["R529","DOLOR, NO ESPECIFICADO","R529"]
["Y570","EFECTOS ADVERSOS DE DEPRESORES DEL APETITO [ANOREXICOS]","Y570"]
["G20","ENFERMEDAD DE PARKINSON","G20"]
["B220","ENFERMEDAD POR VIH, RESULTANTE EN ENCEFALOPATIA","B220"]
["B222","ENFERMEDAD POR VIH, RESULTANTE EN SINDROME CAQUECTICO","B222"]
["B24","ENFERMEDAD POR VIRUS DE LA INMUNODEFICIENCIA HUMANA (VIH), SIN OTRA ESPECIFICACION","B24"]
["G403","EPILEPSIA Y SINDROMES EPILEPTICOS IDIOPATICOS GENERALIZADOS","G403"]
["G400","EPILEPSIA Y SINDROMES EPILEPTICOS IDIOPATICOS RELACIONADOS CON LOCALIZACIONES (FOCALES) (PARCIALES) Y CON ATAQUES DE INICIO LOCALIZADO","G400"]
["G402","EPILEPSIA Y SINDROMES EPILEPTICOS SINTOMATICOS RELACIONADOS CON LOCALIZACIONES (FOCALES) (PARCIALES) Y CON ATAQUES PARCIALES COMPLEJOS","G402"]
["G401","EPILEPSIA Y SINDROMES EPILEPTICOS SINTOMATICOS RELACIONADOS CON LOCALIZACIONES (FOCALES) (PARCIALES) Y CON ATAQUES PARCIALES SIMPLES","G401"]
["G409","EPILEPSIA, TIPO NO ESPECIFICADO","G409"]
["G375","ESCLEROSIS CONCENTRICA (BALO)","G375"]
["G370","ESCLEROSIS DIFUSA","G370"]
["G35","ESCLEROSIS MULTIPLE","G35"]
["G410","ESTADO DE GRAN MAL EPILEPTICO","G410"]
["G419","ESTADO DE MAL EPILEPTICO DE TIPO NO ESPECIFICADO","G419"]
["G412","ESTADO DE MAL EPILEPTICO PARCIAL COMPLEJO","G412"]
["G411","ESTADO DE PEQUEÑO MAL EPILEPTICO","G411"]
["A89","INFECCION VIRAL DEL SISTEMA NERVIOSO CENTRAL, NO ESPECIFICADA","A89"]
["A819","INFECCIONES DEL SISTEMA NERVIOSO CENTRAL POR VIRUS ATIPICO, SIN OTRA ESPECIFICACION","A819"]
["A812","LEUCOENCEFALOPATIA MULTIFOCAL PROGRESIVA","A812"]
["M131","MONOARTRITIS, NO CLASIFICADA EN OTRA PARTE","M131"]
["G589","MONONEUROPATIA, NO ESPECIFICADA","G589"]
["G130","NEUROMIOPATIA Y NEUROPATIA PARANEOPLASICA","G130"]
["G602","NEUROPATIA ASOCIADA CON ATAXIA HEREDITARIA","G602"]
["G609","NEUROPATIA HEREDITARIA E IDIOPATICA, SIN OTRA ESPECIFICACION","G609"]
["G603","NEUROPATIA PROGRESIVA IDIOPATICA","G603"]
["G600","NEUROPTIA HEREDITARIA MOTORA Y SENSORIAL","G600"]
["M138","OTRAS ARTRITIS ESPECIFICADAS","M138"]
["M198","OTRAS ARTROSIS ESPECIFICADAS","M198"]
["M183","OTRAS ARTROSIS POSTRAUMATICAS DE LA PRIMERA ARTICULACION CARPOMETACARPIANA","M183"]
["M181","OTRAS ARTROSIS PRIMARIAS DE LA PRIMERA ARTICULACION CARPOMETACARPIANA","M181"]
["M185","OTRAS ARTROSIS SECUNDARIAS DE LA PRIMERA ARTICULACION CARPOMETACARPIANA","M185"]
["M184","OTRAS ARTROSIS SECUNDARIAS DE LA PRIMERA ARTICULACION CARPOMETACARPIANA, BILATERALES","M184"]
["E134","OTRAS DIABETES MELLITUS ESPECIFICADAS CON COMPLICACIONES NEUROLOGICAS","E134"]
["G408","OTRAS EPILEPSIAS","G408"]
["G404","OTRAS EPILEPSIAS Y SINDROMES EPILEPTICOS GENERALIZADOS","G404"]
["A818","OTRAS INFECCIONES DEL SISTEMA NERVIOSO POR VIRUS ATIPICO","A818"]
["A888","OTRAS INFECCIONES VIRALES ESPECIFICADAS DEL SISTEMA NERVIOSO CENTRAL","A888"]
["G608","OTRAS NEUROPATIAS HEREDITARIAS E IDIOPATICAS","G608"]
["R522","OTRO DOLOR CRONICO","R522"]
["G418","OTROS ESTADOS EPILÉPTICOS","G418"]
["G218","OTROS TIPOS DE PARKINSONISMO SECUNDARIO","G218"]
["G22","PARKINSONISMO EN ENFERMEDADES CLASIFICADAS EN OTRA PARTE","G22"]
["G213","PARKINSONISMO POSTENCEFALITICO","G213"]
["G212","PARKINSONISMO SECUNDARIO DEBIDO A OTROS AGENTES EXTERNOS","G212"]
["G219","PARKINSONISMO SECUNDARIO, NO ESPECIFICADO","G219"]
["G407","PEQUEÑO MAL, NO ESPECIFICADO (SIN ATAQUE DE GRAN MAL)","G407"]
["M130","POLIARTRITIS, NO ESPECIFICADA","M130"]
["G09","SECUELAS DE ENFERMEDADES INFLAMATORIAS DEL SISTEMA NERVIOSO CENTRAL","G09"]
["G210","SINDROME NEUROLEPTICO MALIGNO","G210"]
["G405","SINDROMES EPILEPTICOS ESPECIALES","G405"]
["F064","TRASTORNO DE ANSIEDAD, ORGANICO","F064"]
["F412","TRASTORNO MIXTO DE ANSIEDAD Y DEPRESION","F412"]
["F413","OTROS TRASTORNOS DE ANSIEDAD MIXTOS","F413"]
["F418","OTROS TRASTORNOS DE ANSIEDAD ESPECIFICADOS","F418"]
["F419","TRASTORNO DE ANSIEDAD, NO ESPECIFICADO","F419"]
["F431","TRASTORNO DE ESTRES POSTRAUMATICO","F431"]
["F932","TRASTORNO DE ANSIEDAD SOCIAL EN LA NIÑEZ","F932"]
["G35","ESCLEROSIS MULTIPLE","G35"]
["G40.81"," Síndrome de Lennox-Gastaut","G40.81"]
["G40.811","Síndrome de Lennox-Gastaut, no intratable, con estado de mal epiléptico","G40.811"]
["G40.812 "," Síndrome de Lennox-Gastaut, no intratable, sin estado de mal epiléptico","G40.812 "]
["G40.813 "," Síndrome de Lennox-Gastaut, intratable, con estado de mal epiléptico","G40.813 "]
["G40.814"," Síndrome de Lennox-Gastaut, intratable, sin estado de mal epiléptico","G40.814"]
["G20","ENFERMEDAD DE PARKINSON","G20"]
["G210","SINDROME NEUROLEPTICO MALIGNO","G210"]
["G211","OTRO PARKINSONISMO SECUNDARIO INDUCIDO POR DROGAS","G211"]
["G212","PARKINSONISMO SECUNDARIO DEBIDO A OTROS AGENTES EXTERNOS","G212"]
["G213","PARKINSONISMO POSTENCEFALITICO","G213"]
["G214","PARKINSONISMO VASCULAR","G214"]
["G218","OTROS TIPOS DE PARKINSONISMO SECUNDARIO","G218"]
["G219","PARKINSONISMO SECUNDARIO, NO ESPECIFICADO","G219"]
["G22","PARKINSONISMO EN ENFERMEDADES CLASIFICADAS EN OTRA PARTE","G22"]
["G400","EPILEPSIA Y SINDROMES EPILEPTICOS IDIOPATICOS RELACIONADOS CON LOCALIZACIONES (FOCALES)(PARCIALES) Y CON ATAQUES DE INICIO LOCALIZADO","G400"]
["G401","EPILEPSIA Y SINDROMES EPILEPTICOS SINTOMATICOS RELACIONADOS CON LOCALIZACIONES (FOCALES)(PARCIALES) Y CON ATAQUES PARCIALES SIMPLES","G401"]
["G402","EPILEPSIA Y SINDROMES EPILEPTICOS SINTOMATICOS RELACIONADOS CON LOCALIZACIONES (FOCALES)(PARCIALES) Y CON ATAQUES PARCIALES COMPLEJOS","G402"]
["G403","EPILEPSIA Y SINDROMES EPILEPTICOS IDIOPATICOS GENERALIZADOS","G403"]
["G404","OTRAS EPILEPSIAS Y SINDROMES EPILEPTICOS GENERALIZADOS","G404"]
["G405","SINDROMES EPILEPTICOS ESPECIALES","G405"]
["G408","OTRAS EPILEPSIAS","G408"]
["G409","EPILEPSIA, TIPO NO ESPECIFICADO","G409"]
["G410","ESTADO DE GRAN MAL EPILEPTICO","G410"]
["G411","ESTADO DE PEQUEÑO MAL EPILEPTICO","G411"]
["G412","ESTADO DE MAL EPILEPTICO PARCIAL COMPLEJO","G412"]
["G418","OTROS ESTADOS EPILEPTICOS","G418"]
["G419","ESTADO DE MAL EPILEPTICO DE TIPO NO ESPECIFICADO","G419"]
["G479","TRASTORNO DEL SUEÑO, NO ESPECIFICADO","G479"]
["M797","FIBROMIALGIA","M797"]
["R630","ANOREXIA","R630"]
["R521","DOLOR CRONICO INTRATABLE","R521"]
["R522","OTRO DOLOR CRONICO","R522"]
["Q851","ESCLEROSIS TUBEROSA","Q851"]
["Otros","Otros","Otros"]

{"sheet":"DEPARTAMENTO","index":5,"n_rows":26,"n_cols":2,"rows_kept":26,"cut":false,"hidden":true,"merged":[]}
["CÓDIGO DEPARTAMENTO","Departamento"]
[1,"AMAZONAS"]
[2,"ANCASH"]
[3,"APURIMAC"]
[4,"AREQUIPA"]
[5,"AYACUCHO"]
[6,"CAJAMARCA"]
[7,"CALLAO"]
[8,"CUSCO"]
[9,"HUANCAVELICA"]
[10,"HUANUCO"]
[11,"ICA"]
[12,"JUNIN"]
[13,"LA LIBERTAD"]
[14,"LAMBAYEQUE"]
[15,"LIMA"]
[16,"LORETO"]
[17,"MADRE DE DIOS"]
[18,"MOQUEGUA"]
[19,"PASCO"]
[20,"PIURA"]
[21,"PUNO"]
[22,"SAN MARTIN"]
[23,"TACNA"]
[24,"TUMBES"]
[25,"UCAYALI"]

{"sheet":"PROVINCIA","index":6,"n_rows":198,"n_cols":3,"rows_kept":198,"cut":false,"hidden":true,"merged":[]}
["CÓDIGO DEPARTAMENTO","CÓDIGO PROVINCIA","Provincia"]
[1,1,"CHACHAPOYAS"]
[1,2,"BAGUA"]
[1,3,"BONGARA"]
[1,4,"CONDORCANQUI"]
[1,5,"LUYA"]
[1,6,"RODRIGUEZ DE MENDOZA"]
[1,7,"UTCUBAMBA"]
[2,1,"HUARAZ"]
[2,2,"AIJA"]
[2,3,"ANTONIO RAYMONDI"]
[2,4,"ASUNCION"]
[2,5,"BOLOGNESI"]
[2,6,"CARHUAZ"]
[2,7,"CARLOS FERMIN FITZCARRALD"]
[2,8,"CASMA"]
[2,9,"CORONGO"]
[2,10,"HUARI"]
[2,11,"HUARMEY"]
[2,12,"HUAYLAS"]
[2,13,"MARISCAL LUZURIAGA"]
[2,14,"OCROS"]
[2,15,"PALLASCA"]
[2,16,"POMABAMBA"]
[2,17,"RECUAY"]
[2,18,"SANTA"]
[2,19,"SIHUAS"]
[2,20,"YUNGAY"]
[3,1,"ABANCAY"]
[3,2,"ANDAHUAYLAS"]
[3,3,"ANTABAMBA"]
[3,4,"AYMARAES"]
[3,5,"COTABAMBAS"]
[3,6,"CHINCHEROS"]
[3,7,"GRAU"]
[4,1,"AREQUIPA"]
[4,2,"CAMANA"]
[4,3,"CARAVELI"]
[4,4,"CASTILLA"]
[4,5,"CAYLLOMA"]
[4,6,"CONDESUYOS"]
[4,7,"ISLAY"]
[4,8,"LA UNION"]
[5,1,"HUAMANGA"]
[5,2,"CANGALLO"]
[5,3,"HUANCA SANCOS"]
[5,4,"HUANTA"]
[5,5,"LA MAR"]
[5,6,"LUCANAS"]
[5,7,"PARINACOCHAS"]
[5,8,"PAUCAR DEL SARA SARA"]
[5,9,"SUCRE"]
[5,10,"VICTOR FAJARDO"]
[5,10,"VICTOR FAFARDO"]
[5,11,"VILCAS HUAMAN"]
[6,1,"CAJAMARCA"]
[6,2,"CAJABAMBA"]
[6,3,"CELENDIN"]
[6,4,"CHOTA"]
[6,5,"CONTUMAZA"]
[6,6,"CUTERVO"]
[6,7,"HUALGAYOC"]
[6,8,"JAEN"]
[6,9,"SAN IGNACIO"]
[6,10,"SAN MARCOS"]
[6,11,"SAN MIGUEL"]
[6,12,"SAN PABLO"]
[6,13,"SANTA CRUZ"]
[7,1,"CALLAO"]
[8,1,"CUSCO"]
[8,2,"ACOMAYO"]
[8,3,"ANTA"]
[8,4,"CALCA"]
[8,5,"CANAS"]
[8,6,"CANCHIS"]
[8,7,"CHUMBIVILCAS"]
[8,8,"ESPINAR"]
[8,9,"LA CONVENCION"]
[8,10,"PARURO"]
[8,11,"PAUCARTAMBO"]
[8,12,"QUISPICANCHI"]
[8,13,"URUBAMBA"]
[9,1,"HUANCAVELICA"]
[9,2,"ACOBAMBA"]
[9,3,"ANGARAES"]
[9,4,"CASTROVIRREYNA"]
[9,5,"CHURCAMPA"]
[9,6,"HUAYTARA"]
[9,7,"TAYACAJA"]
[10,1,"HUANUCO"]
[10,2,"AMBO"]
[10,3,"DOS DE MAYO"]
[10,4,"HUACAYBAMBA"]
[10,5,"HUAMALIES"]
[10,6,"LEONCIO PRADO"]
[10,7,"MARAÑON"]
[10,8,"PACHITEA"]
[10,9,"PUERTO INCA"]
[10,10,"LAURICOCHA"]
[10,11,"YAROWILCA"]
[11,1,"ICA"]
[11,2,"CHINCHA"]
[11,3,"NAZCA"]
[11,4,"PALPA"]
[11,5,"PISCO"]
[12,1,"HUANCAYO"]
[12,2,"CONCEPCION"]
[12,3,"CHANCHAMAYO"]
[12,4,"JAUJA"]
[12,5,"JUNIN"]
[12,6,"SATIPO"]
[12,7,"TARMA"]
[12,8,"YAULI"]
[12,9,"CHUPACA"]
[13,1,"TRUJILLO"]
[13,2,"ASCOPE"]
[13,3,"BOLIVAR"]
[13,4,"CHEPEN"]
[13,5,"JULCAN"]
[13,6,"OTUZCO"]
[13,7,"PACASMAYO"]
[13,8,"PATAZ"]
[13,9,"SANCHEZ CARRION"]
[13,10,"SANTIAGO DE CHUCO"]
[13,11,"GRAN CHIMU"]
[13,12,"VIRU"]
[14,1,"CHICLAYO"]
[14,2,"FERREÑAFE"]
[14,3,"LAMBAYEQUE"]
[15,1,"LIMA"]
[15,2,"BARRANCA"]
[15,3,"CAJATAMBO"]
[15,4,"CANTA"]
[15,5,"CAÑETE"]
[15,6,"HUARAL"]
[15,7,"HUAROCHIRI"]
[15,8,"HUAURA"]
[15,9,"OYON"]
[15,10,"YAUYOS"]
[16,1,"MAYNAS"]
[16,2,"ALTO AMAZONAS"]
[16,3,"LORETO"]
[16,4,"MARISCAL RAMON CASTILLA"]
[16,5,"REQUENA"]
[16,6,"UCAYALI"]
[16,7,"DATEM DEL MARAÑON"]
[17,1,"TAMBOPATA"]
[17,2,"MANU"]
[17,3,"TAHUAMANU"]
[18,1,"MARISCAL NIETO"]
[18,2,"GENERAL SANCHEZ CERRO"]
[18,3,"ILO"]
[19,1,"PASCO"]
[19,2,"DANIEL ALCIDES CARRION"]
[19,3,"OXAPAMPA"]
[20,1,"PIURA"]
[20,1,"PUIRA"]
[20,2,"AYABACA"]
[20,3,"HUANCABAMBA"]
[20,4,"MORROPON"]
[20,5,"PAITA"]
[20,6,"SULLANA"]
[20,7,"TALARA"]
[20,8,"SECHURA"]
[21,1,"PUNO"]
[21,2,"AZANGARO"]
[21,3,"CARABAYA"]
[21,4,"CHUCUITO"]
[21,5,"EL COLLAO"]
[21,6,"HUANCANE"]
[21,7,"LAMPA"]
[21,8,"MELGAR"]
[21,9,"MOHO"]
[21,10,"SAN ANTONIO DE PUTINA"]
[21,11,"SAN ROMAN"]
[21,12,"SANDIA"]
[21,13,"YUNGUYO"]
[22,1,"MOYOBAMBA"]
[22,2,"BELLAVISTA"]
[22,3,"EL DORADO"]
[22,4,"HUALLAGA"]
[22,5,"LAMAS"]
[22,6,"MARISCAL CACERES"]
[22,7,"PICOTA"]
[22,8,"RIOJA"]
[22,9,"SAN MARTIN"]
[22,10,"TOCACHE"]
[23,1,"TACNA"]
[23,2,"CANDARAVE"]
[23,3,"JORGE BASADRE"]
[23,4,"TARATA"]
[24,1,"TUMBES"]
[24,2,"CONTRALMIRANTE VILLAR"]
[24,3,"ZARUMILLA"]
[25,1,"CORONEL PORTILLO"]
[25,2,"ATALAYA"]
[25,3,"PADRE ABAD"]
[25,4,"PURUS"]

{"sheet":"DISTRITO","index":7,"n_rows":1835,"n_cols":7,"rows_kept":1835,"cut":false,"hidden":true,"merged":[]}
["CÓDIGO DEPARTAMENTO","CÓDIGO PROVINCIA","CÓDIGO DISTRITO","Distrito"]
[1,1,1,"CHACHAPOYAS"]
[1,1,2,"ASUNCION"]
[1,1,3,"BALSAS"]
[1,1,4,"CHETO",null,null,{"$f":"IMPRESION!D29","v":""}]
[1,1,5,"CHILIQUIN"]
[1,1,6,"CHUQUIBAMBA"]
[1,1,7,"GRANADA"]
[1,1,8,"HUANCAS"]
[1,1,9,"LA JALCA"]
[1,1,10,"LEIMEBAMBA"]
[1,1,11,"LEVANTO"]
[1,1,12,"MAGDALENA"]
[1,1,13,"MARISCAL CASTILLA"]
[1,1,14,"MOLINOPAMPA"]
[1,1,15,"MONTEVIDEO"]
[1,1,16,"OLLEROS"]
[1,1,17,"QUINJALCA"]
[1,1,18,"SAN FRANCISCO DE DAGUAS"]
[1,1,19,"SAN ISIDRO DE MAINO"]
[1,1,20,"SOLOCO"]
[1,1,21,"SONCHE"]
[1,2,1,"LA PECA"]
[1,2,2,"ARAMANGO"]
[1,2,3,"COPALLIN"]
[1,2,4,"EL PARCO"]
[1,2,5,"IMAZA"]
[1,2,6,"BAGUA"]
[1,3,1,"JUMBILLA"]
[1,3,2,"CHISQUILLA"]
[1,3,3,"CHURUJA"]
[1,3,4,"COROSHA"]
[1,3,5,"CUISPES"]
[1,3,6,"FLORIDA"]
[1,3,7,"JAZAN"]
[1,3,8,"RECTA"]
[1,3,9,"SAN CARLOS"]
[1,3,10,"SHIPASBAMBA"]
[1,3,11,"VALERA"]
[1,3,12,"YAMBRASBAMBA"]
[1,4,1,"NIEVA"]
[1,4,2,"EL CENEPA"]
[1,4,3,"RIO SANTIAGO"]
[1,5,1,"LAMUD"]
[1,5,2,"CAMPORREDONDO"]
[1,5,3,"COCABAMBA"]
[1,5,4,"COLCAMAR"]
[1,5,5,"CONILA"]
[1,5,6,"INGUILPATA"]
[1,5,7,"LONGUITA"]
[1,5,8,"LONYA CHICO"]
[1,5,9,"LUYA"]
[1,5,10,"LUYA VIEJO"]
[1,5,11,"MARIA"]
[1,5,12,"OCALLI"]
[1,5,13,"OCUMAL"]
[1,5,14,"PISUQUIA"]
[1,5,15,"PROVIDENCIA"]
[1,5,16,"SAN CRISTOBAL"]
[1,5,17,"SAN FRANCISCO DEL YESO"]
[1,5,18,"SAN JERONIMO"]
[1,5,19,"SAN JUAN DE LOPECANCHA"]
[1,5,20,"SANTA CATALINA"]
[1,5,21,"SANTO TOMAS"]
[1,5,22,"TINGO"]
[1,5,23,"TRITA"]
[1,6,1,"SAN NICOLAS"]
[1,6,2,"CHIRIMOTO"]
[1,6,3,"COCHAMAL"]
[1,6,4,"HUAMBO"]
[1,6,5,"LIMABAMBA"]
[1,6,6,"LONGAR"]
[1,6,7,"MARISCAL BENAVIDES"]
[1,6,8,"MILPUC"]
[1,6,9,"OMIA"]
[1,6,10,"SANTA ROSA"]
[1,6,11,"TOTORA"]
[1,6,12,"VISTA ALEGRE"]
[1,7,1,"BAGUA GRANDE"]
[1,7,2,"CAJARURO"]
[1,7,3,"CUMBA"]
[1,7,4,"EL MILAGRO"]
[1,7,5,"JAMALCA"]
[1,7,6,"LONYA GRANDE"]
[1,7,7,"YAMON"]
[2,1,1,"HUARAZ"]
[2,1,2,"COCHABAMBA"]
[2,1,3,"COLCABAMBA"]
[2,1,4,"HUANCHAY"]
[2,1,5,"INDEPENDENCIA"]
[2,1,6,"JANGAS"]
[2,1,7,"LA LIBERTAD"]
[2,1,8,"OLLEROS"]
[2,1,9,"PAMPAS"]
[2,1,10,"PARIACOTO"]
[2,1,11,"PIRA"]
[2,1,12,"TARICA"]
[2,2,1,"AIJA"]
[2,2,2,"CORIS"]
[2,2,3,"HUACLLAN"]
[2,2,4,"LA MERCED"]
[2,2,5,"SUCCHA"]
[2,3,1,"LLAMELLIN"]
[2,3,2,"ACZO"]
[2,3,3,"CHACCHO"]
[2,3,4,"CHINGAS"]
[2,3,5,"MIRGAS"]
[2,3,6,"SAN JUAN DE RONTOY"]
[2,4,1,"CHACAS"]
[2,4,2,"ACOCHACA"]
[2,5,1,"CHIQUIAN"]
[2,5,2,"ABELARDO PARDO LEZAMETA"]
[2,5,3,"ANTONIO RAYMONDI"]
[2,5,4,"AQUIA"]
[2,5,5,"CAJACAY"]
[2,5,6,"CANIS"]
[2,5,7,"COLQUIOC"]
[2,5,8,"HUALLANCA"]
[2,5,9,"HUASTA"]
[2,5,10,"HUAYLLACAYAN"]
[2,5,11,"LA PRIMAVERA"]
[2,5,12,"MANGAS"]
[2,5,13,"PACLLON"]
[2,5,14,"SAN MIGUEL DE CORPANQUI"]
[2,5,15,"TICLLOS"]
[2,6,1,"CARHUAZ"]
[2,6,2,"ACOPAMPA"]
[2,6,3,"AMASHCA"]
[2,6,4,"ANTA"]
[2,6,5,"ATAQUERO"]
[2,6,6,"MARCARA"]
[2,6,7,"PARIAHUANCA"]
[2,6,8,"SAN MIGUEL DE ACO"]
[2,6,9,"SHILLA"]
[2,6,10,"TINCO"]
[2,6,11,"YUNGAR"]
[2,7,1,"SAN LUIS"]
[2,7,2,"SAN NICOLAS"]
[2,7,3,"YAUYA"]
[2,8,1,"CASMA"]
[2,8,2,"BUENA VISTA ALTA"]
[2,8,3,"COMANDANTE NOEL"]
[2,8,4,"YAUTAN"]
[2,9,1,"CORONGO"]
[2,9,2,"ACO"]
[2,9,3,"BAMBAS"]
[2,9,4,"CUSCA"]
[2,9,5,"LA PAMPA"]
[2,9,6,"YANAC"]
[2,9,7,"YUPAN"]
[2,10,1,"HUARI"]
[2,10,2,"ANRA"]
[2,10,3,"CAJAY"]
[2,10,4,"CHAVIN DE HUANTAR"]
[2,10,5,"HUACACHI"]
[2,10,6,"HUACCHIS"]
[2,10,7,"HUACHIS"]
[2,10,8,"HUANTAR"]
[2,10,9,"MASIN"]
[2,10,10,"PAUCAS"]
[2,10,11,"PONTO"]
[2,10,12,"RAHUAPAMPA"]
[2,10,13,"RAPAYAN"]
[2,10,14,"SAN MARCOS"]
[2,10,15,"SAN PEDRO DE CHANA"]
[2,10,16,"UCO"]
[2,11,1,"HUARMEY"]
[2,11,2,"COCHAPETI"]
[2,11,3,"CULEBRAS"]
[2,11,4,"HUAYAN"]
[2,11,5,"MALVAS"]
[2,12,1,"CARAZ"]
[2,12,2,"HUALLANCA"]
[2,12,3,"HUATA"]
[2,12,4,"HUAYLAS"]
[2,12,5,"MATO"]
[2,12,6,"PAMPAROMAS"]
[2,12,7,"PUEBLO LIBRE"]
[2,12,8,"SANTA CRUZ"]
[2,12,9,"SANTO TORIBIO"]
[2,12,10,"YURACMARCA"]
[2,13,1,"PISCOBAMBA"]
[2,13,2,"CASCA"]
[2,13,3,"ELEAZAR GUZMAN BARRON"]
[2,13,4,"FIDEL OLIVAS ESCUDERO"]
[2,13,5,"LLAMA"]
[2,13,6,"LLUMPA"]
[2,13,7,"LUCMA"]
[2,13,8,"MUSGA"]
[2,14,1,"OCROS"]
[2,14,2,"ACAS"]
[2,14,3,"CAJAMARQUILLA"]
[2,14,4,"CARHUAPAMPA"]
[2,14,5,"COCHAS"]
[2,14,6,"CONGAS"]
[2,14,7,"LLIPA"]
[2,14,8,"SAN CRISTOBAL DE RAJAN"]
[2,14,9,"SAN PEDRO"]
[2,14,10,"SANTIAGO DE CHILCAS"]
[2,15,1,"CABANA"]
[2,15,2,"BOLOGNESI"]
[2,15,3,"CONCHUCOS"]
[2,15,4,"HUACASCHUQUE"]
[2,15,5,"HUANDOVAL"]
[2,15,6,"LACABAMBA"]
[2,15,7,"LLAPO"]
[2,15,8,"PALLASCA"]
[2,15,9,"PAMPAS"]
[2,15,10,"SANTA ROSA"]
[2,15,11,"TAUCA"]
[2,16,1,"POMABAMBA"]
[2,16,2,"HUAYLLAN"]
[2,16,3,"PAROBAMBA"]
[2,16,4,"QUINUABAMBA"]
[2,17,1,"RECUAY"]
[2,17,2,"CATAC"]
[2,17,3,"COTAPARACO"]
[2,17,4,"HUAYLLAPAMPA"]
[2,17,5,"LLACLLIN"]
[2,17,6,"MARCA"]
[2,17,7,"PAMPAS CHICO"]
[2,17,8,"PARARIN"]
[2,17,9,"TAPACOCHA"]
[2,17,10,"TICAPAMPA"]
[2,18,1,"CHIMBOTE"]
[2,18,2,"CACERES DEL PERU"]
[2,18,3,"COISHCO"]
[2,18,4,"MACATE"]
[2,18,5,"MORO"]
[2,18,6,"NEPEÑA"]
[2,18,7,"SAMANCO"]
[2,18,8,"SANTA"]
[2,18,9,"NUEVO CHIMBOTE"]
[2,19,1,"SIHUAS"]
[2,19,2,"ACOBAMBA"]
[2,19,3,"ALFONSO UGARTE"]
[2,19,4,"CASHAPAMPA"]
[2,19,5,"CHINGALPO"]
[2,19,6,"HUAYLLABAMBA"]
[2,19,7,"QUICHES"]
[2,19,8,"RAGASH"]
[2,19,9,"SAN JUAN"]
[2,19,10,"SICSIBAMBA"]
[2,20,1,"YUNGAY"]
[2,20,2,"CASCAPARA"]
[2,20,3,"MANCOS"]
[2,20,4,"MATACOTO"]
[2,20,5,"QUILLO"]
[2,20,6,"RANRAHIRCA"]
[2,20,7,"SHUPLUY"]
[2,20,8,"YANAMA"]
[3,1,1,"ABANCAY"]
[3,1,2,"CHACOCHE"]
[3,1,3,"CIRCA"]
[3,1,4,"CURAHUASI"]
[3,1,5,"HUANIPACA"]
[3,1,6,"LAMBRAMA"]
[3,1,7,"PICHIRHUA"]
[3,1,8,"SAN PEDRO DE CACHORA"]
[3,1,9,"TAMBURCO"]
[3,2,1,"ANDAHUAYLAS"]
[3,2,2,"ANDARAPA"]
[3,2,3,"CHIARA"]
[3,2,4,"HUANCARAMA"]
[3,2,5,"HUANCARAY"]
[3,2,6,"HUAYANA"]
[3,2,7,"KISHUARA"]
[3,2,8,"PACOBAMBA"]
[3,2,9,"PACUCHA"]
[3,2,10,"PAMPACHIRI"]
[3,2,11,"POMACOCHA"]
[3,2,12,"SAN ANTONIO DE CACHI"]
[3,2,13,"SAN JERONIMO"]
[3,2,14,"SAN MIGUEL DE CHACCRAMPA"]
[3,2,15,"SANTA MARIA DE CHICMO"]
[3,2,16,"TALAVERA"]
[3,2,17,"TUMAY HUARACA"]
[3,2,18,"TURPO"]
[3,2,19,"KAQUIABAMBA"]
[3,3,1,"ANTABAMBA"]
[3,3,2,"EL ORO"]
[3,3,3,"HUAQUIRCA"]
[3,3,4,"JUAN ESPINOZA MEDRANO"]
[3,3,5,"OROPESA"]
[3,3,6,"PACHACONAS"]
[3,3,7,"SABAINO"]
[3,4,1,"CHALHUANCA"]
[3,4,2,"CAPAYA"]
[3,4,3,"CARAYBAMBA"]
[3,4,4,"CHAPIMARCA"]
[3,4,5,"COLCABAMBA"]
[3,4,6,"COTARUSE"]
[3,4,7,"HUAYLLO"]
[3,4,8,"JUSTO APU SAHUARAURA"]
[3,4,9,"LUCRE"]
[3,4,10,"POCOHUANCA"]
[3,4,11,"SAN JUAN DE CHACÑA"]
[3,4,12,"SAÑAYCA"]
[3,4,13,"SORAYA"]
[3,4,14,"TAPAIRIHUA"]
[3,4,15,"TINTAY"]
[3,4,16,"TORAYA"]
[3,4,17,"YANACA"]
[3,5,1,"TAMBOBAMBA"]
[3,5,2,"COTABAMBAS"]
[3,5,3,"COYLLURQUI"]
[3,5,4,"HAQUIRA"]
[3,5,5,"MARA"]
[3,5,6,"CHALLHUAHUACHO"]
[3,6,1,"CHINCHEROS"]
[3,6,2,"ANCO_HUALLO"]
[3,6,3,"COCHARCAS"]
[3,6,4,"HUACCANA"]
[3,6,5,"OCOBAMBA"]
[3,6,6,"ONGOY"]
[3,6,7,"URANMARCA"]
[3,6,8,"RANRACANCHA"]
[3,7,1,"CHUQUIBAMBILLA"]
[3,7,2,"CURPAHUASI"]
[3,7,3,"GAMARRA"]
[3,7,4,"HUAYLLATI"]
[3,7,5,"MAMARA"]
[3,7,6,"MICAELA BASTIDAS"]
[3,7,7,"PATAYPAMPA"]
[3,7,8,"PROGRESO"]
[3,7,9,"SAN ANTONIO"]
[3,7,10,"SANTA ROSA"]
[3,7,11,"TURPAY"]
[3,7,12,"VILCABAMBA"]
[3,7,13,"VIRUNDO"]
[3,7,14,"CURASCO"]
[4,1,1,"AREQUIPA"]
[4,1,2,"ALTO SELVA ALEGRE"]
[4,1,3,"CAYMA"]
[4,1,4,"CERRO COLORADO"]
[4,1,5,"CHARACATO"]
[4,1,6,"CHIGUATA"]
[4,1,7,"JACOBO HUNTER"]
[4,1,8,"LA JOYA"]
[4,1,9,"MARIANO MELGAR"]
[4,1,10,"MIRAFLORES"]
[4,1,11,"MOLLEBAYA"]
[4,1,12,"PAUCARPATA"]
[4,1,13,"POCSI"]
[4,1,14,"POLOBAYA"]
[4,1,15,"QUEQUEÑA"]
[4,1,16,"SABANDIA"]
[4,1,17,"SACHACA"]
[4,1,18,"SAN JUAN DE SIGUAS"]
[4,1,19,"SAN JUAN DE TARUCANI"]
[4,1,20,"SANTA ISABEL DE SIGUAS"]
[4,1,21,"SANTA RITA DE SIGUAS"]
[4,1,22,"SOCABAYA"]
[4,1,23,"TIABAYA"]
[4,1,24,"UCHUMAYO"]
[4,1,25,"VITOR"]
[4,1,26,"YANAHUARA"]
[4,1,27,"YARABAMBA"]
[4,1,28,"YURA"]
[4,1,29,"JOSE LUIS BUSTAMANTE Y RIVERO"]
[4,2,1,"CAMANA"]
[4,2,2,"JOSE MARIA QUIMPER"]
[4,2,3,"MARIANO NICOLAS VALCARCEL"]
[4,2,4,"MARISCAL CACERES"]
[4,2,5,"NICOLAS DE PIEROLA"]
[4,2,6,"OCOÑA"]
[4,2,7,"QUILCA"]
[4,2,8,"SAMUEL PASTOR"]
[4,3,1,"CARAVELI"]
[4,3,2,"ACARI"]
[4,3,3,"ATICO"]
[4,3,4,"ATIQUIPA"]
[4,3,5,"BELLA UNION"]
[4,3,6,"CAHUACHO"]
[4,3,7,"CHALA"]
[4,3,8,"CHAPARRA"]
[4,3,9,"HUANUHUANU"]
[4,3,10,"JAQUI"]
[4,3,11,"LOMAS"]
[4,3,12,"QUICACHA"]
[4,3,13,"YAUCA"]
[4,4,1,"APLAO"]
[4,4,2,"ANDAGUA"]
[4,4,3,"AYO"]
[4,4,4,"CHACHAS"]
[4,4,5,"CHILCAYMARCA"]
[4,4,6,"CHOCO"]
[4,4,7,"HUANCARQUI"]
[4,4,8,"MACHAGUAY"]
[4,4,9,"ORCOPAMPA"]
[4,4,10,"PAMPACOLCA"]
[4,4,11,"TIPAN"]
[4,4,12,"UÑON"]
[4,4,13,"URACA"]
[4,4,14,"VIRACO"]
[4,5,1,"CHIVAY"]
[4,5,2,"ACHOMA"]
[4,5,3,"CABANACONDE"]
[4,5,4,"CALLALLI"]
[4,5,5,"CAYLLOMA"]
[4,5,6,"COPORAQUE"]
[4,5,7,"HUAMBO"]
[4,5,8,"HUANCA"]
[4,5,9,"ICHUPAMPA"]
[4,5,10,"LARI"]
[4,5,11,"LLUTA"]
[4,5,12,"MACA"]
[4,5,13,"MADRIGAL"]
[4,5,14,"SAN ANTONIO DE CHUCA"]
[4,5,15,"SIBAYO"]
[4,5,16,"TAPAY"]
[4,5,17,"TISCO"]
[4,5,18,"TUTI"]
[4,5,19,"YANQUE"]
[4,5,20,"MAJES"]
[4,6,1,"CHUQUIBAMBA"]
[4,6,2,"ANDARAY"]
[4,6,3,"CAYARANI"]
[4,6,4,"CHICHAS"]
[4,6,5,"IRAY"]
[4,6,6,"RIO GRANDE"]
[4,6,7,"SALAMANCA"]
[4,6,8,"YANAQUIHUA"]
[4,7,1,"MOLLENDO"]
[4,7,2,"COCACHACRA"]
[4,7,3,"DEAN VALDIVIA"]
[4,7,4,"ISLAY"]
[4,7,5,"MEJIA"]
[4,7,6,"PUNTA DE BOMBON"]
[4,8,1,"COTAHUASI"]
[4,8,2,"ALCA"]
[4,8,3,"CHARCANA"]
[4,8,4,"HUAYNACOTAS"]
[4,8,5,"PAMPAMARCA"]
[4,8,6,"PUYCA"]
[4,8,7,"QUECHUALLA"]
[4,8,8,"SAYLA"]
[4,8,9,"TAURIA"]
[4,8,10,"TOMEPAMPA"]
[4,8,11,"TORO"]
[5,1,1,"AYACUCHO"]
[5,1,2,"ACOCRO"]
[5,1,3,"ACOS VINCHOS"]
[5,1,4,"CARMEN ALTO"]
[5,1,5,"CHIARA"]
[5,1,6,"OCROS"]
[5,1,7,"PACAYCASA"]
[5,1,8,"QUINUA"]
[5,1,9,"SAN JOSE DE TICLLAS"]
[5,1,10,"SAN JUAN BAUTISTA"]
[5,1,11,"SANTIAGO DE PISCHA"]
[5,1,12,"SOCOS"]
[5,1,13,"TAMBILLO"]
[5,1,14,"VINCHOS"]
[5,1,15,"JESUS NAZARENO"]
[5,2,1,"CANGALLO"]
[5,2,2,"CHUSCHI"]
[5,2,3,"LOS MOROCHUCOS"]
[5,2,4,"MARIA PARADO DE BELLIDO"]
[5,2,5,"PARAS"]
[5,2,6,"TOTOS"]
[5,3,1,"SANCOS"]
[5,3,2,"CARAPO"]
[5,3,3,"SACSAMARCA"]
[5,3,4,"SANTIAGO DE LUCANAMARCA"]
[5,4,1,"HUANTA"]
[5,4,2,"AYAHUANCO"]
[5,4,3,"HUAMANGUILLA"]
[5,4,4,"IGUAIN"]
[5,4,5,"LURICOCHA"]
[5,4,6,"SANTILLANA"]
[5,4,7,"SIVIA"]
[5,4,8,"LLOCHEGUA"]
[5,5,1,"SAN MIGUEL"]
[5,5,2,"ANCO"]
[5,5,3,"AYNA"]
[5,5,4,"CHILCAS"]
[5,5,5,"CHUNGUI"]
[5,5,6,"LUIS CARRANZA"]
[5,5,7,"SANTA ROSA"]
[5,5,8,"TAMBO"]
[5,6,1,"PUQUIO"]
[5,6,2,"AUCARA"]
[5,6,3,"CABANA"]
[5,6,4,"CARMEN SALCEDO"]
[5,6,5,"CHAVIÑA"]
[5,6,6,"CHIPAO"]
[5,6,7,"HUAC-HUAS"]
[5,6,8,"LARAMATE"]
[5,6,9,"LEONCIO PRADO"]
[5,6,10,"LLAUTA"]
[5,6,11,"LUCANAS"]
[5,6,12,"OCAÑA"]
[5,6,13,"OTOCA"]
[5,6,14,"SAISA"]
[5,6,15,"SAN CRISTOBAL"]
[5,6,16,"SAN JUAN"]
[5,6,17,"SAN PEDRO"]
[5,6,18,"SAN PEDRO DE PALCO"]
[5,6,19,"SANCOS"]
[5,6,20,"SANTA ANA DE HUAYCAHUACHO"]
[5,6,21,"SANTA LUCIA"]
[5,7,1,"CORACORA"]
[5,7,2,"CHUMPI"]
[5,7,3,"CORONEL CASTAÑEDA"]
[5,7,4,"PACAPAUSA"]
[5,7,5,"PULLO"]
[5,7,6,"PUYUSCA"]
[5,7,7,"SAN FRANCISCO DE RAVACAYCO"]
[5,7,8,"UPAHUACHO"]
[5,8,1,"PAUSA"]
[5,8,2,"COLTA"]
[5,8,3,"CORCULLA"]
[5,8,4,"LAMPA"]
[5,8,5,"MARCABAMBA"]
[5,8,6,"OYOLO"]
[5,8,7,"PARARCA"]
[5,8,8,"SAN JAVIER DE ALPABAMBA"]
[5,8,9,"SAN JOSE DE USHUA"]
[5,8,10,"SARA SARA"]
[5,9,1,"QUEROBAMBA"]
[5,9,2,"BELEN"]
[5,9,3,"CHALCOS"]
[5,9,4,"CHILCAYOC"]
[5,9,5,"HUACAÑA"]
[5,9,6,"MORCOLLA"]
[5,9,7,"PAICO"]
[5,9,8,"SAN PEDRO DE LARCAY"]
[5,9,9,"SAN SALVADOR DE QUIJE"]
[5,9,10,"SANTIAGO DE PAUCARAY"]
[5,9,11,"SORAS"]
[5,10,1,"HUANCAPI"]
[5,10,2,"ALCAMENCA"]
[5,10,3,"APONGO"]
[5,10,4,"ASQUIPATA"]
[5,10,5,"CANARIA"]
[5,10,6,"CAYARA"]
[5,10,7,"COLCA"]
[5,10,8,"HUAMANQUIQUIA"]
[5,10,9,"HUANCARAYLLA"]
[5,10,10,"HUAYA"]
[5,10,11,"SARHUA"]
[5,10,12,"VILCANCHOS"]
[5,11,1,"VILCAS HUAMAN"]
[5,11,2,"ACCOMARCA"]
[5,11,3,"CARHUANCA"]
[5,11,4,"CONCEPCION"]
[5,11,5,"HUAMBALPA"]
[5,11,6,"INDEPENDENCIA"]
[5,11,7,"SAURAMA"]
[5,11,8,"VISCHONGO"]
[6,1,1,"CAJAMARCA"]
[6,1,2,"ASUNCION"]
[6,1,3,"CHETILLA"]
[6,1,4,"COSPAN"]
[6,1,5,"ENCAÑADA"]
[6,1,6,"JESUS"]
[6,1,7,"LLACANORA"]
[6,1,8,"LOS BAÑOS DEL INCA"]
[6,1,9,"MAGDALENA"]
[6,1,10,"MATARA"]
[6,1,11,"NAMORA"]
[6,1,12,"SAN JUAN"]
[6,2,1,"CAJABAMBA"]
[6,2,2,"CACHACHI"]
[6,2,3,"CONDEBAMBA"]
[6,2,4,"SITACOCHA"]
[6,3,1,"CELENDIN"]
[6,3,2,"CHUMUCH"]
[6,3,3,"CORTEGANA"]
[6,3,4,"HUASMIN"]
[6,3,5,"JORGE CHAVEZ"]
[6,3,6,"JOSE GALVEZ"]
[6,3,7,"MIGUEL IGLESIAS"]
[6,3,8,"OXAMARCA"]
[6,3,9,"SOROCHUCO"]
[6,3,10,"SUCRE"]
[6,3,11,"UTCO"]
[6,3,12,"LA LIBERTAD DE PALLAN"]
[6,4,1,"CHOTA"]
[6,4,2,"ANGUIA"]
[6,4,3,"CHADIN"]
[6,4,4,"CHIGUIRIP"]
[6,4,5,"CHIMBAN"]
[6,4,6,"CHOROPAMPA"]
[6,4,7,"COCHABAMBA"]
[6,4,8,"CONCHAN"]
[6,4,9,"HUAMBOS"]
[6,4,10,"LAJAS"]
[6,4,11,"LLAMA"]
[6,4,12,"MIRACOSTA"]
[6,4,13,"PACCHA"]
[6,4,14,"PION"]
[6,4,15,"QUEROCOTO"]
[6,4,16,"SAN JUAN DE LICUPIS"]
[6,4,17,"TACABAMBA"]
[6,4,18,"TOCMOCHE"]
[6,4,19,"CHALAMARCA"]
[6,5,1,"CONTUMAZA"]
[6,5,2,"CHILETE"]
[6,5,3,"CUPISNIQUE"]
[6,5,4,"GUZMANGO"]
[6,5,5,"SAN BENITO"]
[6,5,6,"SANTA CRUZ DE TOLED"]
[6,5,7,"TANTARICA"]
[6,5,8,"YONAN"]
[6,6,1,"CUTERVO"]
[6,6,2,"CALLAYUC"]
[6,6,3,"CHOROS"]
[6,6,4,"CUJILLO"]
[6,6,5,"LA RAMADA"]
[6,6,6,"PIMPINGOS"]
[6,6,7,"QUEROCOTILLO"]
[6,6,8,"SAN ANDRES DE CUTERVO"]
[6,6,9,"SAN JUAN DE CUTERVO"]
[6,6,10,"SAN LUIS DE LUCMA"]
[6,6,11,"SANTA CRUZ"]
[6,6,12,"SANTO DOMINGO DE LA CAPILLA"]
[6,6,13,"SANTO TOMAS"]
[6,6,14,"SOCOTA"]
[6,6,15,"TORIBIO CASANOVA"]
[6,7,1,"BAMBAMARCA"]
[6,7,2,"CHUGUR"]
[6,7,3,"HUALGAYOC"]
[6,8,1,"JAEN"]
[6,8,2,"BELLAVISTA"]
[6,8,3,"CHONTALI"]
[6,8,4,"COLASAY"]
[6,8,5,"HUABAL"]
[6,8,6,"LAS PIRIAS"]
[6,8,7,"POMAHUACA"]
[6,8,8,"PUCARA"]
[6,8,9,"SALLIQUE"]
[6,8,10,"SAN FELIPE"]
[6,8,11,"SAN JOSE DEL ALTO"]
[6,8,12,"SANTA ROSA"]
[6,9,1,"SAN IGNACIO"]
[6,9,2,"CHIRINOS"]
[6,9,3,"HUARANGO"]
[6,9,4,"LA COIPA"]
[6,9,5,"NAMBALLE"]
[6,9,6,"SAN JOSE DE LOURDES"]
[6,9,7,"TABACONAS"]
[6,10,1,"PEDRO GALVEZ"]
[6,10,2,"CHANCAY"]
[6,10,3,"EDUARDO VILLANUEVA"]
[6,10,4,"GREGORIO PITA"]
[6,10,5,"ICHOCAN"]
[6,10,6,"JOSE MANUEL QUIROZ"]
[6,10,7,"JOSE SABOGAL"]
[6,11,1,"SAN MIGUEL"]
[6,11,2,"BOLIVAR"]
[6,11,3,"CALQUIS"]
[6,11,4,"CATILLUC"]
[6,11,5,"EL PRADO"]
[6,11,6,"LA FLORIDA"]
[6,11,7,"LLAPA"]
[6,11,8,"NANCHOC"]
[6,11,9,"NIEPOS"]
[6,11,10,"SAN GREGORIO"]
[6,11,11,"SAN SILVESTRE DE COCHAN"]
[6,11,12,"TONGOD"]
[6,11,13,"UNION AGUA BLANCA"]
[6,12,1,"SAN PABLO"]
[6,12,2,"SAN BERNARDINO"]
[6,12,3,"SAN LUIS"]
[6,12,4,"TUMBADEN"]
[6,13,1,"SANTA CRUZ"]
[6,13,2,"ANDABAMBA"]
[6,13,3,"CATACHE"]
[6,13,4,"CHANCAYBAÑOS"]
[6,13,5,"LA ESPERANZA"]
[6,13,6,"NINABAMBA"]
[6,13,7,"PULAN"]
[6,13,8,"SAUCEPAMPA"]
[6,13,9,"SEXI"]
[6,13,10,"UTICYACU"]
[6,13,11,"YAUYUCAN"]
[7,1,1,"CALLAO"]
[7,1,2,"BELLAVISTA"]
[7,1,3,"CARMEN DE LA LEGUA REYNOSO"]
[7,1,4,"LA PERLA"]
[7,1,5,"LA PUNTA"]
[7,1,6,"VENTANILLA"]
[8,1,1,"CUSCO"]
[8,1,2,"CCORCA"]
[8,1,3,"POROY"]
[8,1,4,"SAN JERONIMO"]
[8,1,5,"SAN SEBASTIAN"]
[8,1,6,"SANTIAGO"]
[8,1,7,"SAYLLA"]
[8,1,8,"WANCHAQ"]
[8,2,1,"ACOMAYO"]
[8,2,2,"ACOPIA"]
[8,2,3,"ACOS"]
[8,2,4,"MOSOC LLACTA"]
[8,2,5,"POMACANCHI"]
[8,2,6,"RONDOCAN"]
[8,2,7,"SANGARARA"]
[8,3,1,"ANTA"]
[8,3,2,"ANCAHUASI"]
[8,3,3,"CACHIMAYO"]
[8,3,4,"CHINCHAYPUJIO"]
[8,3,5,"HUAROCONDO"]
[8,3,6,"LIMATAMBO"]
[8,3,7,"MOLLEPATA"]
[8,3,8,"PUCYURA"]
[8,3,9,"ZURITE"]
[8,4,1,"CALCA"]
[8,4,2,"COYA"]
[8,4,3,"LAMAY"]
[8,4,4,"LARES"]
[8,4,5,"PISAC"]
[8,4,6,"SAN SALVADOR"]
[8,4,7,"TARAY"]
[8,4,8,"YANATILE"]
[8,5,1,"YANAOCA"]
[8,5,2,"CHECCA"]
[8,5,3,"KUNTURKANKI"]
[8,5,4,"LANGUI"]
[8,5,5,"LAYO"]
[8,5,6,"PAMPAMARCA"]
[8,5,7,"QUEHUE"]
[8,5,8,"TUPAC AMARU"]
[8,6,1,"SICUANI"]
[8,6,2,"CHECACUPE"]
[8,6,3,"COMBAPATA"]
[8,6,4,"MARANGANI"]
[8,6,5,"PITUMARCA"]
[8,6,6,"SAN PABLO"]
[8,6,7,"SAN PEDRO"]
[8,6,8,"TINTA"]
[8,7,1,"SANTO TOMAS"]
[8,7,2,"CAPACMARCA"]
[8,7,3,"CHAMACA"]
[8,7,4,"COLQUEMARCA"]
[8,7,5,"LIVITACA"]
[8,7,6,"LLUSCO"]
[8,7,7,"QUIÑOTA"]
[8,7,8,"VELILLE"]
[8,8,1,"ESPINAR"]
[8,8,2,"CONDOROMA"]
[8,8,3,"COPORAQUE"]
[8,8,4,"OCORURO"]
[8,8,5,"PALLPATA"]
[8,8,6,"PICHIGUA"]
[8,8,7,"SUYCKUTAMBO"]
[8,8,8,"ALTO PICHIGUA"]
[8,9,1,"SANTA ANA"]
[8,9,2,"ECHARATE"]
[8,9,3,"HUAYOPATA"]
[8,9,4,"MARANURA"]
[8,9,5,"OCOBAMBA"]
[8,9,6,"QUELLOUNO"]
[8,9,7,"KIMBIRI"]
[8,9,8,"SANTA TERESA"]
[8,9,9,"VILCABAMBA"]
[8,9,10,"PICHARI"]
[8,10,1,"PARURO"]
[8,10,2,"ACCHA"]
[8,10,3,"CCAPI"]
[8,10,4,"COLCHA"]
[8,10,5,"HUANOQUITE"]
[8,10,6,"OMACHA"]
[8,10,7,"PACCARITAMBO"]
[8,10,8,"PILLPINTO"]
[8,10,9,"YAURISQUE"]
[8,11,1,"PAUCARTAMBO"]
[8,11,2,"CAICAY"]
[8,11,3,"CHALLABAMBA"]
[8,11,4,"COLQUEPATA"]
[8,11,5,"HUANCARANI"]
[8,11,6,"KOSÑIPATA"]
[8,12,1,"URCOS"]
[8,12,2,"ANDAHUAYLILLAS"]
[8,12,3,"CAMANTI"]
[8,12,4,"CCARHUAYO"]
[8,12,5,"CCATCA"]
[8,12,6,"CUSIPATA"]
[8,12,7,"HUARO"]
[8,12,8,"LUCRE"]
[8,12,9,"MARCAPATA"]
[8,12,10,"OCONGATE"]
[8,12,11,"OROPESA"]
[8,12,12,"QUIQUIJANA"]
[8,13,1,"URUBAMBA"]
[8,13,2,"CHINCHERO"]
[8,13,3,"HUAYLLABAMBA"]
[8,13,4,"MACHUPICCHU"]
[8,13,5,"MARAS"]
[8,13,6,"OLLANTAYTAMBO"]
[8,13,7,"YUCAY"]
[9,1,1,"HUANCAVELICA"]
[9,1,2,"ACOBAMBILLA"]
[9,1,3,"ACORIA"]
[9,1,4,"CONAYCA"]
[9,1,5,"CUENCA"]
[9,1,6,"HUACHOCOLPA"]
[9,1,7,"HUAYLLAHUARA"]
[9,1,8,"IZCUCHACA"]
[9,1,9,"LARIA"]
[9,1,10,"MANTA"]
[9,1,11,"MARISCAL CACERES"]
[9,1,12,"MOYA"]
[9,1,13,"NUEVO OCCORO"]
[9,1,14,"PALCA"]
[9,1,15,"PILCHACA"]
[9,1,16,"VILCA"]
[9,1,17,"YAULI"]
[9,1,18,"ASCENSION"]
[9,1,19,"HUANDO"]
[9,2,1,"ACOBAMBA"]
[9,2,2,"ANDABAMBA"]
[9,2,3,"ANTA"]
[9,2,4,"CAJA"]
[9,2,5,"MARCAS"]
[9,2,6,"PAUCARA"]
[9,2,7,"POMACOCHA"]
[9,2,8,"ROSARIO"]
[9,3,1,"LIRCAY"]
[9,3,2,"ANCHONGA"]
[9,3,3,"CALLANMARCA"]
[9,3,4,"CCOCHACCASA"]
[9,3,5,"CHINCHO"]
[9,3,6,"CONGALLA"]
[9,3,7,"HUANCA-HUANCA"]
[9,3,8,"HUAYLLAY GRANDE"]
[9,3,9,"JULCAMARCA"]
[9,3,10,"SAN ANTONIO DE ANTAPARCO"]
[9,3,11,"SANTO TOMAS DE PATA"]
[9,3,12,"SECCLLA"]
[9,4,1,"CASTROVIRREYNA"]
[9,4,2,"ARMA"]
[9,4,3,"AURAHUA"]
[9,4,4,"CAPILLAS"]
[9,4,5,"CHUPAMARCA"]
[9,4,6,"COCAS"]
[9,4,7,"HUACHOS"]
[9,4,8,"HUAMATAMBO"]
[9,4,9,"MOLLEPAMPA"]
[9,4,10,"SAN JUAN"]
[9,4,11,"SANTA ANA"]
[9,4,12,"TANTARA"]
[9,4,13,"TICRAPO"]
[9,5,1,"CHURCAMPA"]
[9,5,2,"ANCO"]
[9,5,3,"CHINCHIHUASI"]
[9,5,4,"EL CARMEN"]
[9,5,5,"LA MERCED"]
[9,5,6,"LOCROJA"]
[9,5,7,"PAUCARBAMBA"]
[9,5,8,"SAN MIGUEL DE MAYOCC"]
[9,5,9,"SAN PEDRO DE CORIS"]
[9,5,10,"PACHAMARCA"]
[9,6,1,"HUAYTARA"]
[9,6,2,"AYAVI"]
[9,6,3,"CORDOVA"]
[9,6,4,"HUAYACUNDO ARMA"]
[9,6,5,"LARAMARCA"]
[9,6,6,"OCOYO"]
[9,6,7,"PILPICHACA"]
[9,6,8,"QUERCO"]
[9,6,9,"QUITO-ARMA"]
[9,6,10,"SAN ANTONIO DE CUSICANCHA"]
[9,6,11,"SAN FRANCISCO DE SANGAYAICO"]
[9,6,12,"SAN ISIDRO"]
[9,6,13,"SANTIAGO DE CHOCORVOS"]
[9,6,14,"SANTIAGO DE QUIRAHUARA"]
[9,6,15,"SANTO DOMINGO DE CAPILLAS"]
[9,6,16,"TAMBO"]
[9,7,1,"PAMPAS"]
[9,7,2,"ACOSTAMBO"]
[9,7,3,"ACRAQUIA"]
[9,7,4,"AHUAYCHA"]
[9,7,5,"COLCABAMBA"]
[9,7,6,"DANIEL HERNANDEZ"]
[9,7,7,"HUACHOCOLPA"]
[9,7,9,"HUARIBAMBA"]
[9,7,10,"ÑAHUIMPUQUIO"]
[9,7,11,"PAZOS"]
[9,7,13,"QUISHUAR"]
[9,7,14,"SALCABAMBA"]
[9,7,15,"SALCAHUASI"]
[9,7,16,"SAN MARCOS DE ROCCHAC"]
[9,7,17,"SURCUBAMBA"]
[9,7,18,"TINTAY PUNCU"]
[10,1,1,"HUANUCO"]
[10,1,2,"AMARILIS"]
[10,1,3,"CHINCHAO"]
[10,1,4,"CHURUBAMBA"]
[10,1,5,"MARGOS"]
[10,1,6,"QUISQUI"]
[10,1,7,"SAN FRANCISCO DE CAYRAN"]
[10,1,8,"SAN PEDRO DE CHAULAN"]
[10,1,9,"SANTA MARIA DEL VALLE"]
[10,1,10,"YARUMAYO"]
[10,1,11,"PILLCO MARCA"]
[10,2,1,"AMBO"]
[10,2,2,"CAYNA"]
[10,2,3,"COLPAS"]
[10,2,4,"CONCHAMARCA"]
[10,2,5,"HUACAR"]
[10,2,6,"SAN FRANCISCO"]
[10,2,7,"SAN RAFAEL"]
[10,2,8,"TOMAY KICHWA"]
[10,3,1,"LA UNION"]
[10,3,7,"CHUQUIS"]
[10,3,11,"MARIAS"]
[10,3,13,"PACHAS"]
[10,3,16,"QUIVILLA"]
[10,3,17,"RIPAN"]
[10,3,21,"SHUNQUI"]
[10,3,22,"SILLAPATA"]
[10,3,23,"YANAS"]
[10,4,1,"HUACAYBAMBA"]
[10,4,2,"CANCHABAMBA"]
[10,4,3,"COCHABAMBA"]
[10,4,4,"PINRA"]
[10,5,1,"LLATA"]
[10,5,2,"ARANCAY"]
[10,5,3,"CHAVIN DE PARIARCA"]
[10,5,4,"JACAS GRANDE"]
[10,5,5,"JIRCAN"]
[10,5,6,"MIRAFLORES"]
[10,5,7,"MONZON"]
[10,5,8,"PUNCHAO"]
[10,5,9,"PUÑOS"]
[10,5,10,"SINGA"]
[10,5,11,"TANTAMAYO"]
[10,6,1,"RUPA-RUPA"]
[10,6,2,"DANIEL ALOMIAS ROBLES"]
[10,6,3,"HERMILIO VALDIZAN"]
[10,6,4,"JOSE CRESPO Y CASTILLO"]
[10,6,5,"LUYANDO"]
[10,6,6,"MARIANO DAMASO BERAUN"]
[10,7,1,"HUACRACHUCO"]
[10,7,2,"CHOLON"]
[10,7,3,"SAN BUENAVENTURA"]
[10,8,1,"PANAO"]
[10,8,2,"CHAGLLA"]
[10,8,3,"MOLINO"]
[10,8,4,"UMARI"]
[10,9,1,"PUERTO INCA"]
[10,9,2,"CODO DEL POZUZO"]
[10,9,3,"HONORIA"]
[10,9,4,"TOURNAVISTA"]
[10,9,5,"YUYAPICHIS"]
[10,10,1,"JESUS"]
[10,10,2,"BAÑOS"]
[10,10,3,"JIVIA"]
[10,10,4,"QUEROPALCA"]
[10,10,5,"RONDOS"]
[10,10,6,"SAN FRANCISCO DE ASIS"]
[10,10,7,"SAN MIGUEL DE CAURI"]
[10,11,1,"CHAVINILLO"]
[10,11,2,"CAHUAC"]
[10,11,3,"CHACABAMBA"]
[10,11,4,"APARICIO POMARES"]
[10,11,5,"JACAS CHICO"]
[10,11,6,"OBAS"]
[10,11,7,"PAMPAMARCA"]
[10,11,8,"CHORAS"]
[11,1,1,"ICA"]
[11,1,2,"LA TINGUIÑA"]
[11,1,3,"LOS AQUIJES"]
[11,1,4,"OCUCAJE"]
[11,1,5,"PACHACUTEC"]
[11,1,6,"PARCONA"]
[11,1,7,"PUEBLO NUEVO"]
[11,1,8,"SALAS"]
[11,1,9,"SAN JOSE DE LOS MOLINOS"]
[11,1,10,"SAN JUAN BAUTISTA"]
[11,1,11,"SANTIAGO"]
[11,1,12,"SUBTANJALLA"]
[11,1,13,"TATE"]
[11,1,14,"YAUCA DEL ROSARIO"]
[11,2,1,"CHINCHA ALTA"]
[11,2,2,"ALTO LARAN"]
[11,2,3,"CHAVIN"]
[11,2,4,"CHINCHA BAJA"]
[11,2,5,"EL CARMEN"]
[11,2,6,"GROCIO PRADO"]
[11,2,7,"PUEBLO NUEVO"]
[11,2,8,"SAN JUAN DE YANAC"]
[11,2,9,"SAN PEDRO DE HUACARPANA"]
[11,2,10,"SUNAMPE"]
[11,2,11,"TAMBO DE MORA"]
[11,3,1,"NAZCA"]
[11,3,2,"CHANGUILLO"]
[11,3,3,"EL INGENIO"]
[11,3,4,"MARCONA"]
[11,3,5,"VISTA ALEGRE"]
[11,4,1,"PALPA"]
[11,4,2,"LLIPATA"]
[11,4,3,"RIO GRANDE"]
[11,4,4,"SANTA CRUZ"]
[11,4,5,"TIBILLO"]
[11,5,1,"PISCO"]
[11,5,2,"HUANCANO"]
[11,5,3,"HUMAY"]
[11,5,4,"INDEPENDENCIA"]
[11,5,5,"PARACAS"]
[11,5,6,"SAN ANDRES"]
[11,5,7,"SAN CLEMENTE"]
[11,5,8,"TUPAC AMARU INCA"]
[12,1,1,"HUANCAYO"]
[12,1,4,"CARHUACALLANGA"]
[12,1,5,"CHACAPAMPA"]
[12,1,6,"CHICCHE"]
[12,1,7,"CHILCA"]
[12,1,8,"CHONGOS ALTO"]
[12,1,11,"CHUPURO"]
[12,1,12,"COLCA"]
[12,1,13,"CULLHUAS"]
[12,1,14,"EL TAMBO"]
[12,1,16,"HUACRAPUQUIO"]
[12,1,17,"HUALHUAS"]
[12,1,19,"HUANCAN"]
[12,1,20,"HUASICANCHA"]
[12,1,21,"HUAYUCACHI"]
[12,1,22,"INGENIO"]
[12,1,24,"PARIAHUANCA"]
[12,1,25,"PILCOMAYO"]
[12,1,26,"PUCARA"]
[12,1,27,"QUICHUAY"]
[12,1,28,"QUILCAS"]
[12,1,29,"SAN AGUSTIN"]
[12,1,30,"SAN JERONIMO DE TUNAN"]
[12,1,32,"SAÑO"]
[12,1,33,"SAPALLANGA"]
[12,1,34,"SICAYA"]
[12,1,35,"SANTO DOMINGO DE ACOBAMBA"]
[12,1,36,"VIQUES"]
[12,2,1,"CONCEPCION"]
[12,2,2,"ACO"]
[12,2,3,"ANDAMARCA"]
[12,2,4,"CHAMBARA"]
[12,2,5,"COCHAS"]
[12,2,6,"COMAS"]
[12,2,7,"HEROINAS TOLEDO"]
[12,2,8,"MANZANARES"]
[12,2,9,"MARISCAL CASTILLA"]
[12,2,10,"MATAHUASI"]
[12,2,11,"MITO"]
[12,2,12,"NUEVE DE JULIO"]
[12,2,13,"ORCOTUNA"]
[12,2,14,"SAN JOSE DE QUERO"]
[12,2,15,"SANTA ROSA DE OCOPA"]
[12,3,1,"CHANCHAMAYO"]
[12,3,2,"PERENE"]
[12,3,3,"PICHANAQUI"]
[12,3,4,"SAN LUIS DE SHUARO"]
[12,3,5,"SAN RAMON"]
[12,3,6,"VITOC"]
[12,4,1,"JAUJA"]
[12,4,2,"ACOLLA"]
[12,4,3,"APATA"]
[12,4,4,"ATAURA"]
[12,4,5,"CANCHAYLLO"]
[12,4,6,"CURICACA"]
[12,4,7,"EL MANTARO"]
[12,4,8,"HUAMALI"]
[12,4,9,"HUARIPAMPA"]
[12,4,10,"HUERTAS"]
[12,4,11,"JANJAILLO"]
[12,4,12,"JULCAN"]
[12,4,13,"LEONOR ORDOÑEZ"]
[12,4,14,"LLOCLLAPAMPA"]
[12,4,15,"MARCO"]
[12,4,16,"MASMA"]
[12,4,17,"MASMA CHICCHE"]
[12,4,18,"MOLINOS"]
[12,4,19,"MONOBAMBA"]
[12,4,20,"MUQUI"]
[12,4,21,"MUQUIYAUYO"]
[12,4,22,"PACA"]
[12,4,23,"PACCHA"]
[12,4,24,"PANCAN"]
[12,4,25,"PARCO"]
[12,4,26,"POMACANCHA"]
[12,4,27,"RICRAN"]
[12,4,28,"SAN LORENZO"]
[12,4,29,"SAN PEDRO DE CHUNAN"]
[12,4,30,"SAUSA"]
[12,4,31,"SINCOS"]
[12,4,32,"TUNAN MARCA"]
[12,4,33,"YAULI"]
[12,4,34,"YAUYOS"]
[12,5,1,"JUNIN"]
[12,5,2,"CARHUAMAYO"]
[12,5,3,"ONDORES"]
[12,5,4,"ULCUMAYO"]
[12,6,1,"SATIPO"]
[12,6,2,"COVIRIALI"]
[12,6,3,"LLAYLLA"]
[12,6,4,"MAZAMARI"]
[12,6,5,"PAMPA HERMOSA"]
[12,6,6,"PANGOA"]
[12,6,7,"RIO NEGRO"]
[12,6,8,"RIO TAMBO"]
[12,7,1,"TARMA"]
[12,7,2,"ACOBAMBA"]
[12,7,3,"HUARICOLCA"]
[12,7,4,"HUASAHUASI"]
[12,7,5,"LA UNION"]
[12,7,6,"PALCA"]
[12,7,7,"PALCAMAYO"]
[12,7,8,"SAN PEDRO DE CAJAS"]
[12,7,9,"TAPO"]
[12,8,1,"LA OROYA"]
[12,8,2,"CHACAPALPA"]
[12,8,3,"HUAY-HUAY"]
[12,8,4,"MARCAPOMACOCHA"]
[12,8,5,"MOROCOCHA"]
[12,8,6,"PACCHA"]
[12,8,7,"SANTA BARBARA DE CARHUACAYAN"]
[12,8,8,"SANTA ROSA DE SACCO"]
[12,8,9,"SUITUCANCHA"]
[12,8,10,"YAULI"]
[12,9,1,"CHUPACA"]
[12,9,2,"AHUAC"]
[12,9,3,"CHONGOS BAJO"]
[12,9,4,"HUACHAC"]
[12,9,5,"HUAMANCACA CHICO"]
[12,9,6,"SAN JUAN DE YSCOS"]
[12,9,7,"SAN JUAN DE JARPA"]
[12,9,8,"TRES DE DICIEMBRE"]
[12,9,9,"YANACANCHA"]
[13,1,1,"TRUJILLO"]
[13,1,2,"EL PORVENIR"]
[13,1,3,"FLORENCIA DE MORA"]
[13,1,4,"HUANCHACO"]
[13,1,5,"LA ESPERANZA"]
[13,1,6,"LAREDO"]
[13,1,7,"MOCHE"]
[13,1,8,"POROTO"]
[13,1,9,"SALAVERRY"]
[13,1,10,"SIMBAL"]
[13,1,11,"VICTOR LARCO HERRERA"]
[13,2,1,"ASCOPE"]
[13,2,2,"CHICAMA"]
[13,2,3,"CHOCOPE"]
[13,2,4,"MAGDALENA DE CAO"]
[13,2,5,"PAIJAN"]
[13,2,6,"RAZURI"]
[13,2,7,"SANTIAGO DE CAO"]
[13,2,8,"CASA GRANDE"]
[13,3,1,"BOLIVAR"]
[13,3,2,"BAMBAMARCA"]
[13,3,3,"CONDORMARCA"]
[13,3,4,"LONGOTEA"]
[13,3,5,"UCHUMARCA"]
[13,3,6,"UCUNCHA"]
[13,4,1,"CHEPEN"]
[13,4,2,"PACANGA"]
[13,4,3,"PUEBLO NUEVO"]
[13,5,1,"JULCAN"]
[13,5,2,"CALAMARCA"]
[13,5,3,"CARABAMBA"]
[13,5,4,"HUASO"]
[13,6,1,"OTUZCO"]
[13,6,2,"AGALLPAMPA"]
[13,6,4,"CHARAT"]
[13,6,5,"HUARANCHAL"]
[13,6,6,"LA CUESTA"]
[13,6,8,"MACHE"]
[13,6,10,"PARANDAY"]
[13,6,11,"SALPO"]
[13,6,13,"SINSICAP"]
[13,6,14,"USQUIL"]
[13,7,1,"SAN PEDRO DE LLOC"]
[13,7,2,"GUADALUPE"]
[13,7,3,"JEQUETEPEQUE"]
[13,7,4,"PACASMAYO"]
[13,7,5,"SAN JOSE"]
[13,8,1,"TAYABAMBA"]
[13,8,2,"BULDIBUYO"]
[13,8,3,"CHILLIA"]
[13,8,4,"HUANCASPATA"]
[13,8,5,"HUAYLILLAS"]
[13,8,6,"HUAYO"]
[13,8,7,"ONGON"]
[13,8,8,"PARCOY"]
[13,8,9,"PATAZ"]
[13,8,10,"PIAS"]
[13,8,11,"SANTIAGO DE CHALLAS"]
[13,8,12,"TAURIJA"]
[13,8,13,"URPAY"]
[13,9,1,"HUAMACHUCO"]
[13,9,2,"CHUGAY"]
[13,9,3,"COCHORCO"]
[13,9,4,"CURGOS"]
[13,9,5,"MARCABAL"]
[13,9,6,"SANAGORAN"]
[13,9,7,"SARIN"]
[13,9,8,"SARTIMBAMBA"]
[13,10,1,"SANTIAGO DE CHUCO"]
[13,10,2,"ANGASMARCA"]
[13,10,3,"CACHICADAN"]
[13,10,4,"MOLLEBAMBA"]
[13,10,5,"MOLLEPATA"]
[13,10,6,"QUIRUVILCA"]
[13,10,7,"SANTA CRUZ DE CHUCA"]
[13,10,8,"SITABAMBA"]
[13,11,1,"CASCAS"]
[13,11,2,"LUCMA"]
[13,11,3,"COMPIN"]
[13,11,4,"SAYAPULLO"]
[13,12,1,"VIRU"]
[13,12,2,"CHAO"]
[13,12,3,"GUADALUPITO"]
[14,1,1,"CHICLAYO"]
[14,1,2,"CHONGOYAPE"]
[14,1,3,"ETEN"]
[14,1,4,"ETEN PUERTO"]
[14,1,5,"JOSE LEONARDO ORTIZ"]
[14,1,6,"LA VICTORIA"]
[14,1,7,"LAGUNAS"]
[14,1,8,"MONSEFU"]
[14,1,9,"NUEVA ARICA"]
[14,1,10,"OYOTUN"]
[14,1,11,"PICSI"]
[14,1,12,"PIMENTEL"]
[14,1,13,"REQUE"]
[14,1,14,"SANTA ROSA"]
[14,1,15,"SAÑA"]
[14,1,16,"CAYALTI"]
[14,1,17,"PATAPO"]
[14,1,18,"POMALCA"]
[14,1,19,"PUCALA"]
[14,1,20,"TUMAN"]
[14,2,1,"FERREÑAFE"]
[14,2,2,"CAÑARIS"]
[14,2,3,"INCAHUASI"]
[14,2,4,"MANUEL ANTONIO MESONES MURO"]
[14,2,5,"PITIPO"]
[14,2,6,"PUEBLO NUEVO"]
[14,3,1,"LAMBAYEQUE"]
[14,3,2,"CHOCHOPE"]
[14,3,3,"ILLIMO"]
[14,3,4,"JAYANCA"]
[14,3,5,"MOCHUMI"]
[14,3,6,"MORROPE"]
[14,3,7,"MOTUPE"]
[14,3,8,"OLMOS"]
[14,3,9,"PACORA"]
[14,3,10,"SALAS"]
[14,3,11,"SAN JOSE"]
[14,3,12,"TUCUME"]
[15,1,1,"LIMA"]
[15,1,2,"ANCON"]
[15,1,3,"ATE"]
[15,1,4,"BARRANCO"]
[15,1,5,"BREÑA"]
[15,1,6,"CARABAYLLO"]
[15,1,7,"CHACLACAYO"]
[15,1,8,"CHORRILLOS"]
[15,1,9,"CIENEGUILLA"]
[15,1,10,"COMAS"]
[15,1,11,"EL AGUSTINO"]
[15,1,12,"INDEPENDENCIA"]
[15,1,13,"JESUS MARIA"]
[15,1,14,"LA MOLINA"]
[15,1,15,"LA VICTORIA"]
[15,1,16,"LINCE"]
[15,1,17,"LOS OLIVOS"]
[15,1,18,"LURIGANCHO"]
[15,1,19,"LURIN"]
[15,1,20,"MAGDALENA DEL MAR"]
[15,1,21,"MAGDALENA VIEJA"]
[15,1,22,"MIRAFLORES"]
[15,1,23,"PACHACAMAC"]
[15,1,24,"PUCUSANA"]
[15,1,25,"PUENTE PIEDRA"]
[15,1,26,"PUEBLO LIBRE"]
[15,1,27,"PUNTA HERMOSA"]
[15,1,28,"PUNTA NEGRA"]
[15,1,29,"RIMAC"]
[15,1,30,"SAN BARTOLO"]
[15,1,31,"SAN BORJA"]
[15,1,32,"SAN ISIDRO"]
[15,1,33,"SAN JUAN DE LURIGANCHO"]
[15,1,34,"SAN JUAN DE MIRAFLORES"]
[15,1,35,"SAN LUIS"]
[15,1,36,"SAN MARTIN DE PORRES"]
[15,1,37,"SAN MIGUEL"]
[15,1,38,"SANTA ANITA"]
[15,1,39,"SANTA MARIA DEL MAR"]
[15,1,40,"SANTA ROSA"]
[15,1,41,"SANTIAGO DE SURCO"]
[15,1,42,"SURQUILLO"]
[15,1,43,"VILLA EL SALVADOR"]
[15,1,44,"VILLA MARIA DEL TRIUNFO"]
[15,2,1,"BARRANCA"]
[15,2,2,"PARAMONGA"]
[15,2,3,"PATIVILCA"]
[15,2,4,"SUPE"]
[15,2,5,"SUPE PUERTO"]
[15,3,1,"CAJATAMBO"]
[15,3,2,"COPA"]
[15,3,3,"GORGOR"]
[15,3,4,"HUANCAPON"]
[15,3,5,"MANAS"]
[15,4,1,"CANTA"]
[15,4,2,"ARAHUAY"]
[15,4,3,"HUAMANTANGA"]
[15,4,4,"HUAROS"]
[15,4,5,"LACHAQUI"]
[15,4,6,"SAN BUENAVENTURA"]
[15,4,7,"SANTA ROSA DE QUIVES"]
[15,5,1,"SAN VICENTE DE CAÑETE"]
[15,5,2,"ASIA"]
[15,5,3,"CALANGO"]
[15,5,4,"CERRO AZUL"]
[15,5,5,"CHILCA"]
[15,5,6,"COAYLLO"]
[15,5,7,"IMPERIAL"]
[15,5,8,"LUNAHUANA"]
[15,5,9,"MALA"]
[15,5,10,"NUEVO IMPERIAL"]
[15,5,11,"PACARAN"]
[15,5,12,"QUILMANA"]
[15,5,13,"SAN ANTONIO"]
[15,5,14,"SAN LUIS"]
[15,5,15,"SANTA CRUZ DE FLORES"]
[15,5,16,"ZUÑIGA"]
[15,6,1,"HUARAL"]
[15,6,2,"ATAVILLOS ALTO"]
[15,6,3,"ATAVILLOS BAJO"]
[15,6,4,"AUCALLAMA"]
[15,6,5,"CHANCAY"]
[15,6,6,"IHUARI"]
[15,6,7,"LAMPIAN"]
[15,6,8,"PACARAOS"]
[15,6,9,"SAN MIGUEL DE ACOS"]
[15,6,10,"SANTA CRUZ DE ANDAMARCA"]
[15,6,11,"SUMBILCA"]
[15,6,12,"VEINTISIETE DE NOVIEMBRE"]
[15,7,1,"MATUCANA"]
[15,7,2,"ANTIOQUIA"]
[15,7,3,"CALLAHUANCA"]
[15,7,4,"CARAMPOMA"]
[15,7,5,"CHICLA"]
[15,7,6,"CUENCA"]
[15,7,7,"HUACHUPAMPA"]
[15,7,8,"HUANZA"]
[15,7,9,"HUAROCHIRI"]
[15,7,10,"LAHUAYTAMBO"]
[15,7,11,"LANGA"]
[15,7,12,"LARAOS"]
[15,7,13,"MARIATANA"]
[15,7,14,"RICARDO PALMA"]
[15,7,15,"SAN ANDRES DE TUPICOCHA"]
[15,7,16,"SAN ANTONIO"]
[15,7,17,"SAN BARTOLOME"]
[15,7,18,"SAN DAMIAN"]
[15,7,19,"SAN JUAN DE IRIS"]
[15,7,20,"SAN JUAN DE TANTARANCHE"]
[15,7,21,"SAN LORENZO DE QUINTI"]
[15,7,22,"SAN MATEO"]
[15,7,23,"SAN MATEO DE OTAO"]
[15,7,24,"SAN PEDRO DE CASTA"]
[15,7,25,"SAN PEDRO DE HUANCAYRE"]
[15,7,26,"SANGALLAYA"]
[15,7,27,"SANTA CRUZ DE COCACHACRA"]
[15,7,28,"SANTA EULALIA"]
[15,7,29,"SANTIAGO DE ANCHUCAYA"]
[15,7,30,"SANTIAGO DE TUNA"]
[15,7,31,"SANTO DOMINGO DE LOS OLLEROS"]
[15,7,32,"SURCO"]
[15,8,1,"HUACHO"]
[15,8,2,"AMBAR"]
[15,8,3,"CALETA DE CARQUIN"]
[15,8,4,"CHECRAS"]
[15,8,5,"HUALMAY"]
[15,8,6,"HUAURA"]
[15,8,7,"LEONCIO PRADO"]
[15,8,8,"PACCHO"]
[15,8,9,"SANTA LEONOR"]
[15,8,10,"SANTA MARIA"]
[15,8,11,"SAYAN"]
[15,8,12,"VEGUETA"]
[15,9,1,"OYON"]
[15,9,2,"ANDAJES"]
[15,9,3,"CAUJUL"]
[15,9,4,"COCHAMARCA"]
[15,9,5,"NAVAN"]
[15,9,6,"PACHANGARA"]
[15,10,1,"YAUYOS"]
[15,10,2,"ALIS"]
[15,10,3,"AYAUCA"]
[15,10,4,"AYAVIRI"]
[15,10,5,"AZANGARO"]
[15,10,6,"CACRA"]
[15,10,7,"CARANIA"]
[15,10,8,"CATAHUASI"]
[15,10,9,"CHOCOS"]
[15,10,10,"COCHAS"]
[15,10,11,"COLONIA"]
[15,10,12,"HONGOS"]
[15,10,13,"HUAMPARA"]
[15,10,14,"HUANCAYA"]
[15,10,15,"HUANGASCAR"]
[15,10,16,"HUANTAN"]
[15,10,17,"HUAÑEC"]
[15,10,18,"LARAOS"]
[15,10,19,"LINCHA"]
[15,10,20,"MADEAN"]
[15,10,21,"MIRAFLORES"]
[15,10,22,"OMAS"]
[15,10,23,"PUTINZA"]
[15,10,24,"QUINCHES"]
[15,10,25,"QUINOCAY"]
[15,10,26,"SAN JOAQUIN"]
[15,10,27,"SAN PEDRO DE PILAS"]
[15,10,28,"TANTA"]
[15,10,29,"TAURIPAMPA"]
[15,10,30,"TOMAS"]
[15,10,31,"TUPE"]
[15,10,32,"VIÑAC"]
[15,10,33,"VITIS"]
[16,1,1,"IQUITOS"]
[16,1,2,"ALTO NANAY"]
[16,1,3,"FERNANDO LORES"]
[16,1,4,"INDIANA"]
[16,1,5,"LAS AMAZONAS"]
[16,1,6,"MAZAN"]
[16,1,7,"NAPO"]
[16,1,8,"PUNCHANA"]
[16,1,9,"PUTUMAYO"]
[16,1,10,"TORRES CAUSANA"]
[16,1,12,"BELEN"]
[16,1,13,"SAN JUAN BAUTISTA"]
[16,1,14,"TENIENTE MANUEL CLAVERO"]
[16,2,1,"YURIMAGUAS"]
[16,2,2,"BALSAPUERTO"]
[16,2,5,"JEBEROS"]
[16,2,6,"LAGUNAS"]
[16,2,10,"SANTA CRUZ"]
[16,2,11,"TENIENTE CESAR LOPEZ ROJAS"]
[16,3,1,"NAUTA"]
[16,3,2,"PARINARI"]
[16,3,3,"TIGRE"]
[16,3,4,"TROMPETEROS"]
[16,3,5,"URARINAS"]
[16,4,1,"RAMON CASTILLA"]
[16,4,2,"PEBAS"]
[16,4,3,"YAVARI"]
[16,4,4,"SAN PABLO"]
[16,5,1,"REQUENA"]
[16,5,2,"ALTO TAPICHE"]
[16,5,3,"CAPELO"]
[16,5,4,"EMILIO SAN MARTIN"]
[16,5,5,"MAQUIA"]
[16,5,6,"PUINAHUA"]
[16,5,7,"SAQUENA"]
[16,5,8,"SOPLIN"]
[16,5,9,"TAPICHE"]
[16,5,10,"JENARO HERRERA"]
[16,5,11,"YAQUERANA"]
[16,6,1,"CONTAMANA"]
[16,6,2,"INAHUAYA"]
[16,6,3,"PADRE MARQUEZ"]
[16,6,4,"PAMPA HERMOSA"]
[16,6,5,"SARAYACU"]
[16,6,6,"VARGAS GUERRA"]
[16,7,1,"BARRANCA"]
[16,7,2,"CAHUAPANAS"]
[16,7,3,"MANSERICHE"]
[16,7,4,"MORONA"]
[16,7,5,"PASTAZA"]
[16,7,6,"ANDOAS"]
[17,1,1,"TAMBOPATA"]
[17,1,2,"INAMBARI"]
[17,1,3,"LAS PIEDRAS"]
[17,1,4,"LABERINTO"]
[17,2,1,"MANU"]
[17,2,2,"FITZCARRALD"]
[17,2,3,"MADRE DE DIOS"]
[17,2,4,"HUEPETUHE"]
[17,3,1,"IÑAPARI"]
[17,3,2,"IBERIA"]
[17,3,3,"TAHUAMANU"]
[18,1,1,"MOQUEGUA"]
[18,1,2,"CARUMAS"]
[18,1,3,"CUCHUMBAYA"]
[18,1,4,"SAMEGUA"]
[18,1,5,"SAN CRISTOBAL"]
[18,1,6,"TORATA"]
[18,2,1,"OMATE"]
[18,2,2,"CHOJATA"]
[18,2,3,"COALAQUE"]
[18,2,4,"ICHUÑA"]
[18,2,5,"LA CAPILLA"]
[18,2,6,"LLOQUE"]
[18,2,7,"MATALAQUE"]
[18,2,8,"PUQUINA"]
[18,2,9,"QUINISTAQUILLAS"]
[18,2,10,"UBINAS"]
[18,2,11,"YUNGA"]
[18,3,1,"ILO"]
[18,3,2,"EL ALGARROBAL"]
[18,3,3,"PACOCHA"]
[19,1,1,"CHAUPIMARCA"]
[19,1,2,"HUACHON"]
[19,1,3,"HUARIACA"]
[19,1,4,"HUAYLLAY"]
[19,1,5,"NINACACA"]
[19,1,6,"PALLANCHACRA"]
[19,1,7,"PAUCARTAMBO"]
[19,1,8,"SAN FRANCISCO DE ASIS DE YARUSYACAN"]
[19,1,9,"SIMON BOLIVAR"]
[19,1,10,"TICLACAYAN"]
[19,1,11,"TINYAHUARCO"]
[19,1,12,"VICCO"]
[19,1,13,"YANACANCHA"]
[19,2,1,"YANAHUANCA"]
[19,2,2,"CHACAYAN"]
[19,2,3,"GOYLLARISQUIZGA"]
[19,2,4,"PAUCAR"]
[19,2,5,"SAN PEDRO DE PILLAO"]
[19,2,6,"SANTA ANA DE TUSI"]
[19,2,7,"TAPUC"]
[19,2,8,"VILCABAMBA"]
[19,3,1,"OXAPAMPA"]
[19,3,2,"CHONTABAMBA"]
[19,3,3,"HUANCABAMBA"]
[19,3,4,"PALCAZU"]
[19,3,5,"POZUZO"]
[19,3,6,"PUERTO BERMUDEZ"]
[19,3,7,"VILLA RICA"]
[20,1,1,"PIURA"]
[20,1,4,"CASTILLA"]
[20,1,5,"CATACAOS"]
[20,1,7,"CURA MORI"]
[20,1,8,"EL TALLAN"]
[20,1,9,"LA ARENA"]
[20,1,10,"LA UNION"]
[20,1,11,"LAS LOMAS"]
[20,1,14,"TAMBO GRANDE"]
[20,2,1,"AYABACA"]
[20,2,2,"FRIAS"]
[20,2,3,"JILILI"]
[20,2,4,"LAGUNAS"]
[20,2,5,"MONTERO"]
[20,2,6,"PACAIPAMPA"]
[20,2,7,"PAIMAS"]
[20,2,8,"SAPILLICA"]
[20,2,9,"SICCHEZ"]
[20,2,10,"SUYO"]
[20,3,1,"HUANCABAMBA"]
[20,3,2,"CANCHAQUE"]
[20,3,3,"EL CARMEN DE LA FRONTERA"]
[20,3,4,"HUARMACA"]
[20,3,5,"LALAQUIZ"]
[20,3,6,"SAN MIGUEL DE EL FAIQUE"]
[20,3,7,"SONDOR"]
[20,3,8,"SONDORILLO"]
[20,4,1,"CHULUCANAS"]
[20,4,2,"BUENOS AIRES"]
[20,4,3,"CHALACO"]
[20,4,4,"LA MATANZA"]
[20,4,5,"MORROPON"]
[20,4,6,"SALITRAL"]
[20,4,7,"SAN JUAN DE BIGOTE"]
[20,4,8,"SANTA CATALINA DE MOSSA"]
[20,4,9,"SANTO DOMINGO"]
[20,4,10,"YAMANGO"]
[20,5,1,"PAITA"]
[20,5,2,"AMOTAPE"]
[20,5,3,"ARENAL"]
[20,5,4,"COLAN"]
[20,5,5,"LA HUACA"]
[20,5,6,"TAMARINDO"]
[20,5,7,"VICHAYAL"]
[20,6,1,"SULLANA"]
[20,6,2,"BELLAVISTA"]
[20,6,3,"IGNACIO ESCUDERO"]
[20,6,4,"LANCONES"]
[20,6,5,"MARCAVELICA"]
[20,6,6,"MIGUEL CHECA"]
[20,6,7,"QUERECOTILLO"]
[20,6,8,"SALITRAL"]
[20,7,1,"PARIÑAS"]
[20,7,2,"EL ALTO"]
[20,7,3,"LA BREA"]
[20,7,4,"LOBITOS"]
[20,7,5,"LOS ORGANOS"]
[20,7,6,"MANCORA"]
[20,8,1,"SECHURA"]
[20,8,2,"BELLAVISTA DE LA UNION"]
[20,8,3,"BERNAL"]
[20,8,4,"CRISTO NOS VALGA"]
[20,8,5,"VICE"]
[20,8,6,"RINCONADA LLICUAR"]
[21,1,1,"PUNO"]
[21,1,2,"ACORA"]
[21,1,3,"AMANTANI"]
[21,1,4,"ATUNCOLLA"]
[21,1,5,"CAPACHICA"]
[21,1,6,"CHUCUITO"]
[21,1,7,"COATA"]
[21,1,8,"HUATA"]
[21,1,9,"MAÑAZO"]
[21,1,10,"PAUCARCOLLA"]
[21,1,11,"PICHACANI"]
[21,1,12,"PLATERIA"]
[21,1,13,"SAN ANTONIO"]
[21,1,14,"TIQUILLACA"]
[21,1,15,"VILQUE"]
[21,2,1,"AZANGARO"]
[21,2,2,"ACHAYA"]
[21,2,3,"ARAPA"]
[21,2,4,"ASILLO"]
[21,2,5,"CAMINACA"]
[21,2,6,"CHUPA"]
[21,2,7,"JOSE DOMINGO CHOQUEHUANCA"]
[21,2,8,"MUÑANI"]
[21,2,9,"POTONI"]
[21,2,10,"SAMAN"]
[21,2,11,"SAN ANTON"]
[21,2,12,"SAN JOSE"]
[21,2,13,"SAN JUAN DE SALINAS"]
[21,2,14,"SANTIAGO DE PUPUJA"]
[21,2,15,"TIRAPATA"]
[21,3,1,"MACUSANI"]
[21,3,2,"AJOYANI"]
[21,3,3,"AYAPATA"]
[21,3,4,"COASA"]
[21,3,5,"CORANI"]
[21,3,6,"CRUCERO"]
[21,3,7,"ITUATA"]
[21,3,8,"OLLACHEA"]
[21,3,9,"SAN GABAN"]
[21,3,10,"USICAYOS"]
[21,4,1,"JULI"]
[21,4,2,"DESAGUADERO"]
[21,4,3,"HUACULLANI"]
[21,4,4,"KELLUYO"]
[21,4,5,"PISACOMA"]
[21,4,6,"POMATA"]
[21,4,7,"ZEPITA"]
[21,5,1,"ILAVE"]
[21,5,2,"CAPAZO"]
[21,5,3,"PILCUYO"]
[21,5,4,"SANTA ROSA"]
[21,5,5,"CONDURIRI"]
[21,6,1,"HUANCANE"]
[21,6,2,"COJATA"]
[21,6,3,"HUATASANI"]
[21,6,4,"INCHUPALLA"]
[21,6,5,"PUSI"]
[21,6,6,"ROSASPATA"]
[21,6,7,"TARACO"]
[21,6,8,"VILQUE CHICO"]
[21,7,1,"LAMPA"]
[21,7,2,"CABANILLA"]
[21,7,3,"CALAPUJA"]
[21,7,4,"NICASIO"]
[21,7,5,"OCUVIRI"]
[21,7,6,"PALCA"]
[21,7,7,"PARATIA"]
[21,7,8,"PUCARA"]
[21,7,9,"SANTA LUCIA"]
[21,7,10,"VILAVILA"]
[21,8,1,"AYAVIRI"]
[21,8,2,"ANTAUTA"]
[21,8,3,"CUPI"]
[21,8,4,"LLALLI"]
[21,8,5,"MACARI"]
[21,8,6,"NUÑOA"]
[21,8,7,"ORURILLO"]
[21,8,8,"SANTA ROSA"]
[21,8,9,"UMACHIRI"]
[21,9,1,"MOHO"]
[21,9,2,"CONIMA"]
[21,9,3,"HUAYRAPATA"]
[21,9,4,"TILALI"]
[21,10,1,"PUTINA"]
[21,10,2,"ANANEA"]
[21,10,3,"PEDRO VILCA APAZA"]
[21,10,4,"QUILCAPUNCU"]
[21,10,5,"SINA"]
[21,11,1,"JULIACA"]
[21,11,2,"CABANA"]
[21,11,3,"CABANILLAS"]
[21,11,4,"CARACOTO"]
[21,12,1,"SANDIA"]
[21,12,2,"CUYOCUYO"]
[21,12,3,"LIMBANI"]
[21,12,4,"PATAMBUCO"]
[21,12,5,"PHARA"]
[21,12,6,"QUIACA"]
[21,12,7,"SAN JUAN DEL ORO"]
[21,12,8,"YANAHUAYA"]
[21,12,9,"ALTO INAMBARI"]
[21,12,10,"SAN PEDRO DE PUTINA PUNCO"]
[21,13,1,"YUNGUYO"]
[21,13,2,"ANAPIA"]
[21,13,3,"COPANI"]
[21,13,4,"CUTURAPI"]
[21,13,5,"OLLARAYA"]
[21,13,6,"TINICACHI"]
[21,13,7,"UNICACHI"]
[22,1,1,"MOYOBAMBA"]
[22,1,2,"CALZADA"]
[22,1,3,"HABANA"]
[22,1,4,"JEPELACIO"]
[22,1,5,"SORITOR"]
[22,1,6,"YANTALO"]
[22,2,1,"BELLAVISTA"]
[22,2,2,"ALTO BIAVO"]
[22,2,3,"BAJO BIAVO"]
[22,2,4,"HUALLAGA"]
[22,2,5,"SAN PABLO"]
[22,2,6,"SAN RAFAEL"]
[22,3,1,"SAN JOSE DE SISA"]
[22,3,2,"AGUA BLANCA"]
[22,3,3,"SAN MARTIN"]
[22,3,4,"SANTA ROSA"]
[22,3,5,"SHATOJA"]
[22,4,1,"SAPOSOA"]
[22,4,2,"ALTO SAPOSOA"]
[22,4,3,"EL ESLABON"]
[22,4,4,"PISCOYACU"]
[22,4,5,"SACANCHE"]
[22,4,6,"TINGO DE SAPOSOA"]
[22,5,1,"LAMAS"]
[22,5,2,"ALONSO DE ALVARADO"]
[22,5,3,"BARRANQUITA"]
[22,5,4,"CAYNARACHI"]
[22,5,5,"CUÑUMBUQUI"]
[22,5,6,"PINTO RECODO"]
[22,5,7,"RUMISAPA"]
[22,5,8,"SAN ROQUE DE CUMBAZA"]
[22,5,9,"SHANAO"]
[22,5,10,"TABALOSOS"]
[22,5,11,"ZAPATERO"]
[22,6,1,"JUANJUI"]
[22,6,2,"CAMPANILLA"]
[22,6,3,"HUICUNGO"]
[22,6,4,"PACHIZA"]
[22,6,5,"PAJARILLO"]
[22,7,1,"PICOTA"]
[22,7,2,"BUENOS AIRES"]
[22,7,3,"CASPISAPA"]
[22,7,4,"PILLUANA"]
[22,7,5,"PUCACACA"]
[22,7,6,"SAN CRISTOBAL"]
[22,7,7,"SAN HILARION"]
[22,7,8,"SHAMBOYACU"]
[22,7,9,"TINGO DE PONASA"]
[22,7,10,"TRES UNIDOS"]
[22,8,1,"RIOJA"]
[22,8,2,"AWAJUN"]
[22,8,3,"ELIAS SOPLIN VARGAS"]
[22,8,4,"NUEVA CAJAMARCA"]
[22,8,5,"PARDO MIGUEL"]
[22,8,6,"POSIC"]
[22,8,7,"SAN FERNANDO"]
[22,8,8,"YORONGOS"]
[22,8,9,"YURACYACU"]
[22,9,1,"TARAPOTO"]
[22,9,2,"ALBERTO LEVEAU"]
[22,9,3,"CACATACHI"]
[22,9,4,"CHAZUTA"]
[22,9,5,"CHIPURANA"]
[22,9,6,"EL PORVENIR"]
[22,9,7,"HUIMBAYOC"]
[22,9,8,"JUAN GUERRA"]
[22,9,9,"LA BANDA DE SHILCAYO"]
[22,9,10,"MORALES"]
[22,9,11,"PAPAPLAYA"]
[22,9,12,"SAN ANTONIO"]
[22,9,13,"SAUCE"]
[22,9,14,"SHAPAJA"]
[22,10,1,"TOCACHE"]
[22,10,2,"NUEVO PROGRESO"]
[22,10,3,"POLVORA"]
[22,10,4,"SHUNTE"]
[22,10,5,"UCHIZA"]
[23,1,1,"TACNA"]
[23,1,2,"ALTO DE LA ALIANZA"]
[23,1,3,"CALANA"]
[23,1,4,"CIUDAD NUEVA"]
[23,1,5,"INCLAN"]
[23,1,6,"PACHIA"]
[23,1,7,"PALCA"]
[23,1,8,"POCOLLAY"]
[23,1,9,"SAMA"]
[23,1,10,"CORONEL GREGORIO ALBARRACIN LANCHIPA"]
[23,2,1,"CANDARAVE"]
[23,2,2,"CAIRANI"]
[23,2,3,"CAMILACA"]
[23,2,4,"CURIBAYA"]
[23,2,5,"HUANUARA"]
[23,2,6,"QUILAHUANI"]
[23,3,1,"LOCUMBA"]
[23,3,2,"ILABAYA"]
[23,3,3,"ITE"]
[23,4,1,"TARATA"]
[23,4,2,"HEROES ALBARRACIN"]
[23,4,3,"ESTIQUE"]
[23,4,4,"ESTIQUE-PAMPA"]
[23,4,5,"SITAJARA"]
[23,4,6,"SUSAPAYA"]
[23,4,7,"TARUCACHI"]
[23,4,8,"TICACO"]
[24,1,1,"TUMBES"]
[24,1,2,"CORRALES"]
[24,1,3,"LA CRUZ"]
[24,1,4,"PAMPAS DE HOSPITAL"]
[24,1,5,"SAN JACINTO"]
[24,1,6,"SAN JUAN DE LA VIRGEN"]
[24,2,1,"ZORRITOS"]
[24,2,2,"CASITAS"]
[24,2,3,"CANOAS DE PUNTA SAL"]
[24,3,1,"ZARUMILLA"]
[24,3,2,"AGUAS VERDES"]
[24,3,3,"MATAPALO"]
[24,3,4,"PAPAYAL"]
[25,1,1,"CALLERIA"]
[25,1,2,"CAMPOVERDE"]
[25,1,3,"IPARIA"]
[25,1,4,"MASISEA"]
[25,1,5,"YARINACOCHA"]
[25,1,6,"NUEVA REQUENA"]
[25,2,1,"RAYMONDI"]
[25,2,2,"SEPAHUA"]
[25,2,3,"TAHUANIA"]
[25,2,4,"YURUA"]
[25,3,1,"PADRE ABAD"]
[25,3,2,"IRAZOLA"]
[25,3,3,"CURIMANA"]
[25,4,1,"PURUS"]